Workbook

Sheet Eingabe
B1: Version Internet P.K. 01.07.2024
B2: ="Beitragsberechnung Umlagejahr " &B6 -> Beitragsberechnung Umlagejahr 2023
B6: =Berechnung_UA01!B3 -> 2023
B9: Unternehmensart | D9: Risikobeitrag | E9: + Grundbeitrag | F9: = Gesamtbeitrag | G9: - Bundesmittel | H9: = Nettobeitrag
D10: =COUNT(D12,D16,D18,D20,D22,D24,D26,D28,D30) -> 0 | G10: =IF(Berechnung_UA01!K96>=100,"x","") ->  | I10: Zahlbetrag
C11: w | D11: =SUM(D12:D31) -> 0
B12: Unternehmen mit Bodenbewirtschaftung | D12: =IF(Berechnung_UA01!I96=0,"",Berechnung_UA01!I96) ->  | E12: =IF(F12="","",Berechnung_UA01!I98) ->  | F12: =IF(Berechnung_UA01!I100=0,"",Berechnung_UA01!I100) ->  | G12: =IF(F12="","",H12-F12) ->  | H12: =IF(Berechnung_UA01!I104=0,"",ROUND(Berechnung_UA01!I104,2)) ->  | I12: =IF(H12="","",H12) -> 
H13: =IF(Berechnung_UA01!I99=0,"",Berechnung_UA01!I99) -> 
B14: Nebenunternehmen | D14: =IF(Berechnung_UA02!I29=0,"",Berechnung_UA02!I29) ->  | F14: =D14 ->  | I14: =IF(F14="","",F14) -> 
B16: Tierhaltungen | D16: =IF(Berechnung_UA04!I37=0,"",Berechnung_UA04!I37) ->  | E16: =IF(F16="","",Berechnung_UA04!I39) ->  | F16: =IF(Berechnung_UA04!I41=0,"",Berechnung_UA04!I41) ->  | I16: =IF(F16="","",F16) -> 
B18: Jagd | D18: =IF(Berechnung_UA05!I13=0,"",Berechnung_UA05!I13) ->  | E18: =IF(F18="","",Berechnung_UA05!I15) ->  | F18: =IF(Berechnung_UA05!I17=0,"",Berechnung_UA05!I17) ->  | I18: =IF(F18="","",F18) -> 
B20: Lohnunternehmen | D20: =IF(Berechnung_UA06!I22=0,"",Berechnung_UA06!I22) ->  | E20: =IF(F20="","",Berechnung_UA06!I24) ->  | F20: =IF(Berechnung_UA06!I26=0,"",Berechnung_UA06!I26) ->  | I20: =IF(F20="","",F20) -> 
D21: =IF(Berechnung_UA06!I23=0,"",Berechnung_UA06!I23) -> 
B22: USF / Biogasproduktion | D22: =IF(Berechnung_UA07!I20=0,"",Berechnung_UA07!I20) ->  | E22: =IF(F22="","",Berechnung_UA07!I22) ->  | F22: =IF(Berechnung_UA07!I24=0,"",Berechnung_UA07!I24) ->  | I22: =IF(F22="","",F22) -> 
B26: Verbände | D26: =IF(Berechnung_UA09!I11=0,"",Berechnung_UA09!I11) ->  | E26: =IF(F26="","",Berechnung_UA09!I16) ->  | F26: =IF(Berechnung_UA09!I18=0,"",Berechnung_UA09!I18) ->  | I26: =IF(F26="","",F26) -> 
B30: Galabau, Park- und Gartenpflege, Friedhöfe | D30: =IF(Berechnung_UA50!I21=0,"",Berechnung_UA50!I21) ->  | E30: =IF(F30="","",Berechnung_UA50!I23) ->  | F30: =IF(Berechnung_UA50!I25=0,"",Berechnung_UA50!I25) ->  | I30: =IF(F30="","",F30) -> 
B33: Gesamtforderung: | F33: =SUM(I12:I30) -> 0
B38: Berechnung für das | D38: =IF(ISERROR(VLOOKUP(#REF!,B39:F48,2,FALSE)),"",VLOOKUP(#REF!,B39:D47,3,FALSE)) ->  | E38: =IF(D14<>""," und Nebenunternehmen","") -> 
B39: 1 | D39: Unternehmen mit Bodenbewirtschaftung
B40: 4 | D40: Tierhaltungsunternehmen
B41: 5 | D41: Jagdunternehmen
B42: 6 | D42: Lohnunternehmen
B43: 7 | D43: das Unternehmen USF/ Biogasproduktion
B44: 8 | D44: Unternehmen LSV-Träger
B45: 9 | D45: Unternehmen des Verbandes
B46: 13 | D46: Unternehmen Reha
B47: 50 | D47: Unternehmen der Park- und Gartenpflege, Friedhöfe

Sheet Berechnung_UA01 (hidden)
A1: Beitragsberechnung SVLFG
A3: Jahr | B3: =Hebesatz!A3 -> 2023
A7: Risikogruppe
A8: Produktionsverfahren
A9: Katasterart | B9: Menge | D9: BER je Einheit | E9: BER PV | F9: Hebesatz | G9: Risikogruppe | H9: Risikofaktor PV | I9: Beitrag | K9: Mindestgröße %
A10: Ackerbau
A11: Mähdrusch, Zuckerrüben | E11: =SUM(E12:E13) -> 0 | F11: =Hebesatz!$B$3 -> 7.83 | G11: =Degression_Risiko!J4 -> 1.8456 | H11: =Degression_Risiko!K5 -> 1.0993 | I11: =ROUND(E11*$F$11*$G$11*H11,2) -> 0
A12: Mähdruschfrüchte | B12: =SUMIF(Zwischenspeicher!$D$2:$D$22,A12,Zwischenspeicher!$B$2:$B$22) -> 0 | C12: ha | D12: =Degression_Risiko!E5 -> 0 | E12: =ROUND(B12*D12,4) -> 0 | K12: =ROUND(VLOOKUP(A12,'Werte Mindestgröße'!$A$1:$E$49,5,FALSE)*(IF(B12="",0,B12)),2) -> 0
A13: Zuckerrüben | B13: =SUMIF(Zwischenspeicher!$D$2:$D$22,A13,Zwischenspeicher!$B$2:$B$22) -> 0 | C13: ha | D13: =Degression_Risiko!E5 -> 0 | E13: =ROUND(B13*D13,4) -> 0 | K13: =ROUND(VLOOKUP(A13,'Werte Mindestgröße'!$A$1:$E$49,5,FALSE)*(IF(B13="",0,B13)),2) -> 0
A14: Futterbau und Bioenergiepflanzen | E14: =SUM(E15:E16) -> 0 | F14: =Hebesatz!$B$3 -> 7.83 | G14: =Degression_Risiko!J4 -> 1.8456 | H14: =Degression_Risiko!K6 -> 0.6261 | I14: =ROUND(E14*F14*G14*H14,2) -> 0
A15: Futterbau, Bioenergiepflanzen | B15: =SUMIF(Zwischenspeicher!$D$2:$D$22,A15,Zwischenspeicher!$B$2:$B$22) -> 0 | C15: ha | D15: =Degression_Risiko!E6 -> 0 | E15: =ROUND(B15*D15,4) -> 0 | K15: =ROUND(VLOOKUP(A15,'Werte Mindestgröße'!$A$1:$E$49,5,FALSE)*(IF(B15="",0,B15)),2) -> 0
A16: Korbweiden | B16: =SUMIF(Zwischenspeicher!$D$2:$D$22,A16,Zwischenspeicher!$B$2:$B$22) -> 0 | C16: ha | D16: =Degression_Risiko!E6 -> 0 | E16: 0 | K16: =ROUND(VLOOKUP(A16,'Werte Mindestgröße'!$A$1:$E$49,5,FALSE)*(IF(B16="",0,B16)),2) -> 0
A17: Kartoffeln | B17: =SUMIF(Zwischenspeicher!$D$2:$D$22,A17,Zwischenspeicher!$B$2:$B$22) -> 0 | C17: ha | D17: =Degression_Risiko!E7 -> 0 | E17: 0 | F17: =Hebesatz!$B$3 -> 7.83 | G17: =Degression_Risiko!J4 -> 1.8456 | H17: =Degression_Risiko!K7 -> 2.0716 | I17: =ROUND(E17*F17*G17*H17,2) -> 0 | K17: =ROUND(VLOOKUP(A17,'Werte Mindestgröße'!$A$1:$E$49,5,FALSE)*(IF(B17="",0,B17)),2) -> 0
A18: Aus der Produktion genommene Flächen | E18: =SUM(E19:E21) -> 0 | F18: =Hebesatz!$B$3 -> 7.83 | G18: =Degression_Risiko!J4 -> 1.8456 | H18: =Degression_Risiko!K8 -> 0.7817 | I18: =ROUND(E18*F18*G18*H18,2) -> 0
A19: Stillegung/Pflege | B19: =SUMIF(Zwischenspeicher!$D$2:$D$22,A19,Zwischenspeicher!$B$2:$B$22) -> 0 | C19: ha | D19: =Degression_Risiko!E8 -> 0 | E19: 0 | K19: =ROUND(VLOOKUP(A19,'Werte Mindestgröße'!$A$1:$E$49,5,FALSE)*(IF(B19="",0,B19)),2) -> 0
A20: stillgelegte Fläche ALG | B20: =SUMIF(Zwischenspeicher!$D$2:$D$22,A20,Zwischenspeicher!$B$2:$B$22) -> 0 | C20: ha | D20: =Degression_Risiko!E8 -> 0 | E20: 0 | K20: =ROUND(VLOOKUP(A20,'Werte Mindestgröße'!$A$1:$E$49,5,FALSE)*(IF(B20="",0,B20)),2) -> 0
A21: Landwirtschaft mit Pflege (FELEG) | B21: =SUMIF(Zwischenspeicher!$D$2:$D$22,A21,Zwischenspeicher!$B$2:$B$22) -> 0 | C21: ha | D21: =Degression_Risiko!E8 -> 0 | E21: 0 | K21: =ROUND(VLOOKUP(A21,'Werte Mindestgröße'!$A$1:$E$49,5,FALSE)*(IF(B21="",0,B21)),2) -> 0
A22: Grünland_RK
A23: Almen, Alpen, Hutungen | B23: =SUMIF(Zwischenspeicher!$D$2:$D$22,A23,Zwischenspeicher!$B$2:$B$22) -> 0 | C23: ha | D23: =Degression_Risiko!E10 -> 0 | E23: 0 | F23: =Hebesatz!$B$3 -> 7.83 | G23: =Degression_Risiko!J9 -> 3.0344 | H23: =Degression_Risiko!K10 -> 0.9957 | I23: =ROUND(E23*F23*G23*H23,2) -> 0 | K23: =ROUND(VLOOKUP(A23,'Werte Mindestgröße'!$A$1:$E$49,5,FALSE)*(IF(B23="",0,B23)),2) -> 0
A24: Grünland_PV | E24: =SUM(E25:E27) -> 0 | F24: =Hebesatz!$B$3 -> 7.83 | G24: =Degression_Risiko!J9 -> 3.0344 | H24: =Degression_Risiko!K11 -> 1 | I24: =ROUND(E24*F24*G24*H24,2) -> 0
A25: Grünland | B25: =SUMIF(Zwischenspeicher!$D$2:$D$22,A25,Zwischenspeicher!$B$2:$B$22) -> 0 | C25: ha | D25: =Degression_Risiko!E11 -> 0 | E25: 0 | K25: =ROUND(VLOOKUP(A25,'Werte Mindestgröße'!$A$1:$E$49,5,FALSE)*(IF(B25="",0,B25)),2) -> 0
A26: Garten | B26: =SUMIF(Zwischenspeicher!$D$2:$D$22,A26,Zwischenspeicher!$B$2:$B$22) -> 0 | C26: ha | D26: =Degression_Risiko!E11 -> 0 | E26: 0 | K26: =ROUND(VLOOKUP(A26,'Werte Mindestgröße'!$A$1:$E$49,5,FALSE)*(IF(B26="",0,B26)),2) -> 0
A27: Streuobstwiesen (nur Obstbaumnutzung) | B27: =SUMIF(Zwischenspeicher!$D$2:$D$22,A27,Zwischenspeicher!$B$2:$B$22) -> 0 | C27: ha | D27: =Degression_Risiko!E11 -> 0 | E27: 0 | K27: =ROUND(VLOOKUP(A27,'Werte Mindestgröße'!$A$1:$E$49,5,FALSE)*(IF(B27="",0,B27)),2) -> 0
A28: Weinbau
A29: Ausschließliche Traubenproduktion | B29: =SUMIF(Zwischenspeicher!$D$2:$D$22,A29,Zwischenspeicher!$B$2:$B$22) -> 0 | C29: ha | D29: =Degression_Risiko!E13 -> 0 | E29: 0 | F29: =Hebesatz!$B$3 -> 7.83 | G29: =Degression_Risiko!J12 -> 0.3995 | H29: =Degression_Risiko!K13 -> 0.9213 | I29: =ROUND(E29*F29*G29*H29,2) -> 0 | K29: =ROUND(VLOOKUP(A29,'Werte Mindestgröße'!$A$1:$E$49,5,FALSE)*(IF(B29="",0,B29)),2) -> 0
A30: Traubenproduktion mit eigener Kellerwirtschaft | B30: =SUMIF(Zwischenspeicher!$D$2:$D$22,A30,Zwischenspeicher!$B$2:$B$22) -> 0 | C30: ha | D30: =Degression_Risiko!E14 -> 0 | E30: 0 | F30: =Hebesatz!$B$3 -> 7.83 | G30: =Degression_Risiko!J12 -> 0.3995 | H30: =Degression_Risiko!K14 -> 1.0268 | I30: =ROUND(E30*F30*G30*H30,2) -> 0 | K30: =ROUND(VLOOKUP(A30,'Werte Mindestgröße'!$A$1:$E$49,5,FALSE)*(IF(B30="",0,B30)),2) -> 0
A31: Obst und Gemüse im Freiland, Hopfen, Tabak und Weihnachtsbäume
A32: Christbaumkulturen | B32: =SUMIF(Zwischenspeicher!$D$2:$D$22,A32,Zwischenspeicher!$B$2:$B$22) -> 0 | C32: ha | D32: =Degression_Risiko!E16 -> 0 | E32: 0 | F32: =Hebesatz!$B$3 -> 7.83 | G32: =Degression_Risiko!J15 -> 0.3671 | H32: =Degression_Risiko!K16 -> 4.7624 | I32: =ROUND(E32*F32*G32*H32,2) -> 0 | K32: =ROUND(VLOOKUP(A32,'Werte Mindestgröße'!$A$1:$E$49,5,FALSE)*(IF(B32="",0,B32)),2) -> 0
A33: Baumobst | B33: =SUMIF(Zwischenspeicher!$D$2:$D$22,A33,Zwischenspeicher!$B$2:$B$22) -> 0 | C33: ha | D33: =Degression_Risiko!E17 -> 0 | E33: 0 | F33: =Hebesatz!$B$3 -> 7.83 | G33: =Degression_Risiko!J15 -> 0.3671 | H33: =Degression_Risiko!K17 -> 1.76 | I33: 0 | K33: =ROUND(VLOOKUP(A33,'Werte Mindestgröße'!$A$1:$E$49,5,FALSE)*(IF(B33="",0,B33)),2) -> 0
A34: Hopfen | B34: =SUMIF(Zwischenspeicher!$D$2:$D$22,A34,Zwischenspeicher!$B$2:$B$22) -> 0 | C34: ha | D34: =Degression_Risiko!E18 -> 0 | E34: 0 | F34: =Hebesatz!$B$3 -> 7.83 | G34: =Degression_Risiko!J15 -> 0.3671 | H34: =Degression_Risiko!K18 -> 2.6222 | I34: 0 | K34: =ROUND(VLOOKUP(A34,'Werte Mindestgröße'!$A$1:$E$49,5,FALSE)*(IF(B34="",0,B34)),2) -> 0
A35: Tabak | B35: =IF(B3<2018,SUMIF(Zwischenspeicher!$D$2:$D$22,A35,Zwischenspeicher!$B$2:$B$22),0) -> 0 | C35: ha | D35: =Degression_Risiko!E19 -> 0 | E35: 0 | F35: =Hebesatz!$B$3 -> 7.83 | G35: =Degression_Risiko!J15 -> 0.3671 | H35: =Degression_Risiko!K19 -> 0 | I35: =ROUND(E35*F35*G35*H35,2) -> 0 | K35: =ROUND(VLOOKUP(A35,'Werte Mindestgröße'!$A$1:$E$49,5,FALSE)*(IF(B35="",0,B35)),2) -> 0
A36: Beerenobst | B36: =SUMIF(Zwischenspeicher!$D$2:$D$22,A36,Zwischenspeicher!$B$2:$B$22) -> 0 | C36: ha | D36: =Degression_Risiko!E20 -> 0 | E36: =ROUND(B36*D36,4) -> 0 | F36: =Hebesatz!$B$3 -> 7.83 | G36: =Degression_Risiko!J15 -> 0.3671 | H36: =Degression_Risiko!K20 -> 0.3407 | I36: 0 | K36: =ROUND(VLOOKUP(A36,'Werte Mindestgröße'!$A$1:$E$49,5,FALSE)*(IF(B36="",0,B36)),2) -> 0
A37: Intensivgemüse | E37: =SUM(E38:E39) -> 0 | F37: =Hebesatz!$B$3 -> 7.83 | G37: =Degression_Risiko!J15 -> 0.3671 | H37: =Degression_Risiko!K21 -> 0.6149 | I37: 0 | K37: =ROUND(VLOOKUP(A37,'Werte Mindestgröße'!$A$1:$E$49,5,FALSE)*(IF(B37="",0,B37)),2) -> 0
A38: Spargel | B38: =SUMIF(Zwischenspeicher!$D$2:$D$22,A38,Zwischenspeicher!$B$2:$B$22) -> 0 | C38: ha | D38: =Degression_Risiko!E21 -> 0 | E38: =ROUND(B38*D38,4) -> 0 | K38: =ROUND(VLOOKUP(A38,'Werte Mindestgröße'!$A$1:$E$49,5,FALSE)*(IF(B38="",0,B38)),2) -> 0
A39: Intensivgemüse | B39: =SUMIF(Zwischenspeicher!$D$2:$D$22,A39,Zwischenspeicher!$B$2:$B$22) -> 0 | C39: ha | D39: =Degression_Risiko!E21 -> 0 | E39: =ROUND(B39*D39,4) -> 0 | K39: =ROUND(VLOOKUP(A39,'Werte Mindestgröße'!$A$1:$E$49,5,FALSE)*(IF(B39="",0,B39)),2) -> 0
A40: Obstbau mit mechanischer Ernte | B40: =SUMIF(Zwischenspeicher!$D$2:$D$22,A40,Zwischenspeicher!$B$2:$B$22) -> 0 | C40: ha | D40: =Degression_Risiko!E23 -> 0 | E40: 0 | F40: =Hebesatz!$B$3 -> 7.83 | G40: =Degression_Risiko!J15 -> 0.3671 | H40: =Degression_Risiko!K23 -> 0.9288 | I40: =ROUND(E40*F40*G40*H40,2) -> 0 | K40: =ROUND(VLOOKUP(A40,'Werte Mindestgröße'!$A$1:$E$49,5,FALSE)*(IF(B40="",0,B40)),2) -> 0
A41: Industrie-, Frischgemüse mit händischer Ernte_PV | E41: =SUM(E42:E43) -> 0 | F41: =Hebesatz!$B$3 -> 7.83 | G41: =Degression_Risiko!J15 -> 0.3671 | H41: =Degression_Risiko!K24 -> 0.7861 | I41: =IF(B3>2017,ROUND(E41*F41*G41*H41,2),0) -> 0
A42: Industrie-, Frischgemüse mit händischer Ernte | B42: =SUMIF(Zwischenspeicher!$D$2:$D$22,A42,Zwischenspeicher!$B$2:$B$22) -> 0 | C42: ha | D42: =Degression_Risiko!E24 -> 0 | E42: =ROUND(B42*D42,4) -> 0 | F42: =Hebesatz!$B$3 -> 7.83 | G42: =Degression_Risiko!J15 -> 0.3671 | H42: =Degression_Risiko!K24 -> 0.7861 | I42: =IF(B3<2018,ROUND(E42*F42*G42*H42,2),0) -> 0 | K42: =ROUND(VLOOKUP(A42,'Werte Mindestgröße'!$A$1:$E$49,5,FALSE)*(IF(B42="",0,B42)),2) -> 0
A43: Tabak | B43: =IF(B3>2017,SUMIF(Zwischenspeicher!$D$2:$D$22,A43,Zwischenspeicher!$B$2:$B$22),0) -> 0 | C43: ha | D43: =Degression_Risiko!E24 -> 0 | E43: =ROUND(B43*D43,4) -> 0 | K43: =ROUND(VLOOKUP(A43,'Werte Mindestgröße'!$A$1:$E$49,5,FALSE)*(IF(B43="",0,B43)),2) -> 0
A44: Industriegemüse mit vollmechanischer Ernte_PV | E44: =SUM(E45:E46) -> 0 | F44: =Hebesatz!$B$3 -> 7.83 | G44: =Degression_Risiko!J15 -> 0.3671 | H44: =Degression_Risiko!K22 -> 4.1205 | I44: =ROUND(E44*F44*G44*H44,2) -> 0
A45: Blumen und Zierpflanzen | B45: =SUMIF(Zwischenspeicher!$D$2:$D$22,A45,Zwischenspeicher!$B$2:$B$22) -> 0 | C45: ha | D45: =Degression_Risiko!E22 -> 0 | E45: =ROUND(B45*D45,4) -> 0 | K45: =ROUND(VLOOKUP(A45,'Werte Mindestgröße'!$A$1:$E$49,5,FALSE)*(IF(B45="",0,B45)),2) -> 0
A46: Industriegemüse mit vollmechanischer Ernte | B46: =SUMIF(Zwischenspeicher!$D$2:$D$22,A46,Zwischenspeicher!$B$2:$B$22) -> 0 | C46: ha | D46: =Degression_Risiko!E22 -> 0 | E46: =ROUND(B46*D46,4) -> 0 | K46: =ROUND(VLOOKUP(A46,'Werte Mindestgröße'!$A$1:$E$49,5,FALSE)*(IF(B46="",0,B46)),2) -> 0
A47: Forst_RK | E47: =SUM(E48:E51) -> 0 | F47: =Hebesatz!$B$3 -> 7.83 | G47: =Degression_Risiko!J30 -> 11.0763 | H47: =Degression_Risiko!K31 -> 1 | I47: =ROUND(E47*F47*G47*H47,2) -> 0
A48: Forst | B48: =SUMIF(Zwischenspeicher!$D$2:$D$22,A48,Zwischenspeicher!$B$2:$B$22) -> 0 | C48: ha | D48: =IF(B48=0,0,E48/B48) -> 0 | E48: =Degression_Risiko!E31 -> 0 | F48: =Hebesatz!$B$3 -> 7.83 | I48: =ROUND(E48*F48*G48*H48,2) -> 0 | K48: =ROUND(VLOOKUP(A48,'Werte Mindestgröße'!$A$1:$E$49,5,FALSE)*(IF(B48="",0,B48)),2) -> 0
A49: Forst mit Pflege (FELEG) | B49: =SUMIF(Zwischenspeicher!$D$2:$D$22,A49,Zwischenspeicher!$B$2:$B$22) -> 0 | C49: ha | D49: =IF(B49=0,0,E49/B49) -> 0 | E49: =Degression_Risiko!E32 -> 0
A50: Einschlagsfestmeter | B50: =IF(SUMIF(Zwischenspeicher!$D$2:$D$22,A50,Zwischenspeicher!$B$2:$B$22)=0,12,IF(SUMIF(Zwischenspeicher!$D$2:$D$22,A50,Zwischenspeicher!$B$2:$B$22)<4,4,IF(SUMIF(Zwischenspeicher!$D$2:$D$22,A50,Zwischenspeicher!$B$2:$B$22)>99.99,99.99,SUMIF(Zwischenspeicher!$D$2:$D$22,A50,Zwischenspeicher!$B$2:$B$22)))) -> 12 | C50: Fm | K50: =ROUND(VLOOKUP(A50,'Werte Mindestgröße'!$A$1:$E$49,5,FALSE)*(IF(B50="",0,B50)),2) -> 0
A51: vertragl. aus der Produktion genommene Waldfläche | B51: =SUMIF(Zwischenspeicher!$D$2:$D$22,A51,Zwischenspeicher!$B$2:$B$22) -> 0 | C51: ha | D51: =Degression_Risiko!E33 -> 0.1 | E51: =ROUND(B51*D51,4) -> 0 | F51: =Hebesatz!$B$3 -> 7.83 | K51: =ROUND(VLOOKUP(A51,'Werte Mindestgröße'!$A$1:$E$49,5,FALSE)*(IF(B51="",0,B51)),2) -> 0
A52: Rinderhaltung
A53: Milchkühe, Deckbullen | B53: =SUMIF(Zwischenspeicher!$D$2:$D$22,A53,Zwischenspeicher!$B$2:$B$22) -> 0 | C53: Anz | D53: =Degression_Risiko!E35 -> 0 | E53: =ROUND(B53*D53,4) -> 0 | F53: =Hebesatz!$B$3 -> 7.83 | G53: =Degression_Risiko!J34 -> 1.1085 | H53: =Degression_Risiko!K35 -> 0.912 | I53: =ROUND(E53*F53*G53*H53,2) -> 0
A54: Mutterkühe | B54: =SUMIF(Zwischenspeicher!$D$2:$D$22,A54,Zwischenspeicher!$B$2:$B$22) -> 0 | C54: Anz | D54: =Degression_Risiko!E36 -> 0 | E54: =ROUND(B54*D54,4) -> 0 | F54: =Hebesatz!$B$3 -> 7.83 | G54: =Degression_Risiko!J34 -> 1.1085 | H54: =Degression_Risiko!K36 -> 1.1807 | I54: =ROUND(E54*F54*G54*H54,2) -> 0
A55: Sonstige Rinder | B55: =SUMIF(Zwischenspeicher!$D$2:$D$22,A55,Zwischenspeicher!$B$2:$B$22) -> 0 | C55: Anz | D55: =Degression_Risiko!E37 -> 0 | E55: =ROUND(B55*D55,4) -> 0 | F55: =Hebesatz!$B$3 -> 7.83 | G55: =Degression_Risiko!J34 -> 1.1085 | H55: =Degression_Risiko!K37 -> 1.2235 | I55: =ROUND(E55*F55*G55*H55,2) -> 0
A56: Schweinehaltung
A57: Schweinemast, Ferkelaufzucht, Jungsauenaufzucht | E57: =SUM(E58:E59) -> 0 | F57: =Hebesatz!$B$3 -> 7.83 | G57: =Degression_Risiko!J38 -> 1.1936 | H57: =Degression_Risiko!K39 -> 1.1864 | I57: =ROUND(E57*F57*G57*H57,2) -> 0
A58: Mastschweine | B58: =SUMIF(Zwischenspeicher!$D$2:$D$22,A58,Zwischenspeicher!$B$2:$B$22) -> 0 | C58: Anz | D58: =Degression_Risiko!E39 -> 0 | E58: =ROUND(B58*D58,4) -> 0
A59: Ferkelaufzucht | B59: =SUMIF(Zwischenspeicher!$D$2:$D$22,A59,Zwischenspeicher!$B$2:$B$22) -> 0 | C59: Anz | D59: =Degression_Risiko!E39 -> 0 | E59: =ROUND(B59*D59,4) -> 0
A60: Sauenhaltung | B60: =SUMIF(Zwischenspeicher!$D$2:$D$22,A60,Zwischenspeicher!$B$2:$B$22) -> 0 | C60: Anz | D60: =Degression_Risiko!E40 -> 0 | E60: =ROUND(B60*D60,4) -> 0 | F60: =Hebesatz!$B$3 -> 7.83 | G60: =Degression_Risiko!J38 -> 1.1936 | H60: =Degression_Risiko!K40 -> 0.7201 | I60: =ROUND(E60*F60*G60*H60,2) -> 0
A61: Unternehmen der sonstigen Tierhaltung
A62: Legehennen | B62: =SUMIF(Zwischenspeicher!$D$2:$D$22,A62,Zwischenspeicher!$B$2:$B$22) -> 0 | C62: Anz | D62: =Degression_Risiko!E48 -> 0 | E62: =ROUND(B62*D62,4) -> 0 | F62: =Hebesatz!$B$3 -> 7.83 | G62: =Degression_Risiko!J47 -> 1.1197 | H62: =Degression_Risiko!K48 -> 1.0658 | I62: =ROUND(E62*F62*G62*H62,2) -> 0
A63: Junghennenaufzucht | B63: =SUMIF(Zwischenspeicher!$D$2:$D$22,A63,Zwischenspeicher!$B$2:$B$22) -> 0 | C63: Anz | D63: =Degression_Risiko!E49 -> 0 | E63: 0 | F63: =Hebesatz!$B$3 -> 7.83 | G63: =Degression_Risiko!J47 -> 1.1197 | H63: =Degression_Risiko!K49 -> 0.7136 | I63: 0
A64: Masthühner | B64: =SUMIF(Zwischenspeicher!$D$2:$D$22,A64,Zwischenspeicher!$B$2:$B$22) -> 0 | C64: Anz | D64: =Degression_Risiko!E50 -> 0 | E64: 0 | F64: =Hebesatz!$B$3 -> 7.83 | G64: =Degression_Risiko!J47 -> 1.1197 | H64: =Degression_Risiko!K50 -> 0.7499 | I64: 0
A65: Mastenten | B65: =SUMIF(Zwischenspeicher!$D$2:$D$22,A65,Zwischenspeicher!$B$2:$B$22) -> 0 | C65: Anz | D65: =Degression_Risiko!E52 -> 0 | E65: 0 | F65: =Hebesatz!$B$3 -> 7.83 | G65: =Degression_Risiko!J47 -> 1.1197 | H65: =Degression_Risiko!K52 -> 3.4474 | I65: 0
A66: Mastgänse | B66: =SUMIF(Zwischenspeicher!$D$2:$D$22,A66,Zwischenspeicher!$B$2:$B$22) -> 0 | C66: Anz | D66: =Degression_Risiko!E53 -> 0 | E66: 0 | F66: =Hebesatz!$B$3 -> 7.83 | G66: =Degression_Risiko!J47 -> 1.1197 | H66: =Degression_Risiko!K53 -> 1.5409 | I66: 0
A67: Mastputen | B67: =SUMIF(Zwischenspeicher!$D$2:$D$22,A67,Zwischenspeicher!$B$2:$B$22) -> 0 | C67: Anz | D67: =Degression_Risiko!E54 -> 0 | E67: 0 | F67: =Hebesatz!$B$3 -> 7.83 | G67: =Degression_Risiko!J47 -> 1.1197 | H67: =Degression_Risiko!K54 -> 0.8665 | I67: 0
A68: Fleischschafe und -ziegen | E68: =SUM(E69:E70) -> 0 | F68: =Hebesatz!$B$3 -> 7.83 | G68: =Degression_Risiko!J47 -> 1.1197 | H68: =Degression_Risiko!K55 -> 1.024 | I68: 0
A69: Wanderschafe | B69: =SUMIF(Zwischenspeicher!$D$2:$D$22,A69,Zwischenspeicher!$B$2:$B$22) -> 0 | C69: Anz | D69: =ROUND(IF(SUM(B69:B70)<VLOOKUP(A68,Degression_Risiko!$A$4:$BZ$120,4,FALSE), VLOOKUP(A68,Degression_Risiko!$A$4:$BZ$120,2,FALSE)*VLOOKUP(A68,Degression_Risiko!$A$4:$BZ$120,4,FALSE)^VLOOKUP(A68,Degression_Risiko!$A$4:$BZ$120,3,FALSE), IF(SUM(B69:B70)>VLOOKUP(A68,Degression_Risiko!$A$4:$BZ$120,5,FALSE), (VLOOKUP(A68,Degression_Risiko!$A$4:$BZ$120,2,FALSE))*(VLOOKUP(A68,Degression_Risiko!$A$4:$BZ$120,5,FALSE))^(VLOOKUP(A68,Degression_Risiko!$A$4:$BZ$120,3,FALSE)), (VLOOKUP(A68,Degression_Risiko!$A$4:$BZ$120,2,FALSE))*SUM(B69:B70)^VLOOKUP(A68,Degression_Risiko!$A$4:$BZ$120,3,FALSE))), 4) -> 0 | E69: =ROUND(B69*D69,4) -> 0 | K69: =ROUND(VLOOKUP(A69,'Werte Mindestgröße'!$A$1:$E$49,5,FALSE)*(IF(B69="",0,B69)),2) -> 0
A70: Schafe und Ziegen | B70: =SUMIF(Zwischenspeicher!$D$2:$D$22,A70,Zwischenspeicher!$B$2:$B$22) -> 0 | C70: Anz | D70: =ROUND(IF(SUM(B69:B70)<VLOOKUP(A68,Degression_Risiko!$A$4:$BZ$120,4,FALSE), VLOOKUP(A68,Degression_Risiko!$A$4:$BZ$120,2,FALSE)*VLOOKUP(A68,Degression_Risiko!$A$4:$BZ$120,4,FALSE)^VLOOKUP(A68,Degression_Risiko!$A$4:$BZ$120,3,FALSE), IF(SUM(B69:B70)>VLOOKUP(A68,Degression_Risiko!$A$4:$BZ$120,5,FALSE), (VLOOKUP(A68,Degression_Risiko!$A$4:$BZ$120,2,FALSE))*(VLOOKUP(A68,Degression_Risiko!$A$4:$BZ$120,5,FALSE))^(VLOOKUP(A68,Degression_Risiko!$A$4:$BZ$120,3,FALSE)), (VLOOKUP(A68,Degression_Risiko!$A$4:$BZ$120,2,FALSE))*SUM(B69:B70)^VLOOKUP(A68,Degression_Risiko!$A$4:$BZ$120,3,FALSE))), 4) -> 0 | E70: =ROUND(B70*D70,4) -> 0
A71: Milchschafe und -ziegen | B71: =SUMIF(Zwischenspeicher!$D$2:$D$22,A71,Zwischenspeicher!$B$2:$B$22) -> 0 | C71: Anz | D71: =ROUND(IF(B71<VLOOKUP(A71,Degression_Risiko!$A$4:$BZ$120,4,FALSE), VLOOKUP(A71,Degression_Risiko!$A$4:$BZ$120,2,FALSE)*VLOOKUP(A71,Degression_Risiko!$A$4:$BZ$120,4,FALSE)^VLOOKUP(A71,Degression_Risiko!$A$4:$BZ$120,3,FALSE), IF(B71>VLOOKUP(A71,Degression_Risiko!$A$4:$BZ$120,5,FALSE), (VLOOKUP(A71,Degression_Risiko!$A$4:$BZ$120,2,FALSE))*(VLOOKUP(A71,Degression_Risiko!$A$4:$BZ$120,5,FALSE))^(VLOOKUP(A71,Degression_Risiko!$A$4:$BZ$120,3,FALSE)), (VLOOKUP(A71,Degression_Risiko!$A$4:$BZ$120,2,FALSE))*B71^VLOOKUP(A71,Degression_Risiko!$A$4:$BZ$120,3,FALSE))), 4) -> 0 | E71: =ROUND(B71*D71,4) -> 0 | F71: =Hebesatz!$B$3 -> 7.83 | G71: =Degression_Risiko!J47 -> 1.1197 | H71: =Degression_Risiko!K56 -> 0.3768 | I71: =ROUND(E71*F71*G71*H71,2) -> 0
A72: Kaninchenhaltung | B72: =SUMIF(Zwischenspeicher!$D$2:$D$22,A72,Zwischenspeicher!$B$2:$B$22) -> 0 | C72: Anz | D72: =ROUND(IF(B72<VLOOKUP(A72,Degression_Risiko!$A$4:$BZ$120,4,FALSE), VLOOKUP(A72,Degression_Risiko!$A$4:$BZ$120,2,FALSE)*VLOOKUP(A72,Degression_Risiko!$A$4:$BZ$120,4,FALSE)^VLOOKUP(A72,Degression_Risiko!$A$4:$BZ$120,3,FALSE), IF(B72>VLOOKUP(A72,Degression_Risiko!$A$4:$BZ$120,5,FALSE), (VLOOKUP(A72,Degression_Risiko!$A$4:$BZ$120,2,FALSE))*(VLOOKUP(A72,Degression_Risiko!$A$4:$BZ$120,5,FALSE))^(VLOOKUP(A72,Degression_Risiko!$A$4:$BZ$120,3,FALSE)), (VLOOKUP(A72,Degression_Risiko!$A$4:$BZ$120,2,FALSE))*B72^VLOOKUP(A72,Degression_Risiko!$A$4:$BZ$120,3,FALSE))), 4) -> 0 | E72: =ROUND(B72*D72,4) -> 0 | F72: =Hebesatz!$B$3 -> 7.83 | G72: =Degression_Risiko!J47 -> 1.1197 | H72: =Degression_Risiko!K57 -> 1.058 | I72: =ROUND(E72*F72*G72*H72,2) -> 0
A73: Wildtierhaltung_PV | E73: =SUM(E74:E75) -> 0 | F73: =Hebesatz!$B$3 -> 7.83 | G73: =Degression_Risiko!J47 -> 1.1197 | H73: =Degression_Risiko!K58 -> 1.0611 | I73: =ROUND(E73*F73*G73*H73,2) -> 0
A74: Wildtierhaltung | B74: =SUMIF(Zwischenspeicher!$D$2:$D$22,A74,Zwischenspeicher!$B$2:$B$22) -> 0 | C74: Anz | D74: =Degression_Risiko!E58 -> 0.7175 | E74: =ROUND(B74*D74,4) -> 0
A75: Schneckenzucht | B75: =SUMIF(Zwischenspeicher!$D$2:$D$22,A75,Zwischenspeicher!$B$2:$B$22) -> 0 | C75: Anz | D75: =Degression_Risiko!E58 -> 0.7175 | E75: =ROUND((ROUNDUP(B75,-3)/1000)*D75,4) -> 0
A76: Bienenhaltung | E76: =SUM(E77:E78) -> 0 | F76: =Hebesatz!$B$3 -> 7.83 | G76: =Degression_Risiko!J47 -> 1.1197 | H76: =Degression_Risiko!K59 -> 0.6058 | I76: =ROUND(E76*F76*G76*H76,2) -> 0
A77: Imkerei | B77: =SUMIF(Zwischenspeicher!$D$2:$D$22,A77,Zwischenspeicher!$B$2:$B$22) -> 0 | C77: Anz | D77: =Degression_Risiko!E59 -> 0 | E77: =ROUND(B77*D77,4) -> 0 | K77: =ROUND(VLOOKUP(A77,'Werte Mindestgröße'!$A$1:$E$49,5,FALSE)*(IF(B77="",0,B77)),2) -> 0
A78: Imkerei (n.gew.) | B78: 0 | C78: Anz | D78: =Degression_Risiko!E59 -> 0 | E78: =ROUND(B78*D78,4) -> 0
A79: Forellenzucht | B79: =IF(B3<2018,SUMIF(Zwischenspeicher!$D$2:$D$22,A79,Zwischenspeicher!$B$2:$B$22),0) -> 0 | C79: t | D79: =Degression_Risiko!E60 -> 0 | E79: =ROUND(B79*D79,4) -> 0 | F79: =Hebesatz!$B$3 -> 7.83 | G79: =Degression_Risiko!J47 -> 1.1197 | H79: =Degression_Risiko!K60 -> 0 | I79: =ROUND(E79*F79*G79*H79,2) -> 0 | K79: =ROUND(VLOOKUP(A79,'Werte Mindestgröße'!$A$1:$E$49,5,FALSE)*(IF(B79="",0,B79)),2) -> 0
A80: Teichwirtschaft Karpfen | B80: =SUMIF(Zwischenspeicher!$D$2:$D$22,A80,Zwischenspeicher!$B$2:$B$22) -> 0 | C80: ha | D80: =Degression_Risiko!E61 -> 0 | E80: =ROUND(B80*D80,4) -> 0 | F80: =Hebesatz!$B$3 -> 7.83 | G80: =Degression_Risiko!J47 -> 1.1197 | H80: =Degression_Risiko!K61 -> 0.9121 | I80: =ROUND(E80*F80*G80*H80,2) -> 0 | K80: =ROUND(VLOOKUP(A80,'Werte Mindestgröße'!$A$1:$E$49,5,FALSE)*(IF(B80="",0,B80)),2) -> 0
A81: Fluss- und Seenfischerei, Forellen und Beifische | E81: =E82+E83 -> 0 | F81: =Hebesatz!$B$3 -> 7.83 | G81: =Degression_Risiko!J47 -> 1.1197 | H81: =Degression_Risiko!K62 -> 1.5558 | I81: =ROUND(E81*F81*G81*H81,2) -> 0
A82: Fluss- und Seenfischerei | B82: =SUMIF(Zwischenspeicher!$D$2:$D$22,A82,Zwischenspeicher!$B$2:$B$22) -> 0 | C82: AT | D82: =Degression_Risiko!E62 -> 0.3 | E82: =ROUND(B82*D82,4) -> 0 | F82: =Hebesatz!$B$3 -> 7.83 | G82: =Degression_Risiko!J47 -> 1.1197 | H82: =Degression_Risiko!K62 -> 1.5558 | I82: =IF(B3<2018,ROUND(E82*F82*G82*H82,2),0) -> 0 | K82: =ROUND(VLOOKUP(A82,'Werte Mindestgröße'!$A$1:$E$49,5,FALSE)*(IF(B82="",0,B82)),2) -> 0
A83: Forellen und Beifische | B83: =IF(B3>2017,SUMIF(Zwischenspeicher!$D$2:$D$22,A83,Zwischenspeicher!$B$2:$B$22),0) -> 0 | C83: AT | D83: =Degression_Risiko!E62 -> 0.3 | E83: =ROUND(B83*D83,4) -> 0
A84: Pferdehaltung
A85: Deckhengste ohne Sporteinsatz | B85: =IF(B3<2018,SUMIF(Zwischenspeicher!$D$2:$D$22,A85,Zwischenspeicher!$B$2:$B$22),0) -> 0 | C85: Anz | D85: =Degression_Risiko!E42 -> 0 | E85: =ROUND(B85*D85,4) -> 0 | F85: =Hebesatz!$B$3 -> 7.83 | G85: =Degression_Risiko!J41 -> 1.4948 | H85: =Degression_Risiko!K42 -> 0 | I85: =ROUND(E85*F85*G85*H85,2) -> 0
A86: Zuchtstuten, Hengste, Aufzucht, Arbeits- und Gnadenbrottiere | E86: =E87+E88 -> 0 | F86: =Hebesatz!$B$3 -> 7.83 | G86: =Degression_Risiko!J41 -> 1.4948 | H86: =Degression_Risiko!K43 -> 1.578 | I86: =IF(B3>2017,ROUND(E86*F86*G86*H86,2),0) -> 0
A87: Zuchtstuten sowie Aufzucht-, Arbeits- und Gnadenbrottiere | B87: =SUMIF(Zwischenspeicher!$D$2:$D$22,A87,Zwischenspeicher!$B$2:$B$22) -> 0 | C87: Anz | D87: =Degression_Risiko!E43 -> 0 | E87: =ROUND(B87*D87,4) -> 0 | F87: =Hebesatz!$B$3 -> 7.83 | G87: =Degression_Risiko!J41 -> 1.4948 | H87: =Degression_Risiko!K43 -> 1.578 | I87: =IF(B3<2018,ROUND(E87*F87*G87*H87,2),0) -> 0
A88: Deckhengste ohne Sporteinsatz | B88: =IF(B3>2017,SUMIF(Zwischenspeicher!$D$2:$D$22,A88,Zwischenspeicher!$B$2:$B$22),0) -> 0 | C88: Anz | D88: =Degression_Risiko!E43 -> 0 | E88: =ROUND(B88*D88,4) -> 0
A89: Traber und Galopper | B89: =SUMIF(Zwischenspeicher!$D$2:$D$22,A89,Zwischenspeicher!$B$2:$B$22) -> 0 | C89: Anz | D89: =Degression_Risiko!E44 -> 0 | E89: =ROUND(B89*D89,4) -> 0 | F89: =Hebesatz!$B$3 -> 7.83 | G89: =Degression_Risiko!J41 -> 1.4948 | H89: =Degression_Risiko!K44 -> 0.6019 | I89: =ROUND(E89*F89*G89*H89,2) -> 0
A90: geschützter gärtnerischer Anbau, Blumen- und Zierpflanzenanbau sowie Baumschulen
A91: geschützter gärtnerische Anbau | E91: =SUM(E92:E94) -> 0 | F91: =Hebesatz!$B$3 -> 7.83 | G91: =Degression_Risiko!J25 -> 0.5658 | H91: =Degression_Risiko!K26 -> 1 | I91: =ROUND(E91*F91*G91*H91,2) -> 0
A92: Arbeitstage Mifa Urproduktion | B92: =SUMIF(Zwischenspeicher!$D$2:$D$22,A92,Zwischenspeicher!$B$2:$B$22) -> 0 | C92: AT | D92: =Degression_Risiko!E27 -> 0.5555 | E92: =ROUND(B92*D92,4) -> 0
A93: Arbeitsentgelt gärtnerische Urproduktion | B93: =SUMIF(Zwischenspeicher!$D$2:$D$22,A93,Zwischenspeicher!$B$2:$B$22) -> 0 | C93: € | D93: =Degression_Risiko!E28 -> 0.005 | E93: =ROUND(B93*D93,4) -> 0
A94: Arbeitstage Unternehmer Urproduktion | B94: =SUMIF(Zwischenspeicher!$D$2:$D$22,A94,Zwischenspeicher!$B$2:$B$22) -> 0 | C94: AT | D94: =Degression_Risiko!E29 -> 0.3484 | E94: =ROUND(B94*D94,4) -> 0
A95: Arbeitstage Mifa Urproduktion -o- | B95: =SUMIF(Zwischenspeicher!$D$2:$D$22,A95,Zwischenspeicher!$B$2:$B$22) -> 0 | C95: AT | D95: =ROUND(VLOOKUP(A95,Degression_Risiko!$A$4:$BZ$120,2,FALSE)/VLOOKUP(A95,Degression_Risiko!$A$4:$BZ$120,3,FALSE),4) ->  | E95: =ROUND(B95*D95,4) -> 
H96: Risikobeitrag: | I96: =SUM(I11:I91) -> 0 | K96: =SUM(K12:K94) -> 0
G97: Deckungsfaktor | K97: =SUM(K12:K17)+SUM(K20:K51) -> 0
A98: Grundbeitrag | D98: BER | E98: =IF(E$99>Hebesatz!J3,Hebesatz!J3,IF(E$99<Hebesatz!L3,Hebesatz!L3,E$99)) -> 87.5 | F98: =Hebesatz!$B$3 -> 7.83 | G98: =Hebesatz!D3 -> 0.124 | H98: =ROUND(E98*F98*G98,2) -> 84.96 | I98: =H98 -> 84.96
D99: Gesamt BER | E99: =E11+E14+SUM(E17:E18)+SUM(E23:E24)+SUM(E29:E30)+SUM(E32:E37)+SUM(E40:E41)+E44+E48+SUM(E53:E55)+E57+E60+SUM(E62:E67)+E68+SUM(E71:E73)+E76+SUM(E79:E81)+SUM(E85:E86)+E89+E91+E51 -> 0
A100: Gesamtbeitrag brutto | I100: =IF(I96=0,0,SUM(I96:I98)) -> 0
A102: abzgl. Bundesmittel | H102: =(Hebesatz!C3/100)*-1 -> -0.1545 | I102: =IF(Hebesatz!O3="", IF(Hebesatz!N3="",M102,IF(M102>Hebesatz!N3,Hebesatz!N3,M102)), IF(M102>Hebesatz!O3,0,IF(M102>Hebesatz!N3,Hebesatz!N3,M102))) -> 0 | J102: BUMI- voller Anspruch | M102: =IF(Eingabe!$G$11="x",0,IF(B3>=2014,ROUND(IF(G101<>"",M101,I96)*H102*-1,2),ROUND(I100*H102*-1,2))) -> 0 | N102: BUMI- voller Anspruch
A103: Gesamtbeitrag netto | I103: =IF(G101<>"",I100+I101,I100)-I102 -> 0 | J103: (Beitrag wenn voller BUMI-Anspruch) | M103: =M102-(I104-I103) -> 0 | N103: gezahlte Bumi
I104: =ROUND(IF(I103=0,0,IF(Eingabe!$G$10="x",I103,IF(IF(G101<>"",I100+I101,I100)<VLOOKUP(B3,Hebesatz!$A$3:$E$30,5,FALSE),IF(G101<>"",I100+I101,I100),IF(IF(G101<>"",I100+I101,I100)-I102<VLOOKUP(B3,Hebesatz!$A$3:$E$30,5,FALSE),VLOOKUP(B3,Hebesatz!$A$3:$E$30,5,FALSE),I103)))),2) -> 0 | J104: (Beitrag mit ggf. BUMI-Kappungsgrenze)
H106: Beitrag | I106: =I104 -> 0

Sheet Berechnung_UA02 (hidden)
A1: Beitragsberechnung SVLFG
A3: Jahr | B3: =Berechnung_UA01!B3 -> 2023
A7: Risikogruppe
A8: Produktionsverfahren
A9: Katasterart | B9: Menge | D9: BER je Einheit | E9: BER PV | F9: Hebesatz | G9: Risikogruppe | H9: Risikofaktor PV | I9: Beitrag
A10: Pferdehaltung
A11: Sport-,bzw. Turnier-, Renn-, Kutsch-, Schul- und Verleihpferde | B11: =SUMIF(Zwischenspeicher!$D$2:$D$22,A11,Zwischenspeicher!$B$2:$B$22) -> 0 | C11: Anz | D11: =Degression_Risiko!E45 -> 0 | E11: =ROUND(D11*$B$11,4) -> 0 | F11: =Hebesatz!$B$3 -> 7.83 | G11: =Degression_Risiko!J41 -> 1.4948 | H11: =Degression_Risiko!K45 -> 0.6019 | I11: =ROUND(E11*F11*G11*H11,2) -> 0
A12: Pensionstiere, Freizeitpferde | E12: =SUM(E13:E14) -> 0 | F12: =Hebesatz!$B$3 -> 7.83 | G12: =Degression_Risiko!J41 -> 1.4948 | H12: =Degression_Risiko!K46 -> 0.8426 | I12: =ROUND(E12*F12*G12*H12,2) -> 0
A13: Pensionstiere | B13: =SUMIF(Zwischenspeicher!$D$2:$D$22,A13,Zwischenspeicher!$B$2:$B$22) -> 0 | C13: Anz | D13: =Degression_Risiko!E46 -> 0 | E13: =ROUND(D13*$B$13,4) -> 0
A14: Freizeittiere | B14: =SUMIF(Zwischenspeicher!$D$2:$D$22,A14,Zwischenspeicher!$B$2:$B$22) -> 0 | C14: Anz | D14: =Degression_Risiko!E46 -> 0 | E14: =ROUND(D14*$B$14,4) -> 0
A15: Beherbergung/Verköstigung, Energiegewinnung, Handel/Verwaltung/Dienstleistung, Veredelung/Produktgewinnung (N1)
A16: Urlaub auf dem Bauernhof | B16: =SUMIF(Zwischenspeicher!$D$2:$D$22,A16,Zwischenspeicher!$B$2:$B$22) -> 0 | C16: BT | D16: =Degression_Risiko!E64 -> 0.1 | E16: =ROUND(D16*$B$16,4) -> 0 | F16: =Hebesatz!$B$3 -> 7.83 | G16: =Degression_Risiko!J63 -> 0.7343 | H16: =Degression_Risiko!K64 -> 0.8228 | I16: =ROUND(E16*F16*G16*H16,2) -> 0
A17: Abfindungsbrennerei | B17: =SUMIF(Zwischenspeicher!$D$2:$D$22,A17,Zwischenspeicher!$B$2:$B$22) -> 0 | C17: Ltr. | D17: =Degression_Risiko!E65 -> 0.025 | E17: =ROUND(D17*$B$17,4) -> 0 | F17: =Hebesatz!$B$3 -> 7.83 | G17: =Degression_Risiko!J63 -> 0.7343 | H17: =Degression_Risiko!K65 -> 2.534 | I17: 0
A18: Energiegewinnung | B18: =SUMIF(Zwischenspeicher!$D$2:$D$22,A18,Zwischenspeicher!$B$2:$B$22) -> 0 | C18: AT | D18: =Degression_Risiko!E66 -> 0.3 | E18: =ROUND(D18*$B$18,4) -> 0 | F18: =Hebesatz!$B$3 -> 7.83 | G18: =Degression_Risiko!J63 -> 0.7343 | H18: =Degression_Risiko!K66 -> 1.12 | I18: 0
A19: Beherbergung/Verköstigung | B19: =SUMIF(Zwischenspeicher!$D$2:$D$22,A19,Zwischenspeicher!$B$2:$B$22) -> 0 | C19: AT | D19: =Degression_Risiko!E67 -> 0.3 | E19: =ROUND(D19*$B$19,4) -> 0 | F19: =Hebesatz!$B$3 -> 7.83 | G19: =Degression_Risiko!J63 -> 0.7343 | H19: =Degression_Risiko!K67 -> 0.8228 | I19: 0
A20: Handel / Verwaltung / Dienstleistungen | B20: =SUMIF(Zwischenspeicher!$D$2:$D$22,A20,Zwischenspeicher!$B$2:$B$22) -> 0 | C20: AT | D20: =Degression_Risiko!E68 -> 0.3 | E20: =ROUND(D20*$B$20,4) -> 0 | F20: =Hebesatz!$B$3 -> 7.83 | G20: =Degression_Risiko!J63 -> 0.7343 | H20: =Degression_Risiko!K68 -> 0.8335 | I20: 0
A21: Veredelung / Produktgewinnung | B21: =SUMIF(Zwischenspeicher!$D$2:$D$22,A21,Zwischenspeicher!$B$2:$B$22) -> 0 | C21: AT | D21: =Degression_Risiko!E69 -> 0.3 | E21: =ROUND(D21*$B$21,4) -> 0 | F21: =Hebesatz!$B$3 -> 7.83 | G21: =Degression_Risiko!J63 -> 0.7343 | H21: =Degression_Risiko!K69 -> 1.3436 | I21: 0
A22: Biogasproduktion je produzierter MWh Strom pro Jahr NU | B22: =SUMIF(Zwischenspeicher!$D$2:$D$22,A22,Zwischenspeicher!$B$2:$B$22) -> 0 | C22: MWh | D22: =Degression_Risiko!E70 -> 0 | E22: =ROUND($B$22*D22,4) -> 0 | F22: =Hebesatz!$B$3 -> 7.83 | G22: =Degression_Risiko!J63 -> 0.7343 | H22: =Degression_Risiko!K70 -> 1.12 | I22: =ROUND(E22*F22*G22*H22,2) -> 0 | K22: Biogasproduktion je produzierter MWhStrom pro Jahr
A23: Handwerksbetriebe, Hoch- und Tiefbauunternehmen, Transport- und Fuhrunternehmen (N2)
A24: Handwerk | B24: =SUMIF(Zwischenspeicher!$D$2:$D$22,A24,Zwischenspeicher!$B$2:$B$22) -> 0 | C24: AT | D24: =VLOOKUP($A$24,Degression_Risiko!$A$4:$BZ$120,2,FALSE) -> 0.3 | E24: =ROUND(D24*$B$24,4) -> 0 | F24: =Hebesatz!$B$3 -> 7.83 | G24: =Degression_Risiko!J71 -> 2.3327 | H24: =Degression_Risiko!K72 -> 1.394 | I24: =ROUND(E24*F24*G24*H24,2) -> 0
A25: Transport- und Fuhrunternehmen | B25: =SUMIF(Zwischenspeicher!$D$2:$D$22,A25,Zwischenspeicher!$B$2:$B$22) -> 0 | C25: AT | D25: =VLOOKUP($A$25,Degression_Risiko!$A$4:$BZ$120,2,FALSE) -> 0.3 | E25: =ROUND(D25*$B$25,4) -> 0 | F25: =Hebesatz!$B$3 -> 7.83 | G25: =Degression_Risiko!J71 -> 2.3327 | H25: =Degression_Risiko!K73 -> 0.9819 | I25: =ROUND(E25*F25*G25*H25,2) -> 0
A26: Hoch- und Tiefbau | B26: =SUMIF(Zwischenspeicher!$D$2:$D$22,A26,Zwischenspeicher!$B$2:$B$22) -> 0 | C26: AT | D26: =VLOOKUP($A$26,Degression_Risiko!$A$4:$BZ$120,2,FALSE) -> 0.3 | E26: =ROUND(D26*$B$26,4) -> 0 | F26: =Hebesatz!$B$3 -> 7.83 | G26: =Degression_Risiko!J71 -> 2.3327 | H26: =Degression_Risiko!K74 -> 0.7812 | I26: =ROUND(E26*F26*G26*H26,2) -> 0
A29: Gesamtbeitrag | E29: =SUM(E16:E26)+E11+E12 -> 0 | I29: =SUM(I11:I26) -> 0

Sheet Berechnung_UA04 (hidden)
A1: Beitragsberechnung SVLFG
A3: Jahr | B3: =Berechnung_UA01!B3 -> 2023
A7: Risikogruppe
A8: Produktionsverfahren
A9: Katasterart | B9: Menge | D9: BER je Einheit | E9: BER PV | F9: Hebesatz | G9: Risikogruppe | H9: Risikofaktor PV | I9: Beitrag
A10: Rinderhaltung
A11: Milchkühe, Deckbullen | B11: =SUMIF(Zwischenspeicher!$D$2:$D$22,A11&"_T",Zwischenspeicher!$B$2:$B$22) -> 0 | C11: Anz | D11: =Degression_Risiko!E35 -> 0 | E11: =ROUND(B11*D11,4) -> 0 | F11: =Hebesatz!$B$3 -> 7.83 | G11: =Degression_Risiko!J34 -> 1.1085 | H11: =Degression_Risiko!K35 -> 0.912 | I11: =ROUND(E11*F11*G11*H11,2) -> 0
A12: Mutterkühe | B12: =SUMIF(Zwischenspeicher!$D$2:$D$22,A12&"_T",Zwischenspeicher!$B$2:$B$22) -> 0 | C12: Anz | D12: =Degression_Risiko!E36 -> 0 | E12: =ROUND(B12*D12,4) -> 0 | F12: =Hebesatz!$B$3 -> 7.83 | G12: =Degression_Risiko!J34 -> 1.1085 | H12: =Degression_Risiko!K36 -> 1.1807 | I12: =ROUND(E12*F12*G12*H12,2) -> 0
A13: Sonstige Rinder | B13: =SUMIF(Zwischenspeicher!$D$2:$D$22,A13&"_T",Zwischenspeicher!$B$2:$B$22) -> 0 | C13: Anz | D13: =Degression_Risiko!E37 -> 0 | E13: =ROUND(B13*D13,4) -> 0 | F13: =Hebesatz!$B$3 -> 7.83 | G13: =Degression_Risiko!J34 -> 1.1085 | H13: =Degression_Risiko!K37 -> 1.2235 | I13: =ROUND(E13*F13*G13*H13,2) -> 0
A14: Schweinehaltung
A15: Schweinemast, Ferkelaufzucht, Jungsauenaufzucht | E15: =SUM(E16:E17) -> 0 | F15: =Hebesatz!$B$3 -> 7.83 | G15: =Degression_Risiko!J38 -> 1.1936 | H15: =Degression_Risiko!K39 -> 1.1864 | I15: =ROUND(E15*F15*G15*H15,2) -> 0
A16: Schweinemast | B16: =SUMIF(Zwischenspeicher!$D$2:$D$22,A16&"_T",Zwischenspeicher!$B$2:$B$22) -> 0 | C16: Anz | D16: =Degression_Risiko!E39 -> 0 | E16: =ROUND(B16*D16,4) -> 0
A17: Ferkelaufzucht | B17: =SUMIF(Zwischenspeicher!$D$2:$D$22,A17&"_T",Zwischenspeicher!$B$2:$B$22) -> 0 | C17: Anz | D17: =Degression_Risiko!E39 -> 0 | E17: =ROUND(B17*D17,4) -> 0
A18: Sauenhaltung | B18: =SUMIF(Zwischenspeicher!$D$2:$D$22,A18&"_T",Zwischenspeicher!$B$2:$B$22) -> 0 | C18: Anz | D18: =Degression_Risiko!E40 -> 0 | E18: =ROUND(B18*D18,4) -> 0 | F18: =Hebesatz!$B$3 -> 7.83 | G18: =Degression_Risiko!J38 -> 1.1936 | H18: =Degression_Risiko!K40 -> 0.7201 | I18: =ROUND(E18*F18*G18*H18,2) -> 0
A19: Unternehmen der sonstigen Tierhaltung
A20: Legehennen | B20: =SUMIF(Zwischenspeicher!$D$2:$D$22,A20&"_T",Zwischenspeicher!$B$2:$B$22) -> 0 | C20: Anz | D20: =Degression_Risiko!E48 -> 0 | E20: =ROUND(B20*D20,4) -> 0 | F20: =Hebesatz!$B$3 -> 7.83 | G20: =Degression_Risiko!J47 -> 1.1197 | H20: =Degression_Risiko!K48 -> 1.0658 | I20: =ROUND(E20*F20*G20*H20,2) -> 0
A21: Junghennenaufzucht | B21: =SUMIF(Zwischenspeicher!$D$2:$D$22,A21&"_T",Zwischenspeicher!$B$2:$B$22) -> 0 | C21: Anz | D21: =Degression_Risiko!E49 -> 0 | E21: 0 | F21: =Hebesatz!$B$3 -> 7.83 | G21: =Degression_Risiko!J47 -> 1.1197 | H21: =Degression_Risiko!K49 -> 0.7136 | I21: 0
A22: Masthühner | B22: =SUMIF(Zwischenspeicher!$D$2:$D$22,A22&"_T",Zwischenspeicher!$B$2:$B$22) -> 0 | C22: Anz | D22: =Degression_Risiko!E50 -> 0 | E22: 0 | F22: =Hebesatz!$B$3 -> 7.83 | G22: =Degression_Risiko!J47 -> 1.1197 | H22: =Degression_Risiko!K50 -> 0.7499 | I22: 0
A23: Masthühner Tst | B23: =SUMIF(Zwischenspeicher!$D$2:$D$22,LEFT(A23,10)&" (ohne Bodenbewirtschaftung)_Tst",Zwischenspeicher!$B$2:$B$22) -> 0 | C23: Anz | D23: =Degression_Risiko!E51 -> 0 | E23: =ROUND(B23*1000*D23,4) -> 0 | F23: =Hebesatz!$B$3 -> 7.83 | G23: =Degression_Risiko!J47 -> 1.1197 | H23: =Degression_Risiko!K51 -> 0.7499 | I23: =ROUND(E23*F23*G23*H23,2) -> 0
A24: Mastenten | B24: =SUMIF(Zwischenspeicher!$D$2:$D$22,A24&"_T",Zwischenspeicher!$B$2:$B$22) -> 0 | C24: Anz | D24: =Degression_Risiko!E52 -> 0 | E24: 0 | F24: =Hebesatz!$B$3 -> 7.83 | G24: =Degression_Risiko!J47 -> 1.1197 | H24: =Degression_Risiko!K52 -> 3.4474 | I24: =ROUND(E24*F24*G24*H24,2) -> 0
A25: Mastgänse | B25: =SUMIF(Zwischenspeicher!$D$2:$D$22,A25&"_T",Zwischenspeicher!$B$2:$B$22) -> 0 | C25: Anz | D25: =Degression_Risiko!E53 -> 0 | E25: 0 | F25: =Hebesatz!$B$3 -> 7.83 | G25: =Degression_Risiko!J47 -> 1.1197 | H25: =Degression_Risiko!K53 -> 1.5409 | I25: 0
A26: Mastputen | B26: =SUMIF(Zwischenspeicher!$D$2:$D$22,A26&"_T",Zwischenspeicher!$B$2:$B$22) -> 0 | C26: Anz | D26: =Degression_Risiko!E54 -> 0 | E26: 0 | F26: =Hebesatz!$B$3 -> 7.83 | G26: =Degression_Risiko!J47 -> 1.1197 | H26: =Degression_Risiko!K54 -> 0.8665 | I26: 0
A27: Fleischschafe und -ziegen | B27: =SUMIF(Zwischenspeicher!$D$2:$D$22,A27&"_T",Zwischenspeicher!$B$2:$B$22) -> 0 | C27: Anz | D27: =Degression_Risiko!E55 -> 0 | E27: =ROUND(B27*D27,4) -> 0 | F27: =Hebesatz!$B$3 -> 7.83 | G27: =Degression_Risiko!J47 -> 1.1197 | H27: =Degression_Risiko!K55 -> 1.024 | I27: =ROUND(E27*F27*G27*H27,2) -> 0
A28: Milchschafe und -ziegen | B28: =SUMIF(Zwischenspeicher!$D$2:$D$22,A28&"_T",Zwischenspeicher!$B$2:$B$22) -> 0 | C28: Anz | D28: =Degression_Risiko!E56 -> 0 | E28: =ROUND(B28*D28,4) -> 0 | F28: =Hebesatz!$B$3 -> 7.83 | G28: =Degression_Risiko!J47 -> 1.1197 | H28: =Degression_Risiko!K56 -> 0.3768 | I28: =ROUND(E28*F28*G28*H28,2) -> 0
A29: Kaninchenhaltung | B29: =SUMIF(Zwischenspeicher!$D$2:$D$22,A29&"_T",Zwischenspeicher!$B$2:$B$22) -> 0 | C29: Anz | D29: =Degression_Risiko!E57 -> 0 | E29: =ROUND(B29*D29,4) -> 0 | F29: =Hebesatz!$B$3 -> 7.83 | G29: =Degression_Risiko!J47 -> 1.1197 | H29: =Degression_Risiko!K57 -> 1.058 | I29: =ROUND(E29*F29*G29*H29,2) -> 0
A30: Pferdehaltung
A31: Deckhengste ohne Sporteinsatz | B31: =IF(B3<2018,SUMIF(Zwischenspeicher!$D$2:$D$22,A31&"_T",Zwischenspeicher!$B$2:$B$22),0) -> 0 | C31: Anz | D31: =Degression_Risiko!E42 -> 0 | E31: =ROUND(B31*D31,4) -> 0 | F31: =Hebesatz!$B$3 -> 7.83 | G31: =Degression_Risiko!J41 -> 1.4948 | H31: =Degression_Risiko!K42 -> 0 | I31: =ROUND(E31*F31*G31*H31,2) -> 0
A32: Zuchtstuten, Hengste, Aufzucht, Arbeits- und Gnadenbrottiere | E32: =SUM(E33:E34) -> 0 | F32: =Hebesatz!$B$3 -> 7.83 | G32: =Degression_Risiko!J41 -> 1.4948 | H32: =Degression_Risiko!K43 -> 1.578 | I32: =ROUND(E32*F32*G32*H32,2) -> 0
A33: Zuchtstuten sowie Aufzucht-, Arbeits- und Gnadenbrottiere | B33: =SUMIF(Zwischenspeicher!$D$2:$D$22,A33&"_T",Zwischenspeicher!$B$2:$B$22) -> 0 | C33: Anz | D33: =Degression_Risiko!E43 -> 0 | E33: =ROUND(B33*D33,4) -> 0 | F33: =Hebesatz!$B$3 -> 7.83 | G33: =Degression_Risiko!J41 -> 1.4948 | H33: =Degression_Risiko!K43 -> 1.578
A34: Deckhengste ohne Sporteinsatz | B34: =IF(B3>2017,SUMIF(Zwischenspeicher!$D$2:$D$22,A34&"_T",Zwischenspeicher!$B$2:$B$22),0) -> 0 | C34: Anz | D34: =Degression_Risiko!E43 -> 0 | E34: =ROUND(B34*D34,4) -> 0
A35: Traber und Galopper | B35: =SUMIF(Zwischenspeicher!$D$2:$D$22,A35&"_T",Zwischenspeicher!$B$2:$B$22) -> 0 | C35: Anz | D35: =Degression_Risiko!E44 -> 0 | E35: =ROUND(B35*D35,4) -> 0 | F35: =Hebesatz!$B$3 -> 7.83 | G35: =Degression_Risiko!J41 -> 1.4948 | H35: =Degression_Risiko!K44 -> 0.6019 | I35: =ROUND(E35*F35*G35*H35,2) -> 0
I37: =SUM(I11:I36) -> 0
G38: Deckungsfaktor
A39: Grundbeitrag | D39: BER | E39: =IF(E40>Hebesatz!J3,Hebesatz!J3,IF(E40<Hebesatz!L3,Hebesatz!L3,E40)) -> 87.5 | F39: =Hebesatz!B3 -> 7.83 | G39: =Hebesatz!D3 -> 0.124 | H39: =ROUND(E39*F39*G39,2) -> 84.96 | I39: =H39 -> 84.96
D40: Gesamt BER | E40: =SUM(E11:E13)+E15+E18+SUM(E20:E29)+E31+E32+E35 -> 0
A41: Gesamtbeitrag brutto | I41: =IF(I37=0,0,ROUND(SUM(I37:I39),2)) -> 0

Sheet Berechnung_UA05 (hidden)
A1: Beitragsberechnung SVLFG
D3: Jahr | E3: =Berechnung_UA01!B3 -> 2023
A4: Risikogruppe
A5: Produktionsverfahren
A6: Katasterart | B6: Menge | D6: BER je Einheit | E6: BER PV | F6: Hebesatz | G6: Risikogruppe | H6: Risikofaktor PV | I6: Beitrag
A8: Jagdunternehmen
A9: bejagbare Fläche | B9: =SUMIF(Zwischenspeicher!$D$2:$D$22,A9,Zwischenspeicher!$B$2:$B$22) -> 0 | C9: ha | D9: =Degression_Risiko!E76 -> 0.05 | E9: =ROUND($B$9*D9,4) -> 0 | F9: =Hebesatz!$B$3 -> 7.83 | G9: =Degression_Risiko!J75 -> 1.8911 | H9: =Degression_Risiko!K76 -> 1 | I9: =ROUND(E9*F9*G9*H9,2) -> 0
A10: Jagd landwirtschaftlicher Unternehmer | B10: =SUMIF(Zwischenspeicher!$D$2:$D$22,A10,Zwischenspeicher!$B$2:$B$22) -> 0 | C10: ha | D10: =Degression_Risiko!E77 -> 0.04 | E10: =ROUND(B10*D10,4) -> 0 | F10: =Hebesatz!$B$3 -> 7.83 | G10: =Degression_Risiko!J75 -> 1.8911 | H10: =Degression_Risiko!K77 -> 1 | I10: =ROUND(E10*F10*G10*H10,2) -> 0
I13: =SUM(I9:I10) -> 0
G14: Deckungsfaktor
A15: Grundbeitrag | D15: BER | E15: =IF(E16>Hebesatz!J3,Hebesatz!J3,IF(E16<Hebesatz!L3,Hebesatz!L3,E16)) -> 87.5 | F15: =Hebesatz!B3 -> 7.83 | G15: =Hebesatz!D3 -> 0.124 | H15: =ROUND(E15*F15*G15,2) -> 84.96 | I15: =H15 -> 84.96
D16: Gesamt BER | E16: =E9+E10 -> 0
A17: Gesamtbeitrag | I17: =IF(I13=0,0,SUM(I13:I15)) -> 0

Sheet Berechnung_UA06 (hidden)
A1: Beitragsberechnung SVLFG
A3: Jahr | B3: =Berechnung_UA01!B3 -> 2023
A7: Risikogruppe
A8: Produktionsverfahren
A9: Katasterart | B9: Menge | D9: BER je Einheit | E9: BER PV | F9: Hebesatz | G9: Risikogruppe | H9: Risikofaktor PV | I9: Beitrag
A10: Lohnunternehmen einschließlich der Unternehmen des Garten- und Landschaftsbaus
A11: Landw. Lohnunternehmen | E11: =SUM(E12:E14) -> 0 | F11: =Hebesatz!$B$3 -> 7.83 | G11: =Degression_Risiko!J78 -> 0.5582 | H11: =Degression_Risiko!K79 -> 0.8063 | I11: =ROUND(E11*F11*G11*H11,2) -> 0
A12: Arbeitsentgelt landw. Lohnunternehmen | B12: =SUMIF(Zwischenspeicher!$D$2:$D$22,A12,Zwischenspeicher!$B$2:$B$22) -> 0 | C12: € | D12: =Degression_Risiko!E80 -> 0.005 | E12: =ROUND(B12*D12,4) -> 0
A13: Arbeitstage Unternehmer landw. Lohnunternehmen | B13: =SUMIF(Zwischenspeicher!$D$2:$D$22,A13,Zwischenspeicher!$B$2:$B$22) -> 0 | C13: AT | D13: =Degression_Risiko!E81 -> 0.3484 | E13: =ROUND(B13*D13,4) -> 0
A14: Arbeitstage Mifa landw. Lohnunternehmen | B14: =SUMIF(Zwischenspeicher!$D$2:$D$22,A14,Zwischenspeicher!$B$2:$B$22) -> 0 | C14: AT | D14: =Degression_Risiko!E82 -> 0.5555 | E14: =ROUND(B14*D14,4) -> 0
A16: Forstw. Lohnunternehmen | E16: =SUM(E17:E19) -> 0 | F16: =Hebesatz!$B$3 -> 7.83 | G16: =Degression_Risiko!J78 -> 0.5582 | H16: =Degression_Risiko!K83 -> 1.9121 | I16: =ROUND(E16*F16*G16*H16,2) -> 0
A17: Arbeitsentgelt forstw. Lohnunternehmen | B17: =SUMIF(Zwischenspeicher!$D$2:$D$22,A17,Zwischenspeicher!$B$2:$B$22) -> 0 | C17: € | D17: =Degression_Risiko!E84 -> 0.005 | E17: =ROUND(B17*D17,4) -> 0
A18: Arbeitstage Unternehmer forstw. Lohnunternehmen | B18: =SUMIF(Zwischenspeicher!$D$2:$D$22,A18,Zwischenspeicher!$B$2:$B$22) -> 0 | C18: AT | D18: =Degression_Risiko!E85 -> 0.3484 | E18: =ROUND(B18*D18,4) -> 0
A19: Arbeitstage Mifa forstw. Lohnunternehmen | B19: =SUMIF(Zwischenspeicher!$D$2:$D$22,A19,Zwischenspeicher!$B$2:$B$22) -> 0 | C19: AT | D19: =Degression_Risiko!E86 -> 0.5555 | E19: =ROUND(B19*D19,4) -> 0
I22: =SUM(I11:I18) -> 0
G23: Deckungsfaktor
A24: Grundbeitrag | D24: BER | E24: =IF(E$25>Hebesatz!J3,Hebesatz!J3,IF(E25<Hebesatz!L3,Hebesatz!L3,E25)) -> 87.5 | F24: =Hebesatz!$B$3 -> 7.83 | G24: =VLOOKUP(B3,Hebesatz!$A$3:$D$9,4,FALSE) -> 0.124 | H24: =ROUND(E24*F24*G24,2) -> 84.96 | I24: =H24 -> 84.96
D25: Gesamt BER | E25: =E11+E16 -> 0
A26: Gesamtbeitrag | I26: =IF(I22=0,0,SUM(I22:I24)) -> 0

Sheet Berechnung_UA07 (hidden)
A1: Beitragsberechnung SVLFG
A3: Jahr | B3: =Berechnung_UA01!B3 -> 2023
A7: Risikogruppe
A8: Produktionsverfahren
A9: Katasterart | B9: Menge | D9: BER je Einheit | E9: BER PV | F9: Hebesatz | G9: Risikogruppe | H9: Risikofaktor | I9: Beitrag
A10: Beherbergung/Verköstigung, Energiegewinnung, Handel/Verwaltung/Dienstleistung, Veredelung/Produktgewinnung (N1)
A11: Biogasproduktion je produzierter MWhStrom pro Jahr | B11: =SUMIF(Zwischenspeicher!$D$2:$D$22,A11,Zwischenspeicher!$B$2:$B$22) -> 0 | C11: MWh | D11: =Degression_Risiko!E70 -> 0 | E11: =ROUND($B$11*D11,4) -> 0 | F11: =Hebesatz!$B$3 -> 7.83 | G11: =Degression_Risiko!J63 -> 0.7343 | H11: =Degression_Risiko!K70 -> 1.12 | I11: =ROUND(E11*F11*G11*H11,2) -> 0
A13: Sonstige Unternehmen: Landwirtschaftskammern, Berufsverbände der Landw., Unternehmen, die unmittelbar der Sicherung, Überwachung oder Förderung der Landwirtschaft überwiegend dienen (ohne Unternehmen der Energiegewinnung), SVLFG, ZLA, ZLF, REHA-Fälle
A14: USF | E14: =SUM(E15:E18) -> 0 | F14: =Hebesatz!$B$3 -> 7.83 | G14: =Degression_Risiko!J97 -> 0.2576 | H14: =Degression_Risiko!K98 -> 1.2071 | I14: =ROUND(E14*F14*G14*H14,2) -> 0
A15: Arbeitsentgelt USF | B15: =SUMIF(Zwischenspeicher!$D$2:$D$22,A15,Zwischenspeicher!$B$2:$B$22) -> 0 | C15: € | D15: =Degression_Risiko!E99 -> 0.005 | E15: =ROUND($B$15*D15,4) -> 0
A16: Arbeitstage Unternehmer USF | B16: =SUMIF(Zwischenspeicher!$D$2:$D$22,A16,Zwischenspeicher!$B$2:$B$22) -> 0 | C16: AT | D16: =Degression_Risiko!E100 -> 0.3484 | E16: =ROUND($B$16*D16,4) -> 0
A17: Personen ehrenamtlich tätig - USF | B17: =SUMIF(Zwischenspeicher!$D$2:$D$22,A17,Zwischenspeicher!$B$2:$B$22) -> 0 | C17: ANZ | D17: =Degression_Risiko!E101 -> 0.5 | E17: =ROUND($B$17*D17,4) -> 0
A18: Arbeitstage Mifa USF | B18: =SUMIF(Zwischenspeicher!$D$2:$D$22,A18,Zwischenspeicher!$B$2:$B$22) -> 0 | C18: AT | D18: =Degression_Risiko!E102 -> 0.5555 | E18: =ROUND($B$18*D18,4) -> 0
I20: =SUM(I11:I17) -> 0
G21: Deckungsfaktor
A22: Grundbeitrag | D22: BER | E22: =IF(E$23>Hebesatz!J3,Hebesatz!J3,IF(E23<Hebesatz!L3,Hebesatz!L3,E23)) -> 87.5 | F22: =Hebesatz!$B$3 -> 7.83 | G22: =Hebesatz!D3 -> 0.124 | H22: =ROUND(E22*F22*G22,2) -> 84.96 | I22: =H22 -> 84.96
D23: Gesamt BER | E23: =E11+E14 -> 0
A24: Gesamtbeitrag | I24: =IF(I20=0,0,SUM(I20:I22)) -> 0

Sheet Berechnung_UA09 (hidden)
A1: Beitragsberechnung SVLFG
A3: Jahr | B3: =Berechnung_UA01!B3 -> 2023
A7: Risikogruppe
A8: Produktionsverfahren
A9: Katasterart | B9: Menge | D9: BER je Einheit | E9: BER PV | F9: Hebesatz | G9: Risikogruppe | H9: Risikofaktor PV | I9: Beitrag
A10: Sonstige Unternehmen: Landwirtschaftskammern, Berufsverbände der Landw., Unternehmen, die unmittelbar der Sicherung, Überwachung oder Förderung der Landwirtschaft überwiegend dienen (ohne Unternehmen der Energiegewinnung), SVLFG, ZLA, ZLF, REHA-Fälle
A11: Verbände | E11: =SUM(E12:E13) -> 0 | F11: =Hebesatz!B3 -> 7.83 | G11: =Degression_Risiko!J97 -> 0.2576 | H11: =Degression_Risiko!K108 -> 0.7927 | I11: =ROUND(E11*F11*G11*H11,2) -> 0
A12: Arbeitsentgelt Beschäftigte Verbände | B12: =SUMIF(Zwischenspeicher!$D$2:$D$22,A12,Zwischenspeicher!$B$2:$B$22) -> 0 | C12: € | D12: =Degression_Risiko!E109 -> 0.005 | E12: =ROUND(B12*D12,4) -> 0
A13: Personen ehrenamtlich tätig - Verband | B13: =SUMIF(Zwischenspeicher!$D$2:$D$22,A13,Zwischenspeicher!$B$2:$B$22) -> 0 | C13: ANZ | D13: =Degression_Risiko!E110 -> 0.5 | E13: =ROUND(B13*D13,4) -> 0
I14: =SUM(I11:I11) -> 0
G15: Deckungsfaktor
A16: Grundbeitrag | D16: BER | E16: =IF(E$17>Hebesatz!J3,Hebesatz!J3,IF(E17<Hebesatz!L3,Hebesatz!L3,E17)) -> 87.5 | F16: =VLOOKUP(B3,Hebesatz!$A$3:$B$9,2,FALSE) -> 7.83 | G16: =VLOOKUP(B3,Hebesatz!$A$3:$D$9,4,FALSE) -> 0.124 | H16: =ROUND(E16*F16*G16,2) -> 84.96 | I16: =H16 -> 84.96
D17: Gesamt BER | E17: =E11 -> 0
A18: Gesamtbeitrag | I18: =IF(I11=0,0,SUM(I14:I16)) -> 0

Sheet Berechnung_UA50 (hidden)
A1: Beitragsberechnung SVLFG
A3: Jahr | B3: =Berechnung_UA01!B3 -> 2023
A7: Risikogruppe
A8: Produktionsverfahren
A9: Katasterart | B9: Menge | D9: BER je Einheit | E9: BER PV | F9: Hebesatz | G9: Risikogruppe | H9: Risikofaktor PV | I9: Beitrag
A10: Lohnunternehmen einschließlich der Unternehmen des Garten- und Landschaftsbaus
A11: Unternehmen des Garten- und Landschaftsbaus | E11: =SUM(E12:E14) -> 0 | F11: =Hebesatz!$B$3 -> 7.83 | G11: =Degression_Risiko!J78 -> 0.5582 | H11: =Degression_Risiko!K87 -> 0.964 | I11: =ROUND(E11*F11*G11*H11,2) -> 0
A12: Arbeitstage Unternehmer Galabau | B12: =SUMIF(Zwischenspeicher!$D$2:$D$22,A12,Zwischenspeicher!$B$2:$B$22) -> 0 | C12: AT | D12: =Degression_Risiko!E88 -> 0.3484 | E12: =ROUND($B$12*D12,4) -> 0
A13: Arbeitsentgelt Galabau | B13: =SUMIF(Zwischenspeicher!$D$2:$D$22,A13,Zwischenspeicher!$B$2:$B$22) -> 0 | C13: € | D13: =Degression_Risiko!E89 -> 0.005 | E13: =ROUND($B$13*D13,4) -> 0
A14: Arbeitstage Mifa Galabau | B14: =SUMIF(Zwischenspeicher!$D$2:$D$22,A14,Zwischenspeicher!$B$2:$B$22) -> 0 | C14: AT | D14: =Degression_Risiko!E90 -> 0.5555 | E14: =ROUND($B$14*D14,4) -> 0
A16: Unternehmen der Park- und Gartenpflege, Friedhöfe sowie Haus- und Ziergärten | E16: =SUM(E17:E20) -> 0 | F16: =Hebesatz!$B$3 -> 7.83 | G16: =Degression_Risiko!J91 -> 0.3132 | H16: =Degression_Risiko!K91 -> 1 | I16: =ROUND(E16*F16*G16*H16,2) -> 0
A17: Arbeitstage Unternehmer Park- u. Gartenpflege/Friedhof/Sonstige | B17: =SUMIF(Zwischenspeicher!$D$2:$D$22,A17,Zwischenspeicher!$B$2:$B$22) -> 0 | C17: AT | D17: =Degression_Risiko!E93 -> 0.3484 | E17: =ROUND($B$17*D17,4) -> 0
A18: Arbeitsentgelt Park- und Gartenpflege/Friedhof/Sonstige | B18: =SUMIF(Zwischenspeicher!$D$2:$D$22,A18,Zwischenspeicher!$B$2:$B$22) -> 0 | C18: € | D18: =Degression_Risiko!E94 -> 0.005 | E18: =ROUND($B$18*D18,4) -> 0
A19: Arbeitstage Mifa PGpfl | B19: =SUMIF(Zwischenspeicher!$D$2:$D$22,A19,Zwischenspeicher!$B$2:$B$22) -> 0 | C19: AT | D19: =Degression_Risiko!E95 -> 0.5555 | E19: =ROUND($B$19*D19,4) -> 0
A20: Personen ehrenamtlich tätig - Park- und Gartenpflege/Friedhof/Sonstige | B20: =SUMIF(Zwischenspeicher!$A$2:$A$22,A20,Zwischenspeicher!$B$2:$B$22) -> 0 | C20: AT | D20: =Degression_Risiko!E96 -> 0.5 | E20: =ROUND($B$20*D20,4) -> 0
I21: =I11+I16 -> 0
G22: Deckungsfaktor
A23: Grundbeitrag | D23: BER | E23: =IF(E$24>Hebesatz!J3,Hebesatz!J3,IF(E24<Hebesatz!L3,Hebesatz!L3,E24)) -> 87.5 | F23: =Hebesatz!$B$3 -> 7.83 | G23: =Hebesatz!D3 -> 0.124 | H23: =ROUND(E23*F23*G23,2) -> 84.96 | I23: =H23 -> 84.96
D24: Gesamt BER | E24: =E11+E16 -> 0
A25: Gesamtbeitrag | I25: =IF(I21=0,0,SUM(I21:I23)) -> 0

Sheet Hebesatz (hidden)
A1: Wertetabelle | F1: JAV | H1: Ost | I1: West | J1: Grundbeitrag | N1: Bumi Kappungsgrenze | O1: Bumi Ausschlussgrenze
A2: Jahr | B2: Hebesatz | C2: Bundesmittel | D2: Deckungsfaktor Grundbeitrag | E2: Fließgruppe | F2: JAV Unternehmer | G2: JAV Mifa | H2: JAV Mifa | I2: JAV Mifa | J2: Höchstgrenze(BER) | K2: Höchstgrenze(€) | L2: Mindestgrenze(BER) | M2: Mindestgrenze(€)
A3: 2023 | B3: 7.83 | C3: 15.45 | D3: 0.124 | E3: 305 | F3: 15331.73 | G3: =IF(Eingabe!$C$11="w",I3,H3) -> 24444 | H3: 23688 | I3: 24444 | J3: 350 | K3: =ROUND(J3*B3*D3,2) -> 339.82 | L3: 87.5 | M3: =L3*D3*B3 -> 84.9555 | N3: 20000 | O3: 50000
N27: 80 | O27: 81

Sheet Degression_Risiko (hidden)
A1: a = Konstante, Basiswert, Multiplikator
A2: b = Deg.Faktor, Additionsfaktor, Multiplikationsfaktor | B2: =Berechnung_UA01!B3 -> 2023
B3: BER Bereich je Einheit | D3: Menge | E3: ="BER "&B2 -> BER 2023 | F3: a | G3: b | H3: Untergrenze | I3: Obergrenze | J3: ="Risikogruppe "&B2 -> Risikogruppe 2023 | K3: ="Risikofaktor PV "&B2 -> Risikofaktor PV 2023
A4: Ackerbau | B4: von | C4: bis | J4: 1.8456
A5: Mähdrusch, Zuckerrüben | B5: =ROUND(F5*H5^G5,4) -> 1.4495 | C5: =ROUND(F5*I5^G5,4) -> 0.6155 | D5: =SUM(Berechnung_UA01!$B$12:$B$13) -> 0 | E5: =IF(D5=0,0, IF(D5<H5,B5, IF(AND(D5>=H5,D5<=I5),ROUND(F5*D5^G5,4), C5) )) -> 0 | F5: 1.4495 | G5: -0.124 | H5: 1 | I5: 1000 | K5: 1.0993
A6: Futterbau und Bioenergiepflanzen | B6: =ROUND(F6*H6^G6,4) -> 1.7795 | C6: =ROUND(F6*I6^G6,4) -> 1.0132 | D6: =SUM(Berechnung_UA01!$B$15:$B$16) -> 0 | E6: =IF(D6=0,0, IF(D6<H6,B6, IF(AND(D6>=H6,D6<=I6),ROUND(F6*D6^G6,4), C6) )) -> 0 | F6: 1.7795 | G6: -0.094 | H6: 1 | I6: 400 | K6: 0.6261
A7: Kartoffeln | B7: 5.7008 | C7: 1.3265 | D7: =Berechnung_UA01!$B$17 -> 0 | E7: =IF(D7=0,0, IF(D7<H7,B7, IF(AND(D7>=H7,D7<=I7),ROUND(F7*D7^G7,4), C7) )) -> 0 | F7: 5.7008 | G7: -0.291 | H7: 1 | I7: 150 | K7: 2.0716
A8: Aus der Produktion genommene Flächen | B8: 0.448 | C8: 0.1215 | D8: =SUM(Berechnung_UA01!$B$19:$B$21) -> 0 | E8: =IF(D8=0,0, IF(D8<H8,B8, IF(AND(D8>=H8,D8<=I8),ROUND(F8*D8^G8,4), C8) )) -> 0 | F8: 0.448 | G8: -0.21 | H8: 1 | I8: 500 | K8: 0.7817
A9: Grünland_RK | J9: 3.0344
A10: Almen, Alpen, Hutungen | B10: 0.345 | C10: 0.2343 | D10: =Berechnung_UA01!$B$23 -> 0 | E10: =IF(D10=0,0, IF(D10<H10,B10, IF(AND(D10>=H10,D10<=I10),ROUND(F10*D10^G10,4), C10) )) -> 0 | F10: 0.345 | G10: -0.073 | H10: 1 | I10: 200 | K10: 0.9957
A11: Grünland_PV | B11: 1.7257 | C11: 0.8575 | D11: =SUM(Berechnung_UA01!$B$25:$B$27) -> 0 | E11: =IF(D11=0,0, IF(D11<H11,B11, IF(AND(D11>=H11,D11<=I11),ROUND(F11*D11^G11,4), C11) )) -> 0 | F11: 1.7257 | G11: -0.132 | H11: 1 | I11: 200 | K11: 1
A12: Weinbau | J12: 0.3995
A13: Ausschließliche Traubenproduktion | B13: =ROUND(F13*H13+G13,4) -> 52.076 | C13: =ROUND(F13*I13+G13,4) -> 41.36 | D13: =Berechnung_UA01!$B$29 -> 0 | E13: =IF(D13=0,0, IF(D13<H13,B13, IF(AND(D13>=H13,D13<=I13),ROUND(F13*D13+G13,4), C13) )) -> 0 | F13: -0.564 | G13: 52.64 | H13: 1 | I13: 20 | K13: 0.9213
A14: Traubenproduktion mit eigener Kellerwirtschaft | B14: =ROUND(F14*H14+G14,4) -> 71.382 | C14: =ROUND(F14*I14+G14,4) -> 58.804 | D14: =Berechnung_UA01!$B$30 -> 0 | E14: =IF(D14=0,0, IF(D14<H14,B14, IF(AND(D14>=H14,D14<=I14),ROUND(F14*D14+G14,4), C14) )) -> 0 | F14: -0.662 | G14: 72.044 | H14: 1 | I14: 20 | K14: 1.0268
A15: Obst und Gemüse im Freiland, Hopfen, Tabak und Weihnachtsbäume | J15: 0.3671
A16: Christbaumkulturen | B16: =ROUND(F16*H16^G16,4) -> 6.5 | C16: 3.7589 | D16: =Berechnung_UA01!$B$32 -> 0 | E16: =IF(D16=0,0, IF(D16<H16,B16, IF(AND(D16>=H16,D16<=I16),ROUND(F16*D16^G16,4), C16) )) -> 0 | F16: 6.5 | G16: -0.14 | H16: 1 | I16: 50 | K16: 4.7624
A17: Baumobst | B17: =ROUND(F17*H17^G17,4) -> 48.5 | C17: =ROUND(F17*I17^G17,4) -> 38.5037 | D17: =Berechnung_UA01!$B$33 -> 0 | E17: =IF(D17=0,0, IF(D17<H17,B17, IF(AND(D17>=H17,D17<=I17),ROUND(F17*D17^G17,4), C17) )) -> 0 | F17: 48.5 | G17: -0.059 | H17: 1 | I17: 50 | K17: 1.76
A18: Hopfen | B18: =ROUND(F18*H18+G18,4) -> 28.08 | C18: =ROUND(F18*I18+G18,4) -> 16.87 | D18: =Berechnung_UA01!$B$34 -> 0 | E18: =IF(D18=0,0, IF(D18<H18,B18, IF(AND(D18>=H18,D18<=I18),ROUND(F18*D18+G18,4), C18) )) -> 0 | F18: -0.19 | G18: 28.27 | H18: 1 | I18: 60 | K18: 2.6222
A19: Tabak | G19: - | H19: - | I19: - | K19: 0
A20: Beerenobst | B20: =ROUND(F20*H20^G20,4) -> 116 | C20: =ROUND(F20*I20^G20,4) -> 95.3915 | D20: =Berechnung_UA01!$B$36 -> 0 | E20: =IF(D20=0,0, IF(D20<H20,B20, IF(AND(D20>=H20,D20<=I20),ROUND(F20*D20^G20,4), C20) )) -> 0 | F20: 116 | G20: -0.05 | H20: 1 | I20: 50 | K20: 0.3407
A21: Intensivgemüse | B21: 105.876 | C21: 87.0661 | D21: =SUM(Berechnung_UA01!$B$38:$B$39) -> 0 | E21: =IF(D21=0,0, IF(D21<H21,B21, IF(AND(D21>=H21,D21<=I21),ROUND(F21*D21^G21,4), C21) )) -> 0 | F21: 105.876 | G21: -0.05 | H21: 1 | I21: 50 | K21: 0.6149
A22: Industriegemüse mit vollmechanischer Ernte_PV | B22: =ROUND(F22*H22^G22,4) -> 5.1 | C22: 4.1127 | D22: =SUM(Berechnung_UA01!$B$45:$B$46) -> 0 | E22: =IF(D22=0,0, IF(D22<H22,B22, IF(AND(D22>=H22,D22<=I22),ROUND(F22*D22^G22,4), C22) )) -> 0 | F22: 5.1 | G22: -0.055 | H22: 1 | I22: 50 | K22: 4.1205
A23: Obstbau mit mechanischer Ernte | B23: 12.33 | C23: 9.1948 | D23: =Berechnung_UA01!$B$40 -> 0 | E23: =IF(D23=0,0, IF(D23<H23,B23, IF(AND(D23>=H23,D23<=I23),ROUND(F23*D23^G23,4), C23) )) -> 0 | F23: 12.33 | G23: -0.075 | H23: 1 | I23: 50 | K23: 0.9288
A24: Industrie-, Frischgemüse mit händischer Ernte_PV | B24: 40.8 | C24: 34.2142 | D24: =SUM(Berechnung_UA01!$B$42:$B$43) -> 0 | E24: 0 | F24: 40.8 | G24: -0.045 | H24: 1 | I24: 50 | K24: 0.7861
A25: geschützter gärtnerischer Anbau, Blumen- und Zierpflanzenanbau sowie Baumschulen | J25: 0.5658
A26: geschützter gärtnerische Anbau | K26: 1
A27: Arbeitstage Mifa Urproduktion | D27: =Berechnung_UA01!$B$92 -> 0 | E27: =ROUND(F27/G27,4) -> 0.5555 | F27: =ROUND(Hebesatz!$G$3/220,4) -> 111.1091 | G27: 200 | H27: - | I27: -
A28: Arbeitsentgelt gärtnerische Urproduktion | D28: =Berechnung_UA01!$B$93 -> 0 | E28: =ROUND(F28/G28,4) -> 0.005 | F28: 1 | G28: 200 | H28: - | I28: -
A29: Arbeitstage Unternehmer Urproduktion | D29: =Berechnung_UA01!$B$94 -> 0 | E29: 0.3484 | F29: =ROUND(Hebesatz!$F$3/220,4) -> 69.6897 | G29: 200 | H29: - | I29: -
A30: Forst_RK | F30: 2.648 | G30: 0.96 | H30: 1.33 | I30: 100 | J30: 11.0763
A31: Forst | B31: =(((F31+F30*(5.01+95)^G31* (5.01-5))*H30)*G30)/5.01 -> 0.3486940397 | C31: =ROUND((F$31+(F$30*(I31+95)^G$31)* ((I31-5)+(0.047102*(4-5)*(I31-I30))))*H30*G30,4)/1000 -> 0.1037463 | D31: =Berechnung_UA01!$B$48 -> 0 | E31: =IF(D31=0,0, ROUND(IF(D31<=H$31,ROUND(B$31*D31,4), IF(AND(D31>H$31,D31<=I$30),(((F$31+F$30*(D31+95)^G$31* (D31-5))*H$30)*G30), IF(AND(D31>I$30,D31<=I$31),(((F$31+(F$30*(D31+95)^G$31)* ((D31-5)+(0.047102*(Berechnung_UA01!$B$50-5)*(D31-I$30))))*H30)*G30)/D31, ROUND(ROUND((((F$31+(F$30*(I$31+95)^G$31)* ((I$31-5)+(0.047102*(Berechnung_UA01!$B$50-5)*(I$31-I$30))))*H30)*G30),4)/I$31,4))*D31)),4)) -> 0 | F31: 1.3655 | G31: -0.4933 | H31: 5 | I31: 1000 | K31: 1
A32: Forst mit Pflege (Feleg) | B32: =((((F31+F30*(5.01+95)^G31* (5.01-5))*H30)*G30)/5.01) -> 0.3486940397 | C32: =ROUND((F$31+(F$30*(I31+95)^G$31)* ((I31-5)+(0.047102*(4-5)*(I31-I30))))*H30*G30,4)/1000 -> 0.1037463 | D32: =Berechnung_UA01!$B$49 -> 0 | E32: =IF(D32=0,0, ROUND(IF(D32<H$31,ROUND(B$31*D32,4), IF(AND(D32>H$31,D32<=I$30),(((F$31+F$30*(D32+95)^G$31* (D32-5))*H$30)*G$30), IF(AND(D32>I$30,D32<=I$31),(((F$31+(F$30*(D32+95)^G$31)* ((D32-5)+(0.047102*(Berechnung_UA01!$B$50-5)*(D32-I$30))))*1.33)*G$30)/D32, ROUND(ROUND((((F$31+(F$30*(I$31+95)^G$31)* ((I$31-5)+(0.047102*(Berechnung_UA01!$B$50-5)*(I$31-I$30))))*1.33)*G$30),4)/I$31,4))*D32)),4)) -> 0 | K32: 1
A33: vertragl. aus der Produktion genommene Waldfläche | B33: =F33 -> 0.1 | C33: =F33 -> 0.1 | D33: =Berechnung_UA01!$B$51 -> 0 | E33: =F33 -> 0.1 | F33: 0.1 | G33: - | H33: - | I33: - | K33: 1
A34: Rinderhaltung | J34: 1.1085
A35: Milchkühe, Deckbullen | B35: =ROUND(F35*H35^G35,4) -> 6.928 | C35: =ROUND(F35*I35^G35,4) -> 2.5121 | D35: =Berechnung_UA01!$B$53+Berechnung_UA04!$B$11 -> 0 | E35: =IF(D35=0,0, IF(D35<H35,B35, IF(AND(D35>=H35,D35<=I35),ROUND(F35*D35^G35,4), C35) )) -> 0 | F35: 13.05 | G35: -0.275 | H35: 10 | I35: 400 | K35: 0.912
A36: Mutterkühe | B36: =ROUND(F36*H36+G36,4) -> 1.7118 | C36: =ROUND(F36*I36+G36,4) -> 1.1238 | D36: =Berechnung_UA01!$B$54+Berechnung_UA04!$B$12 -> 0 | E36: =IF(D36=0,0, IF(D36<H36,B36, IF(AND(D36>=H36,D36<=I36),ROUND(F36*D36+G36,4), C36) )) -> 0 | F36: -0.0042 | G36: 1.7538 | H36: 10 | I36: 150 | K36: 1.1807
A37: Sonstige Rinder | B37: =ROUND(F37*H37^G37,4) -> 1.6535 | C37: =ROUND(F37*I37^G37,4) -> 0.3415 | D37: =Berechnung_UA01!$B$55+Berechnung_UA04!$B$13 -> 0 | E37: =IF(D37=0,0, IF(D37<H37,B37, IF(AND(D37>=H37,D37<=I37),ROUND(F37*D37^G37,4), C37) )) -> 0 | F37: 3.6383 | G37: -0.3425 | H37: 10 | I37: 1000 | K37: 1.2235
A38: Schweinehaltung | J38: 1.1936
A39: Schweinemast, Ferkelaufzucht, Jungsauenaufzucht | B39: =ROUND(F39*H39^G39,4) -> 0.1854 | C39: =ROUND(F39*I39^G39,4) -> 0.0742 | D39: =SUM(Berechnung_UA01!$B$58:$B$59)+SUM(Berechnung_UA04!$B$16:$B$17) -> 0 | E39: =IF(D39=0,0, IF(D39<H39,B39, IF(AND(D39>=H39,D39<=I39),ROUND(F39*D39^G39,4), C39) )) -> 0 | F39: 0.42 | G39: -0.209 | H39: 50 | I39: 4000 | K39: 1.1864
A40: Sauenhaltung | B40: =ROUND(F40*H40^G40,4) -> 1.2599 | C40: =ROUND(F40*I40^G40,4) -> 0.7571 | D40: =Berechnung_UA01!$B$60+Berechnung_UA04!$B$18 -> 0 | E40: =IF(D40=0,0, IF(D40<H40,B40, IF(AND(D40>=H40,D40<=I40),ROUND(F40*D40^G40,4), C40) )) -> 0 | F40: 2.45 | G40: -0.17 | H40: 50 | I40: 1000 | K40: 0.7201
A41: Pferdehaltung | J41: 1.4948
A42: Deckhengste ohne Sporteinsatz | B42: =ROUND(F42*H42^G42,4) -> 8.186 | C42: =ROUND(F42*I42^G42,4) -> 6.2112 | D42: =Berechnung_UA01!$B$85+Berechnung_UA04!$B$31 -> 0 | E42: =IF(D42=0,0, IF(D42<H42,B42, IF(AND(D42>=H42,D42<=I42),ROUND(F42*D42^G42,4), C42) )) -> 0 | F42: 8.186 | G42: -0.063 | H42: 1 | I42: 80
A43: Zuchtstuten, Hengste, Aufzucht, Arbeits- und Gnadenbrottiere | B43: =ROUND(F43*H43^G43,4) -> 8.186 | C43: =ROUND(F43*I43^G43,4) -> 6.2112 | D43: =SUM(Berechnung_UA01!$B$87:$B$88)+SUM(Berechnung_UA04!$B$33:$B$34) -> 0 | E43: =IF(D43=0,0, IF(D43<H43,B43, IF(AND(D43>=H43,D43<=I43),ROUND(F43*D43^G43,4), C43) )) -> 0 | F43: 8.186 | G43: -0.063 | H43: 1 | I43: 80 | K43: 1.578
A44: Traber und Galopper | B44: =ROUND(F44*H44+G44,4) -> 53.1207 | C44: =ROUND(F44*I44+G44,4) -> 52.149 | D44: =Berechnung_UA01!$B$89+Berechnung_UA04!$B$35 -> 0 | E44: =IF(D44=0,0, IF(D44<H44,B44, IF(AND(D44>=H44,D44<=I44),ROUND(F44*D44+G44,4), C44) )) -> 0 | F44: -0.0123 | G44: 53.133 | H44: 1 | I44: 80 | K44: 0.6019
A45: Sport-, Beritt- und Fahrpferde | B45: =ROUND(F45*H45+G45,4) -> 53.1207 | C45: =ROUND(F45*I45+G45,4) -> 52.149 | D45: =Berechnung_UA02!$B$11 -> 0 | E45: =IF(D45=0,0, IF(D45<H45,B45, IF(AND(D45>=H45,D45<=I45),ROUND(F45*D45+G45,4), C45) )) -> 0 | F45: -0.0123 | G45: 53.133 | H45: 1 | I45: 80 | K45: 0.6019
A46: Pensionstiere, Freizeitpferde | B46: =ROUND(F46*H46+G46,4) -> 7.599 | C46: =ROUND(F46*I46+G46,4) -> 6.5167 | D46: =SUM(Berechnung_UA02!$B$13:$B$14) -> 0 | E46: =IF(D46=0,0, IF(D46<H46,B46, IF(AND(D46>=H46,D46<=I46),ROUND(F46*D46+G46,4), C46) )) -> 0 | F46: -0.0137 | G46: 7.6127 | H46: 1 | I46: 80 | K46: 0.8426
A47: Unternehmen der sonstigen Tierhaltung | J47: 1.1197
A48: Legehennen | B48: =ROUND(F48*H48^G48,4) -> 0.1522 | C48: =ROUND(F48*I48^G48,4) -> 0.0113 | D48: =Berechnung_UA01!$B$62+Berechnung_UA04!$B$20 -> 0 | E48: =IF(D48=0,0, IF(D48<H48,B48, IF(AND(D48>=H48,D48<=I48),ROUND(F48*D48^G48,4), C48) )) -> 0 | F48: 0.665 | G48: -0.377 | H48: 50 | I48: 50000 | K48: 1.0658
A49: Junghennenaufzucht | B49: =ROUND(F49*H49^G49,4) -> 0.0113 | C49: =ROUND(F49*I49^G49,4) -> 0.0056 | D49: =Berechnung_UA01!$B$63+Berechnung_UA04!$B$21 -> 0 | E49: =IF(D49=0,0, IF(D49<H49,B49, IF(AND(D49>=H49,D49<=I49),ROUND(F49*D49^G49,4), C49) )) -> 0 | F49: 0.0286 | G49: -0.15 | H49: 500 | I49: 50000 | K49: 0.7136
A50: Masthühner | B50: =ROUND(F50*H50^G50,4) -> 0.0235 | C50: =ROUND(F50*I50^G50,4) -> 0.0021 | D50: =Berechnung_UA01!$B$64+Berechnung_UA04!$B$22 -> 0 | E50: 0 | F50: 0.4649 | G50: -0.48 | H50: 500 | I50: 80000 | K50: 0.7499
A51: Masthühner Tst | B51: 0.0235 | C51: 0.0021 | D51: =Berechnung_UA04!$B$23*1000 -> 0 | E51: 0 | F51: 0.4649 | G51: -0.48 | H51: 500 | I51: 80000 | K51: 0.7499
A52: Mastenten | B52: 0.062 | C52: 0.0111 | D52: =Berechnung_UA01!$B$65+Berechnung_UA04!$B$24 -> 0 | E52: 0 | F52: 0.8436 | G52: -0.42 | H52: 500 | I52: 30000 | K52: 3.4474
A53: Mastgänse | B53: 0.1796 | C53: 0.0227 | D53: =Berechnung_UA01!$B$66+Berechnung_UA04!$B$25 -> 0 | E53: 0 | F53: 1.04 | G53: -0.449 | H53: 50 | I53: 5000 | K53: 1.5409
A54: Mastputen | B54: 0.0422 | C54: 0.0079 | D54: =Berechnung_UA01!$B$67+Berechnung_UA04!$B$26 -> 0 | E54: 0 | F54: 0.54 | G54: -0.41 | H54: 500 | I54: 30000 | K54: 0.8665
A55: Fleischschafe und -ziegen | B55: 2.2051 | C55: 0.4264 | D55: =SUM(Berechnung_UA01!$B$69:$B$70)+Berechnung_UA04!$B$27 -> 0 | E55: 0 | F55: 5.8 | G55: -0.42 | H55: 10 | I55: 500 | K55: 1.024
A56: Milchschafe und -ziegen | B56: 2.2545 | C56: 0.8175 | D56: =Berechnung_UA01!$B$71+Berechnung_UA04!$B$28 -> 0 | E56: 0 | F56: 6.611 | G56: -0.275 | H56: 50 | I56: 2000 | K56: 0.3768
A57: Kaninchenhaltung | B57: 0.6979 | C57: 0.4946 | D57: =Berechnung_UA01!$B$72+Berechnung_UA04!$B$29 -> 0 | E57: =IF(D57=0,0, IF(D57<H57,B57, IF(AND(D57>=H57,D57<=I57),ROUND(F57*D57^G57,4), C57) )) -> 0 | F57: 0.9 | G57: -0.065 | H57: 50 | I57: 10000 | K57: 1.058
A58: Wildtierhaltung_PV | B58: =F58 -> 0.7175 | C58: =F58 -> 0.7175 | D58: =SUM(Berechnung_UA01!$B$74:$B$75) -> 0 | E58: =F58 -> 0.7175 | F58: 0.7175 | G58: - | H58: - | I58: - | K58: 1.0611
A59: Bienenhaltung | B59: =ROUND(F59*H59^G59,4) -> 1.17 | C59: =ROUND(F59*I59^G59,4) -> 0.5261 | D59: =SUM(Berechnung_UA01!$B$77:$B$78) -> 0 | E59: =IF(D59=0,0, IF(D59<H59,B59, IF(AND(D59>=H59,D59<=I59),ROUND(F59*D59^G59,4), C59) )) -> 0 | F59: 2.01 | G59: -0.235 | H59: 10 | I59: 300 | K59: 0.6058
A60: Forellenzucht | B60: 13.6066 | C60: 2.5501 | D60: =Berechnung_UA01!$B$79 -> 0 | E60: =IF(D60=0,0, IF(D60<H60,B60, IF(AND(D60>=H60,D60<=I60),ROUND(F60*D60^G60,4), C60) )) -> 0 | F60: 97.5 | G60: -0.7272 | H60: 15 | I60: 150 | K60: 0
A61: Teichwirtschaft Karpfen | B61: 10.8 | C61: 2.7647 | D61: =Berechnung_UA01!$B$80 -> 0 | E61: 0 | F61: 10.8 | G61: -0.208 | H61: 1 | I61: 700 | K61: 0.9121
A62: Fluss- und Seenfischerei, Forellen und Beifische | B62: =F62 -> 0.3 | C62: =F62 -> 0.3 | D62: =SUM(Berechnung_UA01!$B$82:$B$83) -> 0 | E62: =F62 -> 0.3 | F62: 0.3 | G62: - | H62: - | I62: - | K62: 1.5558
A63: Beherbergung/Verköstigung, Energiegewinnung, Handel/Verwaltung/Dienstleistung, Veredelung/Produktgewinnung (N1) | J63: 0.7343
A64: Urlaub auf dem Bauernhof | B64: =F64 -> 0.1 | C64: =F64 -> 0.1 | D64: =Berechnung_UA02!$B$16 -> 0 | E64: =F64 -> 0.1 | F64: 0.1 | G64: - | H64: - | I64: - | K64: 0.8228
A65: Abfindungsbrennerei | B65: =F65 -> 0.025 | C65: =F65 -> 0.025 | D65: =Berechnung_UA02!$B$17 -> 0 | E65: =F65 -> 0.025 | F65: 0.025 | G65: - | H65: - | I65: - | K65: 2.534
A66: Energiegewinnung | B66: =F66 -> 0.3 | C66: =F66 -> 0.3 | D66: =Berechnung_UA02!$B$18 -> 0 | E66: =F66 -> 0.3 | F66: 0.3 | G66: - | H66: - | I66: - | K66: 1.12
A67: Beherbergung/Verköstigung | B67: 0.3 | C67: 0.3 | D67: =Berechnung_UA02!$B$19 -> 0 | E67: 0.3 | F67: 0.3 | G67: - | H67: - | I67: - | K67: 0.8228
A68: Handel / Verwaltung / Dienstleistungen | B68: 0.3 | C68: 0.3 | D68: =Berechnung_UA02!$B$20 -> 0 | E68: 0.3 | F68: 0.3 | G68: - | H68: - | I68: - | K68: 0.8335
A69: Veredelung / Produktgewinnung | B69: 0.3 | C69: 0.3 | D69: =Berechnung_UA02!$B$21 -> 0 | E69: 0.3 | F69: 0.3 | G69: - | H69: - | I69: - | K69: 1.3436
A70: Biogasproduktion je produzierter MWhStrom pro Jahr | B70: =ROUND(F70*H70^G70,4) -> 0.046 | C70: =ROUND(F70*I70^G70,4) -> 0.0249 | D70: =Berechnung_UA02!$B$22+Berechnung_UA07!$B$11 -> 0 | E70: =IF(D70=0,0, IF(D70<H70,B70, IF(AND(D70>=H70,D70<=I70),ROUND(F70*D70^G70,4), C70))) -> 0 | F70: 0.156 | G70: -0.204 | H70: 400 | I70: 8000 | K70: 1.12
A71: Handwerksbetriebe, Hoch- und Tiefbauunternehmen, Transport- und Fuhrunternehmen (N2) | J71: 2.3327
A72: Handwerk | B72: =F72 -> 0.3 | C72: =F72 -> 0.3 | D72: =Berechnung_UA02!$B$24 -> 0 | E72: =F72 -> 0.3 | F72: 0.3 | G72: - | H72: - | I72: - | K72: 1.394
A73: Transport- und Fuhrunternehmen | B73: 0.3 | C73: 0.3 | D73: =Berechnung_UA02!$B$25 -> 0 | E73: 0.3 | F73: 0.3 | G73: - | H73: - | I73: - | K73: 0.9819
A74: Hoch- und Tiefbau | B74: 0.3 | C74: 0.3 | D74: =Berechnung_UA02!$B$26 -> 0 | E74: 0.3 | F74: 0.3 | G74: - | H74: - | I74: - | K74: 0.7812
A75: Jagdunternehmen | H75: Divisionsfaktor | J75: 1.8911
A76: bejagbare Fläche | B76: =F76 -> -0.1 | C76: =F76 -> -0.1 | D76: =Berechnung_UA05!$B$9 -> 0 | E76: =ROUND(IF(D76<=I76,H76,((D76-I76)^F76*(D76-I76)+I76)*H76/D76),4) -> 0.05 | F76: -0.1 | H76: 0.05 | I76: 500 | K76: 1
A77: Jagd landwirtschaftlicher Unternehmer | B77: -0.1 | C77: -0.1 | D77: =Berechnung_UA05!$B$10 -> 0 | E77: =ROUND(IF(D77*G77<=I77,H77*G77,(((D77*G77-I77)*((D77*G77-I77)^F77)+I77)/D77)*H77),4) -> 0.04 | F77: -0.1 | G77: 0.8 | H77: 0.05 | I77: 500 | K77: 1
A78: Lohnunternehmen einschließlich der Unternehmen des Garten- und Landschaftsbaus | J78: 0.5582
A79: Landw. Lohnunternehmen | K79: 0.8063
A80: Arbeitsentgelt landw. Lohnunternehmen | D80: =Berechnung_UA06!$B$12 -> 0 | E80: =ROUND(F80/G80,4) -> 0.005 | F80: 1 | G80: 200 | H80: - | I80: -
A81: Anzahl AT Unternehmer landw. Lohnunternehmen | D81: =Berechnung_UA06!$B$13 -> 0 | E81: =ROUND(F81/G81,4) -> 0.3484 | F81: =ROUND(Hebesatz!$F$3/220,4) -> 69.6897 | G81: 200 | H81: - | I81: -
A82: Arbeitstage Mifa landw. Lohnunternehmen | D82: =Berechnung_UA06!$B$14 -> 0 | E82: 0.5555 | F82: =ROUND(Hebesatz!$G$3/220,4) -> 111.1091 | G82: 200 | H82: - | I82: -
A83: Forstw. Lohnunternehmen | K83: 1.9121
A84: Arbeitsentgelt forstw. Lohnunternehmen | D84: =Berechnung_UA06!$B$17 -> 0 | E84: 0.005 | F84: 1 | G84: 200 | H84: - | I84: -
A85: Anzahl AT Unternehmer forstw. Lohnunternehmen | D85: =Berechnung_UA06!$B$18 -> 0 | E85: 0.3484 | F85: =ROUND(Hebesatz!$F$3/220,4) -> 69.6897 | G85: 200 | H85: - | I85: -
A86: Arbeitstage Mifa forstw. Lohnunternehmen | D86: =Berechnung_UA06!$B$19 -> 0 | E86: 0.5555 | F86: =ROUND(Hebesatz!$G$3/220,4) -> 111.1091 | G86: 200 | H86: - | I86: -
A87: Unternehmen des Garten- und Landschaftsbaus | K87: 0.964
A88: Anzahl Arbeitstage Unternehmer Galabau | D88: =Berechnung_UA50!$B$12 -> 0 | E88: 0.3484 | F88: =ROUND(Hebesatz!$F$3/220,4) -> 69.6897 | G88: 200 | H88: - | I88: -
A89: Arbeitsentgelt Galabau | D89: =Berechnung_UA50!$B$13 -> 0 | E89: 0.005 | F89: 1 | G89: 200 | H89: - | I89: -
A90: Arbeitstage Mifa Galabau | D90: =Berechnung_UA50!$B$14 -> 0 | E90: 0.5555 | F90: =ROUND(Hebesatz!$G$3/220,4) -> 111.1091 | G90: 200 | H90: - | I90: -
A91: Unternehmen der Park- und Gartenpflege, Friedhöfe sowie Haus- und Ziergärten | J91: 0.3132 | K91: 1
A92: Unternehmen der Park- und Gartenpflege, Friedhöfe, Haus- und Ziergärten
A93: Anzahl Arbeitstage Unternehmer Park- u. Gartenpflege/Friedhof/Sonstige | D93: =Berechnung_UA50!$B$17 -> 0 | E93: =ROUND(F93/G93,4) -> 0.3484 | F93: =ROUND(Hebesatz!$F$3/220,4) -> 69.6897 | G93: 200 | H93: - | I93: -
A94: Arbeitsentgelt Park- und Gartenpflege/Friedhof/Sonstige | D94: =Berechnung_UA50!$B$18 -> 0 | E94: 0.005 | F94: 1 | G94: 200 | H94: - | I94: -
A95: Arbeitstage Mifa PGpfl | D95: =Berechnung_UA50!$B$19 -> 0 | E95: 0.5555 | F95: =ROUND(Hebesatz!$G$3/220,4) -> 111.1091 | G95: 200 | H95: - | I95: -
A96: Personen ehrenamtlich tätig - Park- und Gartenpflege/Friedhof/Sonstige | D96: =Berechnung_UA50!$B$20 -> 0 | E96: 0.5 | F96: 100 | G96: 200
A97: Sonstige Unternehmen: Landwirtschaftskammern, Berufsverbände der Landw., Unternehmen, die unmittelbar der Sicherung, Überwachung oder Förderung der Landwirtschaft überwiegend dienen (ohne Unternehmen der Energiegewinnung), SVLFG, ZLA, ZLF, REHA-Fälle | J97: 0.2576
A98: USF | K98: 1.2071
A99: Arbeitsentgelt USF | D99: =Berechnung_UA07!$B$15 -> 0 | E99: =ROUND(F99/G99,4) -> 0.005 | F99: 1 | G99: 200 | H99: - | I99: -
A100: Arbeitstage Unternehmer USF | D100: =Berechnung_UA07!$B$16 -> 0 | E100: 0.3484 | F100: =ROUND(Hebesatz!$F$3/220,4) -> 69.6897 | G100: 200 | H100: - | I100: -
A101: Personen ehrenamtlich tätig - USF | D101: =Berechnung_UA07!$B$17 -> 0 | E101: 0.5 | F101: 100 | G101: 200
A102: Arbeitstage Mifa USF | D102: =Berechnung_UA07!$B$18 -> 0 | E102: 0.5555 | F102: =ROUND(Hebesatz!$G$3/220,4) -> 111.1091 | G102: 200
A103: SVLFG, ZLA, ZLF | K103: 0.7927
A104: Arbeitsentgelt LSV-Träger, ZLA,ZLF | D104: 0 | E104: =ROUND(F104/G104,4) -> 0.005 | F104: 1 | G104: 200
A105: Personen ehrenamtlich tätig - SVLFG | D105: 0 | E105: 0.5 | F105: 100 | G105: 200
A106: REHA-Fälle AK | D106: 0 | E106: 0.2555 | F106: =ROUND(Hebesatz!$F$3/300,4) -> 51.1058 | G106: 200 | K106: 0.7927
A107: REHA-Fälle KK | D107: 0 | E107: 0.2555 | F107: =ROUND(Hebesatz!$F$3/300,4) -> 51.1058 | G107: 200 | K107: 0.7927
A108: Verbände | K108: 0.7927
A109: Arbeitsentgelt Beschäftigte Verbände | D109: =Berechnung_UA09!$B$12 -> 0 | E109: 0.005 | F109: 1 | G109: 200 | H109: - | I109: -
A110: Personen ehrenamtlich tätig - Verband | D110: =Berechnung_UA09!$B$13 -> 0 | E110: 0.5 | F110: 100 | G110: 200 | H110: - | I110: -
A122: 1 | F122: 62 | G122: 63 | H122: 64 | I122: 65 | J122: 66 | K122: 67

Sheet Werte Mindestgröße (hidden)
A1: Ackerbau | B1: SAP | C1: ISLSV | D1: Mindestgröße | E1: % pro ha /Einheit
A2: Mähdrusch, Zuckerrüben
A3: Mähdruschfrüchte | B3: 0041 | C3: 045 | D3: 8 | E3: =100/D3 -> 12.5
A4: Zuckerrüben | B4: 0005 | C4: 006 | D4: 8 | E4: =100/D4 -> 12.5
A5: Futterbau und Bioenergiepflanzen
A6: Futterbau, Bioenergiepflanzen | B6: 0042 | C6: 046 | D6: 8 | E6: 12.5
A7: Korbweiden | B7: 0200 | C7: 378 | D7: 8 | E7: 12.5
A8: Kartoffeln | B8: 0062 | C8: 069 | D8: 8 | E8: 12.5
A9: Aus der Produktion genommene Flächen
A10: Stillegung/Pflege | B10: 0129 | C10: 153 | D10: 8 | E10: 12.5
A11: Weinbau nicht im Ertrag | B11: 0020 | C11: 022 | D11: 8 | E11: 12.5
A12: stillgelegte Fläche ALG | B12: 0155 | C12: 188 | D12: -
A13: Landwirtschaft mit Pflege (FELEG) | B13: 0160 | C13: 201 | D13: -
A14: Grünland_RK
A15: Almen, Alpen, Hutungen | B15: 0008 | C15: 010 | D15: 16 | E15: 6.25
A16: Grünland_PV
A17: Grünland | B17: 0002 | C17: 002 | D17: 8 | E17: 12.5
A18: Garten | B18: 0006 | C18: 008 | D18: 8 | E18: 12.5
A19: Streuobstwiesen (nur Obstbaumnutzung) | B19: 0206 | C19: 395 | D19: 8 | E19: 12.5
A20: Weinbau
A21: Ausschließliche Traubenproduktion | B21: 0261 | C21: 902 | D21: 2 | E21: 50
A22: Traubenproduktion mit eigener Kellerwirtschaft | B22: 0019 | C22: 021 | D22: 2 | E22: 50
A23: Obst und Gemüse im Freiland, Hopfen, Tabak und Weihnachtsbäume
A24: Christbaumkulturen | B24: 0011 | C24: 013 | D24: 2.5 | E24: 40
A25: Baumobst | B25: 0021 | C25: 023 | D25: 2.2 | E25: 45.45454545
A26: Hopfen | B26: 0027 | C26: 029 | D26: 2.2 | E26: 45.45454545
A27: Tabak | B27: 0028 | C27: 030 | D27: 2.2 | E27: 45.45454545
A28: Beerenobst | B28: 0033 | C28: 035 | D28: 2.2 | E28: 45.45454545
A29: Intensivgemüse
A30: Spargel | B30: 0030 | C30: 032 | D30: 2.2 | E30: 45.45454545
A31: Intensivgemüse | B31: 0327 | C31: 312 | D31: 2.2 | E31: 45.45454545
A32: Obstbau mit mechanischer Ernte | B32: 0262 | C32: 903 | D32: 2.2 | E32: 45.45454545
A33: Industrie-, Frischgemüse mit händischer Ernte | B33: 0326 | C33: 311 | D33: 2.2 | E33: 45.45454545
A34: Industriegemüse mit vollmechanischer Ernte
A35: Blumen und Zierpflanzen | B35: 0207 | C35: 537 | D35: 2.2 | E35: 45.45454545
A36: Industriegemüse mit vollmechanischer Ernte | B36: 0325 | C36: 310 | D36: 2.2 | E36: 45.45454545
A37: Forst
A38: Forst | B38: 0009 | C38: 011 | D38: 75 | E38: 1.333333333
A39: Einschlagsfestmeter
A40: vertragl. aus der Produktion genommene Waldfläche | B40: 0068 | C40: 075 | D40: 75 | E40: 1.333333333
A41: Unternehmen der sonstigen Tierhaltung
A42: Bienenhaltung
A43: Imkerei | B43: 0054 | C43: 060 | D43: 100 | E43: 1
A44: Imkerei (n.gew.)
A45: Forellenzucht | B45: 0124 | C45: 057 | D45: 120 | E45: 0.8333333333
A46: Teichwirtschaft Karpfen | B46: 0046 | C46: 050 | D46: 10 | E46: 10
A47: Fluss- und Seenfischerei | B47: 0058 | C47: 065 | D47: 120 | E47: 0.8333333333
A48: Fleischschafe und -ziegen
A49: Wanderschafe | B49: 0037 | C49: 041 | D49: 240 | E49: 0.4166666667

Sheet BKV (hidden)
A1: Unternehmensart | B1: Schlüssel Katasterart IS2001 | C1: Schlüssel Katasterart IS-LSV | D1: Katasterart Langtext | E1: Dimension | F1: KK-Berechnung ab 2014 | G1: AK-Mindestgröße ab 2014 | H1: Wirtschaftswert LAK | I1: Produktionsverfahren
A3: 2 | B3: 1589 | C3: 492 | D3: Abfindungsbrennerei | E3: L | F3: nein | G3: nein | I3: Abfindungsbrennerei | J3: =B3 -> 1589 | K3: Abfindungsbrennerei
A4: 1 | B4: 0008 | C4: 10 | D4: Almen, Alpen, Hutungen | E4: HA | F4: 300 DM | G4: 16 ha | H4: ja | I4: Almen, Alpen, Hutungen | J4: =B4 -> 0008 | K4: Almen, Alpen, Hutungen
A5: 9 | B5: 3674 | C5: 270 | D5: Arbeitsentgelt Beschäftigte Verbände | E5: EUR | F5: nein | G5: nein | I5: Verbände | J5: 3674 | K5: Arbeitsentgelt Beschäftigte Verbände
A6: 6 | B6: 3157 | C6: 919 | D6: Arbeitsentgelt forstw. Lohnunternehmen | E6: EUR | F6: nein | G6: nein | I6: Forstw. Lohnunternehmen | J6: 3157 | K6: Arbeitsentgelt forstw. Lohnunternehmen
A7: 50 | B7: 5005 | C7: 281 | D7: Arbeitsentgelt Galabau | E7: EUR | F7: nein | G7: nein | I7: Unternehmen des Garten- und Landschaftsbaus | J7: 5005 | K7: Arbeitsentgelt Galabau
A8: 1 | B8: 1122 | C8: 256 | D8: Arbeitsentgelt gärtnerische Urproduktion | E8: EUR | F8: nein | G8: nein | H8: nein | I8: geschützter gärtnerische Anbau | J8: 1122 | K8: Arbeitsentgelt gärtnerische Urproduktion
A9: 6 | B9: 3156 | C9: 918 | D9: Arbeitsentgelt landw. Lohnunternehmen | E9: EUR | F9: nein | G9: nein | I9: Landw. Lohnunternehmen | J9: 3156 | K9: Arbeitsentgelt landw. Lohnunternehmen
A10: 50 | B10: 5011 | C10: 284 | D10: Arbeitsentgelt Park- und Gartenpflege/Friedhof/Sonstige | E10: EUR | F10: nein | G10: nein | I10: Unternehmen der Park- und Gartenpflege, Friedhöfe sowie Haus- und Ziergärten | J10: 5011 | K10: Arbeitsentgelt Park- und Gartenpflege/Friedhof/Sonstige
A11: 7 | B11: 3414 | C11: 266 | D11: Arbeitsentgelt USF | E11: EUR | F11: nein | G11: nein | I11: USF | J11: 3414 | K11: Arbeitsentgelt USF
A12: 6 | B12: 3213 | C12: 914 | D12: Arbeitstage Mifa forstw. Lohnunternehmen | E12: AT | F12: nein | G12: nein | I12: Forstw. Lohnunternehmen | J12: 3213 | K12: Arbeitstage Mifa forstw. Lohnunternehmen
A13: 50 | B13: 5015 | C13: 289 | D13: Arbeitstage Mifa Galabau | E13: AT | F13: nein | G13: nein | I13: Unternehmen des Garten- und Landschaftsbaus | J13: 5015 | K13: Arbeitstage Mifa Galabau
A14: 6 | B14: 3214 | C14: 915 | D14: Arbeitstage Mifa landw. Lohnunternehmen | E14: AT | F14: nein | G14: nein | I14: Landw. Lohnunternehmen | J14: 3214 | K14: Arbeitstage Mifa landw. Lohnunternehmen
A15: 50 | B15: 5016 | C15: 290 | D15: Arbeitstage Mifa PGpfl | E15: AT | F15: nein | G15: nein | I15: Unternehmen der Park- und Gartenpflege, Friedhöfe sowie Haus- und Ziergärten | J15: 5016 | K15: Arbeitstage Mifa PGpfl
A16: 1 | B16: 0340 | C16: 325 | D16: Arbeitstage Mifa Urproduktion | E16: AT | F16: nein | G16: nein | H16: nein | I16: geschützter gärtnerische Anbau | J16: 0340 | K16: Arbeitstage Mifa Urproduktion
A17: 7 | B17: 3425 | C17: 306 | D17: Arbeitstage Mifa USF | E17: AT | F17: nein | G17: nein | H17: 1 | I17: USF | J17: 3425 | K17: Arbeitstage Mifa USF
A18: 6 | B18: 3143 | C18: 677 | D18: Arbeitstage Unternehmer forstw. Lohnunternehmen | E18: AT | F18: nein | G18: nein | I18: Forstw. Lohnunternehmen | J18: 3143 | K18: Arbeitstage Unternehmer forstw. Lohnunternehmen
A19: 50 | B19: 5002 | C19: 286 | D19: Arbeitstage Unternehmer Galabau | E19: AT | F19: nein | G19: nein | I19: Unternehmen des Garten- und Landschaftsbaus | J19: 5002 | K19: Arbeitstage Unternehmer Galabau
A20: 6 | B20: 3211 | C20: 678 | D20: Arbeitstage Unternehmer landw. Lohnunternehmen | E20: AT | F20: nein | G20: nein | I20: Landw. Lohnunternehmen | J20: 3211 | K20: Arbeitstage Unternehmer landw. Lohnunternehmen
A21: 50 | B21: 5008 | C21: 283 | D21: Arbeitstage Unternehmer Park- u. Gartenpflege/Friedhof/Sonstige | E21: AT | F21: nein | G21: nein | I21: Unternehmen der Park- und Gartenpflege, Friedhöfe sowie Haus- und Ziergärten | J21: 5008 | K21: Arbeitstage Unternehmer Park- u. Gartenpflege/Friedhof/Sonstige
A22: 1 | B22: 1128 | C22: 322 | D22: Arbeitstage Unternehmer Urproduktion | E22: AT | F22: nein | G22: nein | H22: nein | I22: geschützter gärtnerische Anbau | J22: 1128 | K22: Arbeitstage Unternehmer Urproduktion
A23: 7 | B23: 3421 | C23: 329 | D23: Arbeitstage Unternehmer USF | E23: AT | F23: nein | G23: nein | I23: USF | J23: 3421 | K23: Arbeitstage Unternehmer USF
A24: 1 | B24: 0021 | C24: 23 | D24: Baumobst | E24: HA | F24: DHW x 4 | G24: 2,2 ha | H24: ja | I24: Baumobst | J24: 0021 | K24: Baumobst
A25: 1 | B25: 0033 | C25: 35 | D25: Beerenobst | E25: HA | F25: DHW x 4 | G25: 2,2 ha | H25: ja | I25: Beerenobst | J25: 0033 | K25: Beerenobst
A26: 2 | B26: 1737 | C26: 951 | D26: Beherbergung/Verköstigung | E26: AT | F26: nein | G26: nein | I26: Beherbergung/Verköstigung | J26: 1737 | K26: Beherbergung/Verköstigung
A27: 7 | B27: 3422 | C27: 622 | D27: Biogasproduktion je produzierter MWhStrom pro Jahr | E27: MWh | F27: nein | G27: nein | I27: Biogasproduktion je produzierter MWhStrom pro Jahr | J27: 3422 | K27: Biogasproduktion je produzierter MWhStrom pro Jahr
A28: 1 | B28: 0207 | C28: 537 | D28: Blumen und Zierpflanzen | E28: HA | F28: DHW x 4 | G28: 2,2 ha | H28: ja | I28: Industriegemüse mit vollmechanischer Ernte | J28: 0207 | K28: Blumen und Zierpflanzen
A29: 1 | B29: 0011 | C29: 13 | D29: Christbaumkulturen | E29: HA | F29: DHW x 2,15 | G29: 2,5 ha | H29: ja | I29: Christbaumkulturen | J29: 0011 | K29: Christbaumkulturen
A30: 2 | B30: 1606 | C30: 510 | D30: Energiegewinnung | E30: AT | F30: nein | G30: nein | I30: Energiegewinnung | J30: 1606 | K30: Energiegewinnung
A31: 1 | B31: 0113 | C31: 129 | D31: Ferkelaufzucht | E31: ANZ | F31: nein | G31: nein | H31: nein | I31: Schweinemast, Ferkelaufzucht, Jungsauenaufzucht | J31: =B31 -> 0113 | K31: Ferkelaufzucht
A32: 4 | B32: 2562 | C32: 764 | D32: Ferkelaufzucht (ohne Bodenbewirtschaftung) | E32: ANZ | F32: nein | G32: nein | I32: Schweinemast, Ferkelaufzucht, Jungsauenaufzucht | J32: 2562 | K32: Ferkelaufzucht_T
A33: 1 | B33: 0058 | C33: 65 | D33: Fluss- und Seenfischerei | E33: AT | F33: 40 DM | G33: 120 AT | H33: ja | I33: Fluss- und Seenfischerei | J33: 0058 | K33: Fluss- und Seenfischerei
A34: 1 | B34: 0124 | C34: 57 | D34: Forellen und Beifische | E34: AT | F34: nein | G34: nein | H34: nein | I34: Forellen und Beifische | J34: 0124 | K34: Forellen und Beifische
A35: 1 | B35: 0009 | C35: 11 | D35: Forst | E35: HA | F35: 150 DM | G35: 75 Ha | H35: ja | I35: Forst | J35: 0009 | K35: Forst
A36: 1 | B36: 0320 | C36: 303 | D36: Forst - Einschlagsfestmeter | E36: Efm | F36: nein | G36: nein | H36: nein | I36: Forst | J36: 0320 | K36: Einschlagsfestmeter
A37: 1 | B37: 0068 | C37: 75 | D37: Forst - vertragl. aus der Produktion genommene Waldfläche | E37: HA | F37: 150 DM | G37: 75 Ha | H37: ja | I37: vertragl. aus der Produktion genommene Waldfläche | J37: 0068 | K37: vertragl. aus der Produktion genommene Waldfläche
A38: 1 | B38: 0166 | C38: 211 | D38: Forst - mit Pflege (FELEG) | E38: HA | F38: nein | G38: nein | H38: nein | I38: Forst | J38: 0166 | K38: Forst
A39: 1 | B39: 0042 | C39: 46 | D39: Futterbau, Bioenergiepflanzen | E39: HA | F39: DHW | G39: 8,0 ha | H39: ja | I39: Futterbau und Bioenergiepflanzen | J39: 0042 | K39: Futterbau, Bioenergiepflanzen
A40: 1 | B40: 0006 | C40: 8 | D40: Garten | E40: HA | F40: DHW | G40: 8,0 ha | H40: ja | I40: Grünland | J40: 0006 | K40: Garten
A41: 1 | B41: 0002 | C41: 2 | D41: Grünland | E41: HA | F41: DHW | G41: 8,0 ha | H41: ja | I41: Grünland | J41: 0002 | K41: Grünland
A42: 2 | B42: 1739 | C42: 953 | D42: Handel / Verwaltung / Dienstleistungen | E42: AT | F42: nein | G42: nein | I42: Handel / Verwaltung / Dienstleistungen | J42: 1739 | K42: Handel / Verwaltung / Dienstleistungen
A43: 2 | B43: 1738 | C43: 952 | D43: Handwerk | E43: AT | F43: nein | G43: nein | I43: Handwerk | J43: 1738 | K43: Handwerk
A44: 2 | B44: 1742 | C44: 956 | D44: Hoch- und Tiefbau | E44: AT | F44: nein | G44: nein | I44: Hoch- und Tiefbau | J44: 1742 | K44: Hoch- und Tiefbau
A45: 1 | B45: 0027 | C45: 29 | D45: Hopfen | E45: HA | F45: DHW x 3 | G45: 2,2 ha | H45: ja | I45: Hopfen | J45: 0027 | K45: Hopfen
A46: 1 | B46: 0054 | C46: 60 | D46: Imkerei | E46: ANZ | F46: 50 DM | G46: 100 Volk | H46: ja | I46: Bienenhaltung | J46: 0054 | K46: Imkerei
A47: 1 | B47: 0092 | C47: 99 | D47: Imkerei (n.gew.) | E47: ANZ | F47: nein | G47: nein | H47: nein | I47: Bienenhaltung | J47: 0092 | K47: Imkerei (n.gew.)
A48: 1 | B48: 0326 | C48: 311 | D48: Industrie-, Frischgemüse mit händischer Ernte | E48: HA | F48: DHW x 4 | G48: 2,2 ha | H48: ja | I48: Industrie-, Frischgemüse mit händischer Ernte | J48: 0326 | K48: Industrie-, Frischgemüse mit händischer Ernte
A49: 1 | B49: 0325 | C49: 310 | D49: Industriegemüse mit vollmechanischer Ernte | E49: HA | F49: DHW x 3 | G49: 2,2 ha | H49: ja | I49: Industriegemüse mit vollmechanischer Ernte | J49: 0325 | K49: Industriegemüse mit vollmechanischer Ernte
A50: 1 | B50: 0327 | C50: 312 | D50: Intensivgemüse | E50: HA | F50: DHW x 4 | G50: 2,2 ha | H50: ja | I50: Intensivgemüse | J50: 0327 | K50: Intensivgemüse
A51: 5 | B51: 3004 | C51: 690 | D51: Jagd - bejagbare Fläche | E51: HA | F51: nein | G51: nein | I51: Jagd | J51: 3004 | K51: bejagbare Fläche
A52: 5 | B52: 3052 | C52: 689 | D52: Jagd - landwirtschaftlicher Unternehmer | E52: HA | F52: nein | G52: nein | I52: Jagd | J52: 3052 | K52: Jagd landwirtschaftlicher Unternehmer
A53: 1 | B53: 0112 | C53: 128 | D53: Junghennenaufzucht | E53: ANZ | F53: nein | G53: nein | H53: nein | I53: Junghennenaufzucht | J53: 0112 | K53: Junghennenaufzucht
A54: 4 | B54: 2565 | C54: 767 | D54: Junghennenaufzucht (ohne Bodenbewirtschaftung) | E54: ANZ | F54: nein | G54: nein | I54: Junghennenaufzucht | J54: 2565 | K54: Junghennenaufzucht_T
A55: 1 | B55: 0251 | C55: 344 | D55: Kaninchenhaltung | E55: ANZ | F55: nein | G55: nein | I55: Kaninchenhaltung | J55: 0251 | K55: Kaninchenhaltung
A56: 4 | B56: 2552 | C56: 798 | D56: Kaninchenhaltung (ohne Bodenbewirtschaftung) | E56: ANZ | F56: nein | G56: nein | I56: Kaninchenhaltung | J56: 2552 | K56: Kaninchenhaltung_T
A57: 1 | B57: 0062 | C57: 69 | D57: Kartoffeln | E57: HA | F57: DHW | G57: 8,0 ha | H57: ja | I57: Kartoffeln | J57: 0062 | K57: Kartoffeln
A58: 1 | B58: 0200 | C58: 378 | D58: Korbweiden | E58: HA | F58: DHW | G58: 8,0 ha | H58: ja | I58: Futterbau und Bioenergiepflanzen | J58: 0200 | K58: Korbweiden
A59: 1 | B59: 0160 | C59: 201 | D59: Landwirtschaft mit Pflege (FELEG) | E59: HA | F59: nein | G59: nein | H59: nein | I59: Aus der Produktion genommene Flächen | J59: 0160 | K59: Landwirtschaft mit Pflege (FELEG)
A60: 1 | B60: 0241 | C60: 396 | D60: Legehennen | E60: ANZ | F60: nein | G60: nein | H60: nein | I60: Legehennen | J60: 0241 | K60: Legehennen
A61: 4 | B61: 2566 | C61: 768 | D61: Legehennen (ohne Bodenbewirtschaftung) | E61: ANZ | F61: nein | G61: nein | I61: Legehennen | J61: 2566 | K61: Legehennen_T
A62: 1 | B62: 0041 | C62: 45 | D62: Mähdruschfrüchte | E62: HA | F62: DHW | G62: 8,0 ha | H62: ja | I62: Mähdrusch, Zuckerrüben | J62: 0041 | K62: Mähdruschfrüchte
A63: 1 | B63: 0243 | C63: 398 | D63: Mastenten | E63: ANZ | F63: nein | G63: nein | H63: nein | I63: Mastenten | J63: 0243 | K63: Mastenten
A64: 4 | B64: 2570 | C64: 772 | D64: Mastenten (ohne Bodenbewirtschaftung) | E64: ANZ | F64: nein | G64: nein | I64: Mastenten | J64: 2570 | K64: Mastenten_T
A65: 1 | B65: 0116 | C65: 133 | D65: Mastgänse | E65: ANZ | F65: nein | G65: nein | H65: nein | I65: Mastgänse | J65: 0116 | K65: Mastgänse
A66: 4 | B66: 2563 | C66: 765 | D66: Mastgänse (ohne Bodenbewirtschaftung) | E66: ANZ | F66: nein | G66: nein | I66: Mastgänse | J66: 2563 | K66: Mastgänse_T
A67: 1 | B67: 0136 | C67: 160 | D67: Masthühner | E67: ANZ | F67: nein | G67: nein | H67: nein | I67: Masthühner | J67: 0136 | K67: Masthühner
A68: 4 | B68: 2568 | C68: 770 | D68: Masthühner (ohne Bodenbewirtschaftung) | E68: ANZ | F68: nein | G68: nein | I68: Masthühner | J68: 2568 | K68: Masthühner_T
A69: 1 | B69: 0242 | C69: 397 | D69: Mastputen | E69: ANZ | F69: nein | G69: nein | H69: nein | I69: Mastputen | J69: 0242 | K69: Mastputen
A70: 4 | B70: 2569 | C70: 771 | D70: Mastputen (ohne Bodenbewirtschaftung) | E70: ANZ | F70: nein | G70: nein | I70: Mastputen | J70: 2569 | K70: Mastputen_T
A71: 1 | B71: 0095 | C71: 102 | D71: Mastschweine | E71: ANZ | F71: nein | G71: nein | H71: nein | I71: Schweinemast, Ferkelaufzucht, Jungsauenaufzucht | J71: 0095 | K71: Mastschweine
A72: 1 | B72: 0099 | C72: 110 | D72: Milchkühe, Deckbullen | E72: ANZ | F72: nein | G72: nein | H72: nein | I72: Milchkühe, Deckbullen | J72: 0099 | K72: Milchkühe, Deckbullen
A73: 4 | B73: 2574 | C73: 784 | D73: Milchkühe, Deckbullen (ohne Bodenbewirtschaftung) | E73: ANZ | F73: nein | G73: nein | I73: Milchkühe, Deckbullen | J73: 2574 | K73: Milchkühe, Deckbullen_T
A74: 1 | B74: 0126 | C74: 150 | D74: Mutterkühe | E74: ANZ | F74: nein | G74: nein | H74: nein | I74: Mutterkühe | J74: 0126 | K74: Mutterkühe
A75: 4 | B75: 2575 | C75: 785 | D75: Mutterkühe - Unternehmen ohne Bodenbewirtschaftung | E75: ANZ | F75: nein | G75: nein | I75: Mutterkühe | J75: 2575 | K75: Mutterkühe_T
A76: 1 | B76: 0262 | C76: 903 | D76: Obstbau mit mechanischer Ernte | E76: HA | F76: DHW x 3 | G76: 2,2 ha | H76: ja | I76: Obstbau mit mechanischer Ernte | J76: 0262 | K76: Obstbau mit mechanischer Ernte
A77: 1 | B77: 0191 | C77: 14 | D77: Pferde - Deckhengste ohne Sporteinsatz | E77: ANZ | F77: nein | G77: nein | H77: nein | I77: Deckhengste ohne Sporteinsatz | J77: 0191 | K77: Deckhengste ohne Sporteinsatz
A78: 4 | B78: 2604 | C78: 932 | D78: Pferde - Deckhengste ohne Sporteinsatz (ohne Bodenbewirtschaftung) | E78: ANZ | F78: nein | G78: nein | I78: Deckhengste ohne Sporteinsatz | J78: 2604 | K78: Deckhengste ohne Sporteinsatz_T
A79: 2 | B79: 1670 | C79: 580 | D79: Pferde - Freizeittiere | E79: ANZ | F79: nein | G79: nein | I79: Pensionstiere sowie Freizeittiere | J79: 1670 | K79: Freizeittiere
A80: 2 | B80: 1656 | C80: 566 | D80: Pferde - Pensionstiere | E80: ANZ | F80: nein | G80: nein | I80: Pensionstiere sowie Freizeittiere | J80: 1656 | K80: Pensionstiere
A81: 2 | B81: 1793 | C81: 462 | D81: Pferde - Sport-,bzw. Turnier-, Renn-, Kutsch-, Schul- und Verleihpferde | E81: ANZ | F81: nein | G81: nein | I81: Sport-,bzw. Turnier-, Renn-, Kutsch-, Schul- und Verleihpferde | J81: 1793 | K81: Sport-,bzw. Turnier-, Renn-, Kutsch-, Schul- und Verleihpferde
A82: 1 | B82: 0309 | C82: 332 | D82: Pferde - Traber und Galopper | E82: ANZ | I82: Sport-,bzw. Turnier-, Renn-, Kutsch-, Schul- und Verleihpferde | J82: 0309 | K82: Traber und Galopper
A83: 4 | B83: 2507 | C83: 697 | D83: Pferde - Traber und Galopper (ohne Fläche) | E83: ANZ | I83: Sport-,bzw. Turnier-, Renn-, Kutsch-, Schul- und Verleihpferde | J83: 2507 | K83: Traber und Galopper_T
A84: 1 | B84: 0310 | C84: 331 | D84: Pferde - Zuchtstuten sowie Aufzucht-, Arbeits- und Gnadenbrottiere | E84: ANZ | F84: nein | G84: nein | H84: nein | I84: Zuchtstuten sowie Aufzucht-, Arbeits- und Gnadenbrottiere | J84: 0310 | K84: Zuchtstuten sowie Aufzucht-, Arbeits- und Gnadenbrottiere
A85: 4 | B85: 2579 | C85: 789 | D85: Pferde - Zuchtstuten sowie Aufzucht-, Arbeits- und Gnadenbrottiere (ohne Fläche) | E85: ANZ | F85: nein | G85: nein | I85: Zuchtstuten sowie Aufzucht-, Arbeits- und Gnadenbrottiere | J85: 2579 | K85: Zuchtstuten sowie Aufzucht-, Arbeits- und Gnadenbrottiere_T
A86: 7 | B86: 3357 | C86: 925 | D86: Personen ehrenamtlich tätig - USF | E86: ANZ | F86: nein | G86: keine | H86: 1 | I86: USF | J86: =B86 -> 3357 | K86: Personen ehrenamtlich tätig - USF
A87: 9 | B87: 3654 | C87: 906 | D87: Personen ehrenamtlich tätig - Verband | E87: ANZ | F87: nein | G87: nein | H87: 1 | I87: Verbände | J87: =B87 -> 3654 | K87: Personen ehrenamtlich tätig - Verband
A88: 50 | B88: 5017 | C88: 291 | D88: Personen ehrenamtlich tätig - Park- und Gartenpflege/Friedhof/Sonstige | E88: ANZ | F88: nein | G88: nein | H88: 1 | I88: Unternehmen der Park- und Gartenpflege, Friedhöfe sowie Haus- und Ziergärten | J88: =B88 -> 5017 | K88: Personen ehrenamtlich tätig - Park- und Gartenpflege/Friedhof/Sonstige
A89: 1 | B89: 0107 | C89: 120 | D89: Sauenhaltung | E89: ANZ | F89: nein | G89: nein | H89: nein | I89: Sauenhaltung | J89: 0107 | K89: Sauenhaltung
A90: 4 | B90: 2581 | C90: 762 | D90: Sauenhaltung - Unternehmen ohne Bodenbewirtschaftung | E90: ANZ | F90: nein | G90: nein | I90: Sauenhaltung | J90: 2581 | K90: Sauenhaltung_T
A91: 1 | B91: 0127 | C91: 151 | D91: Schafe - Fleischschafe | E91: ANZ | F91: nein | G91: nein | H91: nein | I91: Fleischschafe und -ziegen | J91: 0127 | K91: Schafe und Ziegen
A92: 4 | B92: 2573 | C92: 779 | D92: Schafe - Fleischschafe (ohne Bodenbewirtschaftung) | E92: ANZ | F92: nein | G92: nein | I92: Fleischschafe und -ziegen | J92: 2573 | K92: Fleischschafe und -ziegen_T
D93: Schafe - Milchschafe | E93: ANZ | K93: Milchschafe und -ziegen
A94: 4 | B94: 2572 | C94: 778 | D94: Schafe - Milchschafe (ohne Bodenbewirtschaftung) | E94: ANZ | F94: nein | G94: nein | I94: Milchschafe und -ziegen | J94: 2572 | K94: Milchschafe und -ziegen_T
A95: 1 | B95: 0037 | C95: 41 | D95: Schafe - Wanderschafe | E95: ANZ | F95: 20 DM | G95: 240 Tiere | H95: ja | I95: Fleischschafe und -ziegen | J95: 0037 | K95: Wanderschafe
A96: 1 | B96: 0141 | C96: 854 | D96: Schneckenzucht | E96: ANZ | F96: nein | G96: nein | H96: nein | I96: Wildtierhaltung | J96: 0141 | K96: Schneckenzucht
A97: 4 | B97: 2582 | C97: 763 | D97: Schweinemast - Unternehmen ohne Bodenbewirtschaftung | E97: ANZ | F97: nein | G97: nein | I97: Schweinemast, Ferkelaufzucht, Jungsauenaufzucht | J97: 2582 | K97: Schweinemast_T
A98: 1 | B98: 0266 | C98: 343 | D98: Sonstige Rinder | E98: ANZ | F98: nein | G98: nein | I98: Sonstige Rinder | J98: 0266 | K98: Sonstige Rinder
A99: 4 | B99: 2603 | C99: 761 | D99: Sonstige Rinder - Unternehmen ohne Bodenbewirtschaftung | E99: ANZ | F99: nein | G99: nein | I99: Sonstige Rinder | J99: 2603 | K99: Sonstige Rinder_T
A100: 1 | B100: 0030 | C100: 32 | D100: Spargel | E100: HA | F100: DHW x 4 | G100: 2,2 ha | H100: ja | I100: Intensivgemüse | J100: 0030 | K100: Spargel
A101: 1 | B101: 0129 | C101: 153 | D101: Stillegung/Pflege | E101: HA | F101: 300 DM | G101: 8,0 ha | H101: ja | I101: Aus der Produktion genommene Flächen | J101: 0129 | K101: Stillegung/Pflege
A102: 1 | B102: 0155 | C102: 188 | D102: stillgelegte Fläche ALG | E102: HA | F102: nein | G102: nein | H102: nein | I102: Aus der Produktion genommene Flächen | J102: 0155 | K102: stillgelegte Fläche ALG
A103: 1 | B103: 0206 | C103: 395 | D103: Streuobstwiesen (nur Obstbaumnutzung) | E103: HA | F103: DHW | G103: 8,0 ha | H103: ja | I103: Grünland | J103: 0206 | K103: Streuobstwiesen (nur Obstbaumnutzung)
A104: 1 | B104: 0028 | C104: 30 | D104: Tabak | E104: HA | F104: DHW x 3 | G104: 2,2 ha | H104: ja | I104: Tabak | J104: 0028 | K104: Tabak
A105: 1 | B105: 0046 | C105: 50 | D105: Teichwirtschaft Karpfen | E105: HA | G105: 10,00 ha | H105: ja | I105: Teichwirtschaft Karpfen | J105: 0046 | K105: Teichwirtschaft Karpfen
A106: 2 | B106: 1740 | C106: 954 | D106: Transport- und Fuhrunternehmen | E106: AT | F106: nein | G106: nein | I106: Transport- und Fuhrunternehmen | J106: 1740 | K106: Transport- und Fuhrunternehmen
A107: 2 | B107: 1588 | C107: 491 | D107: Urlaub auf dem Bauernhof | E107: BT | F107: nein | G107: nein | I107: Urlaub auf dem Bauernhof | J107: 1588 | K107: Urlaub auf dem Bauernhof
A108: 2 | B108: 1741 | C108: 955 | D108: Veredelung / Produktgewinnung | E108: AT | F108: nein | G108: nein | I108: Veredelung / Produktgewinnung | J108: 1741 | K108: Veredelung / Produktgewinnung
A109: 1 | B109: 0261 | C109: 902 | D109: Weinbau - ausschließliche Traubenproduktion | E109: HA | F109: DHW Wein | G109: 2,0 ha | H109: ja | I109: ausschließliche Traubenproduktion | J109: 0261 | K109: Ausschließliche Traubenproduktion
A110: 1 | B110: 0019 | C110: 21 | D110: Weinbau - Traubenproduktion mit eigener Kellerwirtschaft | E110: HA | F110: DHW Wein | G110: 2,0 ha | H110: ja | I110: Traubenproduktion mit eigener Kellerwirtschaft | J110: 0019 | K110: Traubenproduktion mit eigener Kellerwirtschaft
A111: 1 | B111: 0117 | C111: 134 | D111: Wildtierhaltung | E111: ANZ | F111: nein | G111: nein | H111: nein | I111: Wildtierhaltung | J111: 0117 | K111: Wildtierhaltung
D112: Ziegen - Fleischziegen | E112: ANZ | K112: Schafe und Ziegen
D113: Ziegen - Fleischziegen (ohne Bodenbewirtschaftung) | K113: Fleischschafe und -ziegen_T
A114: 1 | B114: 0257 | C114: 746 | D114: Ziegen - Milchziegen | E114: ANZ | F114: nein | G114: nein | H114: nein | I114: Milchschafe und -ziegen | J114: 0257 | K114: Milchschafe und -ziegen
D115: Ziegen - Milchziegen (ohne Bodenbewirtschaftung) | K115: Milchschafe und -ziegen_T
A116: 1 | B116: 0005 | C116: 6 | D116: Zuckerrüben | E116: HA | F116: DHW | G116: 8,0 ha | H116: ja | I116: Mähdrusch, Zuckerrüben | J116: 0005 | K116: Zuckerrüben

Sheet Zwischenspeicher (hidden)
A1: Katasterart | B1: Menge | C1: Dimension | D1: Übersetzung für Berechnung
C2: =IF(ISERROR(VLOOKUP(A2,BKV!$D$3:$E$116,2,FALSE)),IF(ISERROR(VLOOKUP(A2,#REF!,3,FALSE)),"",VLOOKUP(A2,#REF!,3,FALSE)),VLOOKUP(A2,BKV!$D$3:$E$116,2,FALSE)) ->  | D2: =IF(ISERROR(VLOOKUP(A2,BKV!$D$3:$K$116,8,FALSE)),"",VLOOKUP(A2,BKV!$D$3:$K$116,8,FALSE)) -> 
C3: =IF(ISERROR(VLOOKUP(A3,BKV!$D$3:$E$116,2,FALSE)),IF(ISERROR(VLOOKUP(A3,#REF!,3,FALSE)),"",VLOOKUP(A3,#REF!,3,FALSE)),VLOOKUP(A3,BKV!$D$3:$E$116,2,FALSE)) ->  | D3: =IF(ISERROR(VLOOKUP(A3,BKV!$D$3:$K$116,8,FALSE)),"",VLOOKUP(A3,BKV!$D$3:$K$116,8,FALSE)) -> 
C4: =IF(ISERROR(VLOOKUP(A4,BKV!$D$3:$E$116,2,FALSE)),IF(ISERROR(VLOOKUP(A4,#REF!,3,FALSE)),"",VLOOKUP(A4,#REF!,3,FALSE)),VLOOKUP(A4,BKV!$D$3:$E$116,2,FALSE)) ->  | D4: =IF(ISERROR(VLOOKUP(A4,BKV!$D$3:$K$116,8,FALSE)),"",VLOOKUP(A4,BKV!$D$3:$K$116,8,FALSE)) -> 
C5: =IF(ISERROR(VLOOKUP(A5,BKV!$D$3:$E$116,2,FALSE)),IF(ISERROR(VLOOKUP(A5,#REF!,3,FALSE)),"",VLOOKUP(A5,#REF!,3,FALSE)),VLOOKUP(A5,BKV!$D$3:$E$116,2,FALSE)) ->  | D5: =IF(ISERROR(VLOOKUP(A5,BKV!$D$3:$K$116,8,FALSE)),"",VLOOKUP(A5,BKV!$D$3:$K$116,8,FALSE)) -> 
C6: =IF(ISERROR(VLOOKUP(A6,BKV!$D$3:$E$116,2,FALSE)),IF(ISERROR(VLOOKUP(A6,#REF!,3,FALSE)),"",VLOOKUP(A6,#REF!,3,FALSE)),VLOOKUP(A6,BKV!$D$3:$E$116,2,FALSE)) ->  | D6: =IF(ISERROR(VLOOKUP(A6,BKV!$D$3:$K$116,8,FALSE)),"",VLOOKUP(A6,BKV!$D$3:$K$116,8,FALSE)) -> 
C7: =IF(ISERROR(VLOOKUP(A7,BKV!$D$3:$E$116,2,FALSE)),IF(ISERROR(VLOOKUP(A7,#REF!,3,FALSE)),"",VLOOKUP(A7,#REF!,3,FALSE)),VLOOKUP(A7,BKV!$D$3:$E$116,2,FALSE)) ->  | D7: =IF(ISERROR(VLOOKUP(A7,BKV!$D$3:$K$116,8,FALSE)),"",VLOOKUP(A7,BKV!$D$3:$K$116,8,FALSE)) -> 
C8: =IF(ISERROR(VLOOKUP(A8,BKV!$D$3:$E$116,2,FALSE)),IF(ISERROR(VLOOKUP(A8,#REF!,3,FALSE)),"",VLOOKUP(A8,#REF!,3,FALSE)),VLOOKUP(A8,BKV!$D$3:$E$116,2,FALSE)) ->  | D8: =IF(ISERROR(VLOOKUP(A8,BKV!$D$3:$K$116,8,FALSE)),"",VLOOKUP(A8,BKV!$D$3:$K$116,8,FALSE)) -> 
C9: =IF(ISERROR(VLOOKUP(A9,BKV!$D$3:$E$116,2,FALSE)),IF(ISERROR(VLOOKUP(A9,#REF!,3,FALSE)),"",VLOOKUP(A9,#REF!,3,FALSE)),VLOOKUP(A9,BKV!$D$3:$E$116,2,FALSE)) ->  | D9: =IF(ISERROR(VLOOKUP(A9,BKV!$D$3:$K$116,8,FALSE)),"",VLOOKUP(A9,BKV!$D$3:$K$116,8,FALSE)) -> 
C10: =IF(ISERROR(VLOOKUP(A10,BKV!$D$3:$E$116,2,FALSE)),IF(ISERROR(VLOOKUP(A10,#REF!,3,FALSE)),"",VLOOKUP(A10,#REF!,3,FALSE)),VLOOKUP(A10,BKV!$D$3:$E$116,2,FALSE)) ->  | D10: =IF(ISERROR(VLOOKUP(A10,BKV!$D$3:$K$116,8,FALSE)),"",VLOOKUP(A10,BKV!$D$3:$K$116,8,FALSE)) -> 
C11: =IF(ISERROR(VLOOKUP(A11,BKV!$D$3:$E$116,2,FALSE)),IF(ISERROR(VLOOKUP(A11,#REF!,3,FALSE)),"",VLOOKUP(A11,#REF!,3,FALSE)),VLOOKUP(A11,BKV!$D$3:$E$116,2,FALSE)) ->  | D11: =IF(ISERROR(VLOOKUP(A11,BKV!$D$3:$K$116,8,FALSE)),"",VLOOKUP(A11,BKV!$D$3:$K$116,8,FALSE)) -> 
C12: =IF(ISERROR(VLOOKUP(A12,BKV!$D$3:$E$116,2,FALSE)),IF(ISERROR(VLOOKUP(A12,#REF!,3,FALSE)),"",VLOOKUP(A12,#REF!,3,FALSE)),VLOOKUP(A12,BKV!$D$3:$E$116,2,FALSE)) ->  | D12: =IF(ISERROR(VLOOKUP(A12,BKV!$D$3:$K$116,8,FALSE)),"",VLOOKUP(A12,BKV!$D$3:$K$116,8,FALSE)) -> 
C13: =IF(ISERROR(VLOOKUP(A13,BKV!$D$3:$E$116,2,FALSE)),IF(ISERROR(VLOOKUP(A13,#REF!,3,FALSE)),"",VLOOKUP(A13,#REF!,3,FALSE)),VLOOKUP(A13,BKV!$D$3:$E$116,2,FALSE)) ->  | D13: =IF(ISERROR(VLOOKUP(A13,BKV!$D$3:$K$116,8,FALSE)),"",VLOOKUP(A13,BKV!$D$3:$K$116,8,FALSE)) -> 
C14: =IF(ISERROR(VLOOKUP(A14,BKV!$D$3:$E$116,2,FALSE)),IF(ISERROR(VLOOKUP(A14,#REF!,3,FALSE)),"",VLOOKUP(A14,#REF!,3,FALSE)),VLOOKUP(A14,BKV!$D$3:$E$116,2,FALSE)) ->  | D14: =IF(ISERROR(VLOOKUP(A14,BKV!$D$3:$K$116,8,FALSE)),"",VLOOKUP(A14,BKV!$D$3:$K$116,8,FALSE)) -> 
C15: =IF(ISERROR(VLOOKUP(A15,BKV!$D$3:$E$116,2,FALSE)),IF(ISERROR(VLOOKUP(A15,#REF!,3,FALSE)),"",VLOOKUP(A15,#REF!,3,FALSE)),VLOOKUP(A15,BKV!$D$3:$E$116,2,FALSE)) ->  | D15: =IF(ISERROR(VLOOKUP(A15,BKV!$D$3:$K$116,8,FALSE)),"",VLOOKUP(A15,BKV!$D$3:$K$116,8,FALSE)) -> 
C16: =IF(ISERROR(VLOOKUP(A16,BKV!$D$3:$E$116,2,FALSE)),IF(ISERROR(VLOOKUP(A16,#REF!,3,FALSE)),"",VLOOKUP(A16,#REF!,3,FALSE)),VLOOKUP(A16,BKV!$D$3:$E$116,2,FALSE)) ->  | D16: =IF(ISERROR(VLOOKUP(A16,BKV!$D$3:$K$116,8,FALSE)),"",VLOOKUP(A16,BKV!$D$3:$K$116,8,FALSE)) -> 
C17: =IF(ISERROR(VLOOKUP(A17,BKV!$D$3:$E$116,2,FALSE)),IF(ISERROR(VLOOKUP(A17,#REF!,3,FALSE)),"",VLOOKUP(A17,#REF!,3,FALSE)),VLOOKUP(A17,BKV!$D$3:$E$116,2,FALSE)) ->  | D17: =IF(ISERROR(VLOOKUP(A17,BKV!$D$3:$K$116,8,FALSE)),"",VLOOKUP(A17,BKV!$D$3:$K$116,8,FALSE)) -> 
C18: =IF(ISERROR(VLOOKUP(A18,BKV!$D$3:$E$116,2,FALSE)),IF(ISERROR(VLOOKUP(A18,#REF!,3,FALSE)),"",VLOOKUP(A18,#REF!,3,FALSE)),VLOOKUP(A18,BKV!$D$3:$E$116,2,FALSE)) ->  | D18: =IF(ISERROR(VLOOKUP(A18,BKV!$D$3:$K$116,8,FALSE)),"",VLOOKUP(A18,BKV!$D$3:$K$116,8,FALSE)) -> 
C19: =IF(ISERROR(VLOOKUP(A19,BKV!$D$3:$E$116,2,FALSE)),IF(ISERROR(VLOOKUP(A19,#REF!,3,FALSE)),"",VLOOKUP(A19,#REF!,3,FALSE)),VLOOKUP(A19,BKV!$D$3:$E$116,2,FALSE)) ->  | D19: =IF(ISERROR(VLOOKUP(A19,BKV!$D$3:$K$116,8,FALSE)),"",VLOOKUP(A19,BKV!$D$3:$K$116,8,FALSE)) -> 
C20: =IF(ISERROR(VLOOKUP(A20,BKV!$D$3:$E$116,2,FALSE)),IF(ISERROR(VLOOKUP(A20,#REF!,3,FALSE)),"",VLOOKUP(A20,#REF!,3,FALSE)),VLOOKUP(A20,BKV!$D$3:$E$116,2,FALSE)) ->  | D20: =IF(ISERROR(VLOOKUP(A20,BKV!$D$3:$K$116,8,FALSE)),"",VLOOKUP(A20,BKV!$D$3:$K$116,8,FALSE)) -> 
C21: =IF(ISERROR(VLOOKUP(A21,BKV!$D$3:$E$116,2,FALSE)),IF(ISERROR(VLOOKUP(A21,#REF!,3,FALSE)),"",VLOOKUP(A21,#REF!,3,FALSE)),VLOOKUP(A21,BKV!$D$3:$E$116,2,FALSE)) ->  | D21: =IF(ISERROR(VLOOKUP(A21,BKV!$D$3:$K$116,8,FALSE)),"",VLOOKUP(A21,BKV!$D$3:$K$116,8,FALSE)) -> 
C22: =IF(ISERROR(VLOOKUP(A22,BKV!$D$3:$E$116,2,FALSE)),IF(ISERROR(VLOOKUP(A22,#REF!,3,FALSE)),"",VLOOKUP(A22,#REF!,3,FALSE)),VLOOKUP(A22,BKV!$D$3:$E$116,2,FALSE)) ->  | D22: =IF(ISERROR(VLOOKUP(A22,BKV!$D$3:$K$116,8,FALSE)),"",VLOOKUP(A22,BKV!$D$3:$K$116,8,FALSE)) -> 

Sheet Zusammenfassung (hidden)
A1: Risikogruppe Produktionsverfahren (PV) | C1: Menge | E1: BER je Einheit | F1: BER PV | G1: Hebe-satz (EUR je BER) | H1: Risiko-grup-pen-faktor | I1: Risiko-faktor PV | J1: Beitrag in EUR
A2: Ackerbau | C2: =SUM(C3:C15) -> 0
A3: Mähdrusch, Zuckerrüben | C3: =SUM(C4:C5) -> 0 | F3: =Berechnung_UA01!E11 -> 0 | G3: =Berechnung_UA01!F11 -> 7.83 | H3: =Berechnung_UA01!G11 -> 1.8456 | I3: =Berechnung_UA01!H11 -> 1.0993 | J3: =Berechnung_UA01!I11 -> 0
A4: Mähdruschfrüchte | C4: =Berechnung_UA01!B12 -> 0 | D4: =Berechnung_UA01!C12 -> ha | E4: =Berechnung_UA01!D12 -> 0 | F4: =Berechnung_UA01!E12 -> 0
A5: Zuckerrüben | C5: =Berechnung_UA01!B13 -> 0 | D5: =Berechnung_UA01!C13 -> ha | E5: =Berechnung_UA01!D13 -> 0 | F5: =Berechnung_UA01!E13 -> 0
A6: Futterbau und Bioenergiepflanzen | C6: =SUM(C7:C8) -> 0 | F6: =Berechnung_UA01!E14 -> 0 | G6: =Berechnung_UA01!F14 -> 7.83 | H6: =Berechnung_UA01!G14 -> 1.8456 | I6: =Berechnung_UA01!H14 -> 0.6261 | J6: =Berechnung_UA01!I14 -> 0
A7: Futterbau, Bioenergiepflanzen | C7: =Berechnung_UA01!B15 -> 0 | D7: =Berechnung_UA01!C15 -> ha | E7: =Berechnung_UA01!D15 -> 0 | F7: =Berechnung_UA01!E15 -> 0
A8: Korbweiden | C8: =Berechnung_UA01!B16 -> 0 | D8: =Berechnung_UA01!C16 -> ha | E8: =Berechnung_UA01!D16 -> 0 | F8: =Berechnung_UA01!E16 -> 0
A9: Kartoffeln | C9: =C10 -> 0 | F9: =Berechnung_UA01!E17 -> 0 | G9: =Berechnung_UA01!F17 -> 7.83 | H9: =Berechnung_UA01!G17 -> 1.8456 | I9: =Berechnung_UA01!H17 -> 2.0716 | J9: =Berechnung_UA01!I17 -> 0
A10: Kartoffeln | C10: =Berechnung_UA01!B17 -> 0 | D10: =Berechnung_UA01!C17 -> ha | E10: =Berechnung_UA01!D17 -> 0 | F10: =Berechnung_UA01!E17 -> 0
A11: Aus der Produktion genommene Flächen | C11: =SUM(C12:C15) -> 0 | F11: =Berechnung_UA01!E18 -> 0 | G11: =Berechnung_UA01!F18 -> 7.83 | H11: =Berechnung_UA01!G18 -> 1.8456 | I11: =Berechnung_UA01!H18 -> 0.7817 | J11: =Berechnung_UA01!I18 -> 0
A12: Stillegung/Pflege | C12: =Berechnung_UA01!B19 -> 0 | D12: =Berechnung_UA01!C19 -> ha | E12: =Berechnung_UA01!D19 -> 0 | F12: =Berechnung_UA01!E19 -> 0
A14: stillgelegte Fläche ALG | C14: =Berechnung_UA01!B20 -> 0 | D14: =Berechnung_UA01!C20 -> ha | E14: =Berechnung_UA01!D20 -> 0 | F14: =Berechnung_UA01!E20 -> 0
A15: Landwirtschaft mit Pflege (FELEG) | C15: =Berechnung_UA01!B21 -> 0 | D15: =Berechnung_UA01!C21 -> ha | E15: =Berechnung_UA01!D21 -> 0 | F15: =Berechnung_UA01!E21 -> 0
A16: Grünland | C16: =SUM(C18:C22) -> 0
A17: Almen, Alpen, Hutungen | C17: =C18 -> 0 | F17: =Berechnung_UA01!E23 -> 0 | G17: =Berechnung_UA01!F23 -> 7.83 | H17: =Berechnung_UA01!G23 -> 3.0344 | I17: =Berechnung_UA01!H23 -> 0.9957 | J17: =Berechnung_UA01!I23 -> 0
A18: Almen, Alpen, Hutungen | C18: =Berechnung_UA01!B23 -> 0 | D18: =Berechnung_UA01!C23 -> ha | E18: =Berechnung_UA01!D23 -> 0 | F18: =Berechnung_UA01!E23 -> 0
A19: Grünland | C19: =SUM(C20:C22) -> 0 | F19: =Berechnung_UA01!E24 -> 0 | G19: =Berechnung_UA01!F24 -> 7.83 | H19: =Berechnung_UA01!G24 -> 3.0344 | I19: =Berechnung_UA01!H24 -> 1 | J19: =Berechnung_UA01!I24 -> 0
A20: Grünland | C20: =Berechnung_UA01!B25 -> 0 | D20: =Berechnung_UA01!C25 -> ha | E20: =Berechnung_UA01!D25 -> 0 | F20: =Berechnung_UA01!E25 -> 0
A21: Garten | C21: =Berechnung_UA01!B26 -> 0 | D21: =Berechnung_UA01!C26 -> ha | E21: =Berechnung_UA01!D26 -> 0 | F21: =Berechnung_UA01!E26 -> 0
A22: Streuobstwiesen | C22: =Berechnung_UA01!B27 -> 0 | D22: =Berechnung_UA01!C27 -> ha | E22: =Berechnung_UA01!D27 -> 0 | F22: =Berechnung_UA01!E27 -> 0
A23: (nur Obstbaumnutzung) | C23: =C22 -> 0
A24: Weinbau | C24: =SUM(C26:C29) -> 0
A25: Ausschließliche Traubenproduktion | C25: =C26 -> 0 | F25: =Berechnung_UA01!E29 -> 0 | G25: =Berechnung_UA01!F29 -> 7.83 | H25: =Berechnung_UA01!G29 -> 0.3995 | I25: =Berechnung_UA01!H29 -> 0.9213 | J25: =Berechnung_UA01!I29 -> 0
A26: Ausschließliche Traubenproduktion | C26: =Berechnung_UA01!B29 -> 0 | D26: =Berechnung_UA01!C29 -> ha | E26: =Berechnung_UA01!D29 -> 0 | F26: =Berechnung_UA01!E29 -> 0
A27: Traubenproduktion mit eigener | C27: =C29 -> 0
A28: Kellerwirtschaft | C28: =C27 -> 0 | F28: =Berechnung_UA01!E30 -> 0 | G28: =Berechnung_UA01!F30 -> 7.83 | H28: =Berechnung_UA01!G30 -> 0.3995 | I28: =Berechnung_UA01!H30 -> 1.0268 | J28: =Berechnung_UA01!I30 -> 0
A29: Traubenproduktion mit eigener | C29: =Berechnung_UA01!B30 -> 0 | D29: =Berechnung_UA01!C30 -> ha | E29: =Berechnung_UA01!D30 -> 0 | F29: =Berechnung_UA01!E30 -> 0
A30: Kellerwirtschaft | C30: =C29 -> 0
A31: Obst und Gemüse im Freiland, Hopfen, Tabak und Weihnachtsbäume | C31: =SUM(C33:C55) -> 0
A32: Christbaumkulturen | C32: =C33 -> 0 | F32: =Berechnung_UA01!E32 -> 0 | G32: =Berechnung_UA01!F32 -> 7.83 | H32: =Berechnung_UA01!G32 -> 0.3671 | I32: =Berechnung_UA01!H32 -> 4.7624 | J32: =Berechnung_UA01!I32 -> 0
A33: Christbaumkulturen | C33: =Berechnung_UA01!B32 -> 0 | D33: =Berechnung_UA01!C32 -> ha | E33: =Berechnung_UA01!D32 -> 0 | F33: =Berechnung_UA01!E32 -> 0
A34: Baumobst | C34: =C35 -> 0 | F34: =Berechnung_UA01!E33 -> 0 | G34: =Berechnung_UA01!F33 -> 7.83 | H34: =Berechnung_UA01!G33 -> 0.3671 | I34: =Berechnung_UA01!H33 -> 1.76 | J34: =Berechnung_UA01!I33 -> 0
A35: Baumobst | C35: =Berechnung_UA01!B33 -> 0 | D35: =Berechnung_UA01!C33 -> ha | E35: =Berechnung_UA01!D33 -> 0 | F35: =Berechnung_UA01!E33 -> 0
A36: Hopfen | C36: =C37 -> 0 | F36: =Berechnung_UA01!E34 -> 0 | G36: =Berechnung_UA01!F34 -> 7.83 | H36: =Berechnung_UA01!G34 -> 0.3671 | I36: =Berechnung_UA01!H34 -> 2.6222 | J36: =Berechnung_UA01!I34 -> 0
A37: Hopfen | C37: =Berechnung_UA01!B34 -> 0 | D37: =Berechnung_UA01!C34 -> ha | E37: =Berechnung_UA01!D34 -> 0 | F37: =Berechnung_UA01!E34 -> 0
A38: Tabak | C38: =C39 -> 0 | F38: =Berechnung_UA01!E35 -> 0 | G38: =Berechnung_UA01!F35 -> 7.83 | H38: =Berechnung_UA01!G35 -> 0.3671 | I38: =Berechnung_UA01!H35 -> 0 | J38: =Berechnung_UA01!I35 -> 0
A39: Tabak | C39: =Berechnung_UA01!B35 -> 0 | D39: =Berechnung_UA01!C35 -> ha | E39: =Berechnung_UA01!D35 -> 0 | F39: =Berechnung_UA01!E35 -> 0
A40: Beerenobst | C40: =C41 -> 0 | F40: =Berechnung_UA01!E36 -> 0 | G40: =Berechnung_UA01!F36 -> 7.83 | H40: =Berechnung_UA01!G36 -> 0.3671 | I40: =Berechnung_UA01!H36 -> 0.3407 | J40: =Berechnung_UA01!I36 -> 0
A41: Beerenobst | C41: =Berechnung_UA01!B36 -> 0 | D41: =Berechnung_UA01!C36 -> ha | E41: =Berechnung_UA01!D36 -> 0 | F41: =Berechnung_UA01!E36 -> 0
A42: Intensivgemüse | C42: =SUM(C43:C44) -> 0 | F42: =Berechnung_UA01!E37 -> 0 | G42: =Berechnung_UA01!F37 -> 7.83 | H42: =Berechnung_UA01!G37 -> 0.3671 | I42: =Berechnung_UA01!H37 -> 0.6149 | J42: =Berechnung_UA01!I37 -> 0
A43: Spargel | C43: =Berechnung_UA01!B38 -> 0 | D43: =Berechnung_UA01!C38 -> ha | E43: =Berechnung_UA01!D38 -> 0 | F43: =Berechnung_UA01!E38 -> 0
A44: Intensivgemüse | C44: =Berechnung_UA01!B39 -> 0 | D44: =Berechnung_UA01!C39 -> ha | E44: =Berechnung_UA01!D39 -> 0 | F44: =Berechnung_UA01!E39 -> 0
A45: Obstbau mit mechanischer Ernte | C45: =C46 -> 0 | F45: =Berechnung_UA01!E40 -> 0 | G45: =Berechnung_UA01!F40 -> 7.83 | H45: =Berechnung_UA01!G40 -> 0.3671 | I45: =Berechnung_UA01!H40 -> 0.9288 | J45: =Berechnung_UA01!I40 -> 0
A46: Obstbau mit mechanischer Ernte | C46: =Berechnung_UA01!B40 -> 0 | D46: =Berechnung_UA01!C40 -> ha | E46: =Berechnung_UA01!D40 -> 0 | F46: =Berechnung_UA01!E40 -> 0
A47: Industrie-, Frischgemüse mit händischer | C47: =C49 -> 0
A48: Ernte | C48: =C47 -> 0 | F48: =Berechnung_UA01!E41 -> 0 | G48: =Berechnung_UA01!F41 -> 7.83 | H48: =Berechnung_UA01!G41 -> 0.3671 | I48: =Berechnung_UA01!H41 -> 0.7861 | J48: =Berechnung_UA01!I41 -> 0
A49: Industrie-, Frischgemüse mit | C49: =Berechnung_UA01!B42 -> 0 | D49: =Berechnung_UA01!C42 -> ha | E49: =Berechnung_UA01!D42 -> 0 | F49: =Berechnung_UA01!E42 -> 0
A50: händischer Ernte | C50: =C49 -> 0
A51: Tabak | C51: =Berechnung_UA01!B43 -> 0 | D51: =Berechnung_UA01!C43 -> ha | E51: =Berechnung_UA01!D43 -> 0 | F51: =Berechnung_UA01!E43 -> 0
A52: Industriegemüse mit vollmechanischer | C52: =SUM(C54:C55) -> 0
A53: Ernte | C53: =C52 -> 0 | F53: =Berechnung_UA01!E44 -> 0 | G53: =Berechnung_UA01!F44 -> 7.83 | H53: =Berechnung_UA01!G44 -> 0.3671 | I53: =Berechnung_UA01!H44 -> 4.1205 | J53: =Berechnung_UA01!I44 -> 0
A54: Blumen und Zierpflanzen | C54: =Berechnung_UA01!B45 -> 0 | D54: =Berechnung_UA01!C45 -> ha | E54: =Berechnung_UA01!D45 -> 0 | F54: =Berechnung_UA01!E45 -> 0
A55: Industriegemüse mit vollmechanischer | C55: =Berechnung_UA01!B46 -> 0 | D55: =Berechnung_UA01!C46 -> ha | E55: =Berechnung_UA01!D46 -> 0 | F55: =Berechnung_UA01!E46 -> 0
A56: Ernte | C56: =C55 -> 0
A57: Forst | C57: =C59+C61 -> 0
A58: Forst | C58: =C59+C61 -> 0
A59: Forst | C59: =Berechnung_UA01!B48 -> 0 | D59: =Berechnung_UA01!C48 -> ha | E59: =Berechnung_UA01!D48 -> 0 | F59: =Berechnung_UA01!E48 -> 0 | G59: =Berechnung_UA01!F48 -> 7.83 | H59: =Berechnung_UA01!G47 -> 11.0763 | I59: =Berechnung_UA01!H47 -> 1 | J59: =Berechnung_UA01!I47 -> 0
A60: Einschlagsfestmeter | C60: =IF(C59=0,0,IF(C59<100,0,Berechnung_UA01!B50)) -> 0 | D60: =Berechnung_UA01!C50 -> Fm | E60: =IF(C59>100,1,0) -> 0 | F60: =IF(C61>100,1,0) -> 0
A61: vertragl. aus der Produktion genommene Waldfläche | C61: =Berechnung_UA01!B51 -> 0 | D61: =Berechnung_UA01!C51 -> ha | E61: =Berechnung_UA01!D51 -> 0.1 | F61: =Berechnung_UA01!E51 -> 0 | G61: =Berechnung_UA01!F51 -> 7.83 | H61: =Berechnung_UA01!G51 -> 0 | I61: =Berechnung_UA01!H51 -> 0 | J61: =Berechnung_UA01!I52+Berechnung_UA01!I51 -> 0
A62: Rinderhaltung | C62: =SUM(C64:C68) -> 0
A63: Milchkühe, Deckbullen | C63: =C64 -> 0 | F63: =Berechnung_UA01!E53 -> 0 | G63: =Berechnung_UA01!F54 -> 7.83 | H63: =Berechnung_UA01!G54 -> 1.1085 | I63: =Berechnung_UA01!H54 -> 1.1807 | J63: =Berechnung_UA01!I53 -> 0
A64: Milchkühe, Deckbullen | C64: =Berechnung_UA01!B53 -> 0 | D64: =Berechnung_UA01!C53 -> Anz | E64: =Berechnung_UA01!D53 -> 0 | F64: =Berechnung_UA01!E53 -> 0
A65: Mutterkühe ohne Kälber | C65: =C66 -> 0 | F65: =Berechnung_UA01!E54 -> 0 | G65: =Berechnung_UA01!F54 -> 7.83 | H65: =Berechnung_UA01!G54 -> 1.1085 | I65: =Berechnung_UA01!H54 -> 1.1807 | J65: =Berechnung_UA01!I54 -> 0
A66: Mutterkühe | C66: =Berechnung_UA01!B54 -> 0 | D66: =Berechnung_UA01!C54 -> Anz | E66: =Berechnung_UA01!D54 -> 0 | F66: =Berechnung_UA01!E54 -> 0
A67: Sonstige Rinder, Kälber | C67: =C68 -> 0 | F67: =Berechnung_UA01!E55 -> 0 | G67: =Berechnung_UA01!F55 -> 7.83 | H67: =Berechnung_UA01!G55 -> 1.1085 | I67: =Berechnung_UA01!H55 -> 1.2235 | J67: =Berechnung_UA01!I55 -> 0
A68: Sonstige Rinder | C68: =Berechnung_UA01!B55 -> 0 | D68: =Berechnung_UA01!C55 -> Anz | E68: =Berechnung_UA01!D55 -> 0 | F68: =Berechnung_UA01!E55 -> 0
A69: Schweinehaltung | C69: =SUM(C70:C75) -> 0
A70: Schweinemast, Ferkelaufzucht, | C70: =SUM(C72:C73) -> 0
A71: Jungsauenaufzucht | C71: =C70 -> 0 | F71: =Berechnung_UA01!E57 -> 0 | G71: =Berechnung_UA01!F57 -> 7.83 | H71: =Berechnung_UA01!G57 -> 1.1936 | I71: =Berechnung_UA01!H57 -> 1.1864 | J71: =Berechnung_UA01!I57 -> 0
A72: Mastschweine | C72: =Berechnung_UA01!B58 -> 0 | D72: =Berechnung_UA01!C58 -> Anz | E72: =Berechnung_UA01!D58 -> 0 | F72: =Berechnung_UA01!E58 -> 0
A73: Ferkelaufzucht | C73: =Berechnung_UA01!B59 -> 0 | D73: =Berechnung_UA01!C59 -> Anz | E73: =Berechnung_UA01!D59 -> 0 | F73: =Berechnung_UA01!E59 -> 0
A74: Sauenhaltung | C74: =C75 -> 0 | F74: =Berechnung_UA01!E60 -> 0 | G74: =Berechnung_UA01!F60 -> 7.83 | H74: =Berechnung_UA01!G60 -> 1.1936 | I74: =Berechnung_UA01!H60 -> 0.7201 | J74: =Berechnung_UA01!I60 -> 0
A75: Sauenhaltung | C75: =Berechnung_UA01!B60 -> 0 | D75: =Berechnung_UA01!C60 -> Anz | E75: =Berechnung_UA01!D60 -> 0 | F75: =Berechnung_UA01!E60 -> 0
A76: Unternehmen der sonstigen Tierhaltung | C76: =SUM(C78:C107) -> 0
A77: Legehennen | C77: =C78 -> 0
A78: Legehennen | C78: =Berechnung_UA01!B62 -> 0 | D78: =Berechnung_UA01!C62 -> Anz | E78: =Berechnung_UA01!D62 -> 0 | F78: =Berechnung_UA01!E62 -> 0 | G78: =Berechnung_UA01!F62 -> 7.83 | H78: =Berechnung_UA01!G62 -> 1.1197 | I78: =Berechnung_UA01!H62 -> 1.0658 | J78: =Berechnung_UA01!I62 -> 0
A79: Junghennenaufzucht | C79: =C80 -> 0
A80: Junghennenaufzucht | C80: =Berechnung_UA01!B63 -> 0 | D80: =Berechnung_UA01!C63 -> Anz | E80: =Berechnung_UA01!D63 -> 0 | F80: =Berechnung_UA01!E63 -> 0 | G80: =Berechnung_UA01!F63 -> 7.83 | H80: =Berechnung_UA01!G63 -> 1.1197 | I80: =Berechnung_UA01!H63 -> 0.7136 | J80: =Berechnung_UA01!I63 -> 0
A81: Masthühner | C81: =C82 -> 0
A82: Masthühner | C82: =Berechnung_UA01!B64 -> 0 | D82: =Berechnung_UA01!C64 -> Anz | E82: =Berechnung_UA01!D64 -> 0 | F82: =Berechnung_UA01!E64 -> 0 | G82: =Berechnung_UA01!F64 -> 7.83 | H82: =Berechnung_UA01!G64 -> 1.1197 | I82: =Berechnung_UA01!H64 -> 0.7499 | J82: =Berechnung_UA01!I64 -> 0
A83: Mastenten | C83: =C84 -> 0
A84: Mastenten | C84: =Berechnung_UA01!B65 -> 0 | D84: =Berechnung_UA01!C65 -> Anz | E84: =Berechnung_UA01!D65 -> 0 | F84: =Berechnung_UA01!E65 -> 0 | G84: =Berechnung_UA01!F65 -> 7.83 | H84: =Berechnung_UA01!G65 -> 1.1197 | I84: =Berechnung_UA01!H65 -> 3.4474 | J84: =Berechnung_UA01!I65 -> 0
A85: Mastgänse | C85: =C86 -> 0
A86: Mastgänse | C86: =Berechnung_UA01!B66 -> 0 | D86: =Berechnung_UA01!C66 -> Anz | E86: =Berechnung_UA01!D66 -> 0 | F86: =Berechnung_UA01!E66 -> 0 | G86: =Berechnung_UA01!F66 -> 7.83 | H86: =Berechnung_UA01!G66 -> 1.1197 | I86: =Berechnung_UA01!H66 -> 1.5409 | J86: =Berechnung_UA01!I66 -> 0
A87: Mastputen | C87: =C88 -> 0
A88: Mastputen | C88: =Berechnung_UA01!B67 -> 0 | D88: =Berechnung_UA01!C67 -> Anz | E88: =Berechnung_UA01!D67 -> 0 | F88: =Berechnung_UA01!E67 -> 0 | G88: =Berechnung_UA01!F67 -> 7.83 | H88: =Berechnung_UA01!G67 -> 1.1197 | I88: =Berechnung_UA01!H67 -> 0.8665 | J88: =Berechnung_UA01!I67 -> 0
A89: Fleischschafe und -ziegen | C89: =SUM(C90:C91) -> 0 | F89: =Berechnung_UA01!E68 -> 0 | G89: =Berechnung_UA01!F68 -> 7.83 | H89: =Berechnung_UA01!G68 -> 1.1197 | I89: =Berechnung_UA01!H68 -> 1.024 | J89: =Berechnung_UA01!I68 -> 0
A90: Wanderschafe | C90: =Berechnung_UA01!B69 -> 0 | D90: =Berechnung_UA01!C69 -> Anz | E90: =Berechnung_UA01!D69 -> 0 | F90: =Berechnung_UA01!E69 -> 0
A91: Schafe und Ziegen | C91: =Berechnung_UA01!B70 -> 0 | D91: =Berechnung_UA01!C70 -> Anz | E91: =Berechnung_UA01!D70 -> 0 | F91: =Berechnung_UA01!E70 -> 0
A92: Milchschafe und -ziegen | C92: =C93 -> 0 | F92: =Berechnung_UA01!E71 -> 0 | G92: =Berechnung_UA01!F71 -> 7.83 | H92: =Berechnung_UA01!G71 -> 1.1197 | I92: =Berechnung_UA01!H71 -> 0.3768 | J92: =Berechnung_UA01!I71 -> 0
A93: Milchschafe und -ziegen | C93: =Berechnung_UA01!B71 -> 0 | D93: =Berechnung_UA01!C71 -> Anz | E93: =Berechnung_UA01!D71 -> 0 | F93: =Berechnung_UA01!E71 -> 0
A94: Kaninchenhaltung | C94: =C95 -> 0 | F94: =Berechnung_UA01!E72 -> 0 | G94: =Berechnung_UA01!F72 -> 7.83 | H94: =Berechnung_UA01!G72 -> 1.1197 | I94: =Berechnung_UA01!H72 -> 1.058 | J94: =Berechnung_UA01!I72 -> 0
A95: Kaninchenhaltung | C95: =Berechnung_UA01!B72 -> 0 | D95: =Berechnung_UA01!C72 -> Anz | E95: =Berechnung_UA01!D72 -> 0 | F95: =Berechnung_UA01!E72 -> 0
A96: Wildtierhaltung | C96: =SUM(C97:C98) -> 0 | F96: =Berechnung_UA01!E73 -> 0 | G96: =Berechnung_UA01!F73 -> 7.83 | H96: =Berechnung_UA01!G73 -> 1.1197 | I96: =Berechnung_UA01!H73 -> 1.0611 | J96: =Berechnung_UA01!I73 -> 0
A97: Wildtierhaltung | C97: =Berechnung_UA01!B74 -> 0 | D97: =Berechnung_UA01!C74 -> Anz | E97: =Berechnung_UA01!D74 -> 0.7175 | F97: =Berechnung_UA01!E74 -> 0
A98: Schneckenzucht | C98: =Berechnung_UA01!B75 -> 0 | D98: =Berechnung_UA01!C75 -> Anz | E98: =Berechnung_UA01!D75 -> 0.7175 | F98: =Berechnung_UA01!E75 -> 0
A99: Bienenhaltung | C99: =SUM(C100:C101) -> 0 | F99: =Berechnung_UA01!E76 -> 0 | G99: =Berechnung_UA01!F76 -> 7.83 | H99: =Berechnung_UA01!G76 -> 1.1197 | I99: =Berechnung_UA01!H76 -> 0.6058 | J99: =Berechnung_UA01!I76 -> 0
A100: Imkerei | C100: =Berechnung_UA01!B77 -> 0 | D100: =Berechnung_UA01!C77 -> Anz | E100: =Berechnung_UA01!D77 -> 0 | F100: =Berechnung_UA01!E77 -> 0
A101: Imkerei (n.gew.) | C101: =Berechnung_UA01!B78 -> 0 | D101: =Berechnung_UA01!C78 -> Anz | E101: =Berechnung_UA01!D78 -> 0 | F101: =Berechnung_UA01!E78 -> 0
A102: Forellenzucht | C102: =C103 -> 0 | F102: =Berechnung_UA01!E79 -> 0 | G102: =Berechnung_UA01!F79 -> 7.83 | H102: =Berechnung_UA01!G79 -> 1.1197 | I102: =Berechnung_UA01!H79 -> 0 | J102: =Berechnung_UA01!I79 -> 0
A103: Forellenzucht | C103: =Berechnung_UA01!B79 -> 0 | D103: =Berechnung_UA01!C79 -> t | E103: =Berechnung_UA01!D79 -> 0 | F103: =Berechnung_UA01!E79 -> 0
A104: Teichwirtschaft Karpfen | C104: =C105 -> 0 | F104: =Berechnung_UA01!E80 -> 0 | G104: =Berechnung_UA01!F80 -> 7.83 | H104: =Berechnung_UA01!G80 -> 1.1197 | I104: =Berechnung_UA01!H80 -> 0.9121 | J104: =Berechnung_UA01!I80 -> 0
A105: Teichwirtschaft Karpfen | C105: =Berechnung_UA01!B80 -> 0 | D105: =Berechnung_UA01!C80 -> ha | E105: =Berechnung_UA01!D80 -> 0 | F105: =Berechnung_UA01!E80 -> 0
A106: Fluss- und Seenfischerei | C106: =C107 -> 0 | F106: =Berechnung_UA01!E81 -> 0 | G106: =Berechnung_UA01!F81 -> 7.83 | H106: =Berechnung_UA01!G81 -> 1.1197 | I106: =Berechnung_UA01!H81 -> 1.5558 | J106: =Berechnung_UA01!I81 -> 0
A107: Fluss- und Seenfischerei | C107: =Berechnung_UA01!B82 -> 0 | D107: =Berechnung_UA01!C82 -> AT | E107: =Berechnung_UA01!D82 -> 0.3 | F107: =Berechnung_UA01!E82 -> 0 | G107: =Berechnung_UA01!F82 -> 7.83 | H107: =Berechnung_UA01!G82 -> 1.1197 | I107: =Berechnung_UA01!H82 -> 1.5558 | J107: =Berechnung_UA01!I82 -> 0
A108: Forellen und Beifische | C108: =Berechnung_UA01!B83 -> 0 | D108: =Berechnung_UA01!C83 -> AT | E108: =Berechnung_UA01!D83 -> 0.3 | F108: =Berechnung_UA01!E83 -> 0
A109: Pferdehaltung | C109: =SUM(C111:C119) -> 0
A110: Deckhengste ohne Sporteinsatz | C110: =C111 -> 0 | F110: =Berechnung_UA01!E85 -> 0 | G110: =Berechnung_UA01!F85 -> 7.83 | H110: =Berechnung_UA01!G85 -> 1.4948 | I110: =Berechnung_UA01!H85 -> 0 | J110: =Berechnung_UA01!I85 -> 0
A111: Deckhengste ohne Sporteinsatz | C111: =Berechnung_UA01!B85 -> 0 | D111: =Berechnung_UA01!C85 -> Anz | E111: =Berechnung_UA01!D85 -> 0 | F111: =Berechnung_UA01!E85 -> 0
A112: Zuchtstuten, Hengste, Aufzucht, Arbeits- | C112: =J113 -> 0
A113: und Gnadenbrottiere | C113: =J113 -> 0 | F113: =Berechnung_UA01!E86 -> 0 | G113: =Berechnung_UA01!F86 -> 7.83 | H113: =Berechnung_UA01!G86 -> 1.4948 | I113: =Berechnung_UA01!H86 -> 1.578 | J113: =Berechnung_UA01!I86 -> 0
A114: Zuchtstuten sowie Aufzucht-, | C114: =Berechnung_UA01!B87 -> 0 | D114: =Berechnung_UA01!C87 -> Anz | E114: =Berechnung_UA01!D87 -> 0 | F114: =Berechnung_UA01!E87 -> 0 | G114: =IF(Hebesatz!A3>2017,"",Berechnung_UA01!F87) ->  | H114: =IF(Hebesatz!A3>2017,"",Berechnung_UA01!G87) ->  | I114: =IF(Hebesatz!A3>2017,"",Berechnung_UA01!H87) ->  | J114: =IF(Hebesatz!A3>2017,"",Berechnung_UA01!I87) -> 
A115: Arbeits- und Gnadenbrottiere | C115: =C114 -> 0
A116: Deckhengste ohne Sporteinsatz | C116: =Berechnung_UA01!B88 -> 0 | D116: =Berechnung_UA01!C88 -> Anz | E116: =Berechnung_UA01!D88 -> 0 | F116: =Berechnung_UA01!E88 -> 0
A117: Sport-,bzw. Turnier-, Renn-, Kutsch-,
A118: Schul- und Verleihpferde | C118: =C119 -> 0 | F118: =Berechnung_UA01!E89 -> 0 | G118: =Berechnung_UA01!F89 -> 7.83 | H118: =Berechnung_UA01!G89 -> 1.4948 | I118: =Berechnung_UA01!H89 -> 0.6019 | J118: =Berechnung_UA01!I89 -> 0
A119: Traber und Galopper | C119: =Berechnung_UA01!B89 -> 0 | D119: =Berechnung_UA01!C89 -> Anz | E119: =Berechnung_UA01!D89 -> 0 | F119: =Berechnung_UA01!E89 -> 0
A120: geschützter gärtnerischer Anbau, Blumen- und Zierpflanzenanbau sowie Baumschulen | C120: =C121 -> 0
A121: geschützter gärtnerische Anbau | C121: =SUM(C122:C125) -> 0 | F121: =Berechnung_UA01!E91 -> 0 | G121: =Berechnung_UA01!F91 -> 7.83 | H121: =Berechnung_UA01!G91 -> 0.5658 | I121: =Berechnung_UA01!H91 -> 1 | J121: =Berechnung_UA01!I91 -> 0
A122: Arbeitstage Mifa Urproduktion | C122: =Berechnung_UA01!B92 -> 0 | D122: =Berechnung_UA01!C92 -> AT | E122: =Berechnung_UA01!D92 -> 0.5555 | F122: =Berechnung_UA01!E92 -> 0
A123: Arbeitsentgelt gärtnerische | C123: =Berechnung_UA01!B93 -> 0 | D123: =Berechnung_UA01!C93 -> € | E123: =Berechnung_UA01!D93 -> 0.005 | F123: =Berechnung_UA01!E93 -> 0
A124: Urproduktion | C124: =C123 -> 0
A125: Arbeitstage Unternehmer | C125: =Berechnung_UA01!B94 -> 0 | D125: =Berechnung_UA01!C94 -> AT | E125: =Berechnung_UA01!D94 -> 0.3484 | F125: =Berechnung_UA01!E94 -> 0
A126: Urproduktion | C126: =C125 -> 0
A127: Gesamt-BER der vorstehenden Risikogruppen | F127: =Berechnung_UA01!E99 -> 0
A128: Summe Beitrag der vorstehenden Risikogruppen | J128: =Berechnung_UA01!I96 -> 0
A130: Grundbeitrag | F130: ="BER Grundbeitrag mindestens " & Hebesatz!L3 -> BER Grundbeitrag mindestens 87,5 | G130: Hebe-satz (EUR je BER) | H130: Deckungs- faktor | J130: EUR
F131: höchstens
F132: =Hebesatz!J3 -> 350
A133: Grundbeitrag | F133: =Berechnung_UA01!E98 -> 87.5 | G133: =Hebesatz!B3 -> 7.83 | H133: =Hebesatz!D3 -> 0.124 | J133: =Berechnung_UA01!I98 -> 84.96
J137: EUR
A138: Risikobeitrag | J138: =Eingabe!D12 -> 
A139: Grundbeitrag | J139: =Eingabe!E12 -> 
A140: Bruttobeitrag | J140: =Eingabe!F12 -> 
A141: ="abzüglich Bundesmittel" -> abzüglich Bundesmittel | J141: =ROUND(Eingabe!G12,2) -> 
A142: Beitrag nach Maßstab SVLFG | J142: =Eingabe!H12 -> 
A144: Rinderhaltung | C144: =SUM(C145:C150) -> 0
A145: Milchkühe, Deckbullen | C145: =C146 -> 0 | F145: =Berechnung_UA04!E11 -> 0 | G145: =Berechnung_UA04!F11 -> 7.83 | H145: =Berechnung_UA04!G11 -> 1.1085 | I145: =Berechnung_UA04!H11 -> 0.912 | J145: =Berechnung_UA04!I11 -> 0
A146: Milchkühe, Deckbullen | C146: =Berechnung_UA04!B11 -> 0 | D146: =Berechnung_UA04!C11 -> Anz | E146: =Berechnung_UA04!D11 -> 0 | F146: =Berechnung_UA04!E11 -> 0
A147: Mutterkühe ohne Kälber | C147: =C148 -> 0 | F147: =Berechnung_UA04!E12 -> 0 | G147: =Berechnung_UA04!F12 -> 7.83 | H147: =Berechnung_UA04!G12 -> 1.1085 | I147: =Berechnung_UA04!H12 -> 1.1807 | J147: =Berechnung_UA04!I12 -> 0
A148: Mutterkühe | C148: =Berechnung_UA04!B12 -> 0 | D148: =Berechnung_UA04!C12 -> Anz | E148: =Berechnung_UA04!D12 -> 0 | F148: =Berechnung_UA04!E12 -> 0
A149: Sonstige Rinder, Kälber | C149: =C150 -> 0 | F149: =Berechnung_UA04!E13 -> 0 | G149: =Berechnung_UA04!F13 -> 7.83 | H149: =Berechnung_UA04!G13 -> 1.1085 | I149: =Berechnung_UA04!H13 -> 1.2235 | J149: =Berechnung_UA04!I13 -> 0
A150: Sonstige Rinder | C150: =Berechnung_UA04!B13 -> 0 | D150: =Berechnung_UA04!C13 -> Anz | E150: =Berechnung_UA04!D13 -> 0 | F150: =Berechnung_UA04!E13 -> 0
A151: Schweinehaltung | C151: =SUM(C152:C157) -> 0
A152: Schweinemast, Ferkelaufzucht, | C152: =SUM(C154:C157) -> 0
A153: Jungsauenaufzucht | C153: =C154 -> 0 | F153: =Berechnung_UA04!E15 -> 0 | G153: =Berechnung_UA04!F15 -> 7.83 | H153: =Berechnung_UA04!G15 -> 1.1936 | I153: =Berechnung_UA04!H15 -> 1.1864 | J153: =Berechnung_UA04!I15 -> 0
A154: Schweinemast | C154: =Berechnung_UA04!B16 -> 0 | D154: =Berechnung_UA04!C16 -> Anz | E154: =Berechnung_UA04!D16 -> 0 | F154: =Berechnung_UA04!E16 -> 0
A155: Ferkelaufzucht | C155: =Berechnung_UA04!B17 -> 0 | D155: =Berechnung_UA04!C17 -> Anz | E155: =Berechnung_UA04!D17 -> 0 | F155: =Berechnung_UA04!E17 -> 0
A156: Sauenhaltung | C156: =C157 -> 0 | F156: =Berechnung_UA04!E18 -> 0 | G156: =Berechnung_UA04!F18 -> 7.83 | H156: =Berechnung_UA04!G18 -> 1.1936 | I156: =Berechnung_UA04!H18 -> 0.7201 | J156: =Berechnung_UA04!I18 -> 0
A157: Sauenhaltung | C157: =Berechnung_UA04!B18 -> 0 | D157: =Berechnung_UA04!C18 -> Anz | E157: =Berechnung_UA04!D18 -> 0 | F157: =Berechnung_UA04!E18 -> 0
A158: Unternehmen der sonstigen Tierhaltung | C158: =SUM(C159:C178) -> 0
A159: Legehennen | C159: =C160 -> 0 | F159: =Berechnung_UA04!E20 -> 0 | G159: =Berechnung_UA04!F20 -> 7.83 | H159: =Berechnung_UA04!G20 -> 1.1197 | I159: =Berechnung_UA04!H20 -> 1.0658 | J159: =Berechnung_UA04!I20 -> 0
A160: Legehennen | C160: =Berechnung_UA04!B20 -> 0 | D160: =Berechnung_UA04!C20 -> Anz | E160: =Berechnung_UA04!D20 -> 0 | F160: =Berechnung_UA04!E20 -> 0
A161: Junghennenaufzucht | C161: =C162 -> 0 | F161: =Berechnung_UA04!E21 -> 0 | G161: =Berechnung_UA04!F21 -> 7.83 | H161: =Berechnung_UA04!G21 -> 1.1197 | I161: =Berechnung_UA04!H21 -> 0.7136 | J161: =Berechnung_UA04!I21 -> 0
A162: Junghennenaufzucht | C162: =Berechnung_UA04!B21 -> 0 | D162: =Berechnung_UA04!C21 -> Anz | E162: =Berechnung_UA04!D21 -> 0 | F162: =Berechnung_UA04!E21 -> 0
A163: Masthühner | C163: =C164 -> 0 | F163: =Berechnung_UA04!E22 -> 0 | G163: =Berechnung_UA04!F22 -> 7.83 | H163: =Berechnung_UA04!G22 -> 1.1197 | I163: =Berechnung_UA04!H22 -> 0.7499 | J163: =Berechnung_UA04!I22 -> 0
A164: Masthühner | C164: =Berechnung_UA04!B22 -> 0 | D164: =Berechnung_UA04!C22 -> Anz | E164: =Berechnung_UA04!D22 -> 0 | F164: =Berechnung_UA04!E22 -> 0
A165: Masthühner Tst | C165: =C166 -> 0 | F165: =Berechnung_UA04!E23 -> 0 | G165: =Berechnung_UA04!F23 -> 7.83 | H165: =Berechnung_UA04!G23 -> 1.1197 | I165: =Berechnung_UA04!H23 -> 0.7499 | J165: =Berechnung_UA04!I23 -> 0
A166: Masthühner Tst | C166: =Berechnung_UA04!B23 -> 0 | D166: =Berechnung_UA04!C23 -> Anz | E166: =Berechnung_UA04!D23 -> 0 | F166: =Berechnung_UA04!E23 -> 0
A167: Mastenten | C167: =C168 -> 0 | F167: =Berechnung_UA04!E24 -> 0 | G167: =Hebesatz!B3 -> 7.83 | H167: =Berechnung_UA04!G24 -> 1.1197 | I167: =Berechnung_UA04!H24 -> 3.4474 | J167: =Berechnung_UA04!I24 -> 0
A168: Mastenten | C168: =Berechnung_UA04!B24 -> 0 | D168: =Berechnung_UA04!C24 -> Anz | E168: =Berechnung_UA04!D24 -> 0 | F168: =Berechnung_UA04!E24 -> 0
A169: Mastgänse | C169: =C170 -> 0 | F169: =Berechnung_UA04!E25 -> 0 | G169: =Berechnung_UA04!F25 -> 7.83 | H169: =Berechnung_UA04!G25 -> 1.1197 | I169: =Berechnung_UA04!H25 -> 1.5409 | J169: =Berechnung_UA04!I25 -> 0
A170: Mastgänse | C170: =Berechnung_UA04!B25 -> 0 | D170: =Berechnung_UA04!C25 -> Anz | E170: =Berechnung_UA04!D25 -> 0 | F170: =Berechnung_UA04!E25 -> 0
A171: Mastputen | C171: =C172 -> 0 | F171: =Berechnung_UA04!E26 -> 0 | G171: =Berechnung_UA04!F26 -> 7.83 | H171: =Berechnung_UA04!G26 -> 1.1197 | I171: =Berechnung_UA04!H26 -> 0.8665 | J171: =Berechnung_UA04!I26 -> 0
A172: Mastputen | C172: =Berechnung_UA04!B26 -> 0 | D172: =Berechnung_UA04!C26 -> Anz | E172: =Berechnung_UA04!D26 -> 0 | F172: =Berechnung_UA04!E26 -> 0
A173: Fleischschafe und -ziegen | C173: =C174 -> 0 | F173: =Berechnung_UA04!E27 -> 0 | G173: =Berechnung_UA04!F27 -> 7.83 | H173: =Berechnung_UA04!G27 -> 1.1197 | I173: =Berechnung_UA04!H27 -> 1.024 | J173: =Berechnung_UA04!I27 -> 0
A174: Fleischschafe und -ziegen | C174: =Berechnung_UA04!B27 -> 0 | D174: =Berechnung_UA04!C27 -> Anz | E174: =Berechnung_UA04!D27 -> 0 | F174: =Berechnung_UA04!E27 -> 0
A175: Milchschafe und -ziegen | C175: =C176 -> 0 | F175: =Berechnung_UA04!E28 -> 0 | G175: =Berechnung_UA04!F28 -> 7.83 | H175: =Berechnung_UA04!G28 -> 1.1197 | I175: =Berechnung_UA04!H28 -> 0.3768 | J175: =Berechnung_UA04!I28 -> 0
A176: Milchschafe und -ziegen | C176: =Berechnung_UA04!B28 -> 0 | D176: =Berechnung_UA04!C28 -> Anz | E176: =Berechnung_UA04!D28 -> 0 | F176: =Berechnung_UA04!E28 -> 0
A177: Kaninchenhaltung | C177: =C178 -> 0 | F177: =Berechnung_UA04!E29 -> 0 | G177: =Berechnung_UA04!F29 -> 7.83 | H177: =Berechnung_UA04!G29 -> 1.1197 | I177: =Berechnung_UA04!H29 -> 1.058 | J177: =Berechnung_UA04!I29 -> 0
A178: Kaninchenhaltung | C178: =Berechnung_UA04!B29 -> 0 | D178: =Berechnung_UA04!C29 -> Anz | E178: =Berechnung_UA04!D29 -> 0 | F178: =Berechnung_UA04!E29 -> 0
A179: Pferdehaltung | C179: =SUM(C180:C189) -> 0
A180: Deckhengste ohne Sporteinsatz | C180: =C181 -> 0 | F180: =Berechnung_UA04!E31 -> 0 | G180: =Berechnung_UA04!F31 -> 7.83 | H180: =Berechnung_UA04!G31 -> 1.4948 | I180: =Berechnung_UA04!H31 -> 0 | J180: =Berechnung_UA04!I31 -> 0
A181: Deckhengste ohne Sporteinsatz | C181: =Berechnung_UA04!B31 -> 0 | D181: =Berechnung_UA04!C31 -> Anz | E181: =Berechnung_UA04!D31 -> 0 | F181: =Berechnung_UA04!E31 -> 0
A182: Zuchtstuten, Hengste, Aufzucht, Arbeits- | C182: =J183 -> 0
A183: und Gnadenbrottiere | C183: =J183 -> 0 | F183: =Berechnung_UA04!E32 -> 0 | G183: =Berechnung_UA04!F32 -> 7.83 | H183: =Berechnung_UA04!G32 -> 1.4948 | I183: =Berechnung_UA04!H32 -> 1.578 | J183: =Berechnung_UA04!I32 -> 0
A184: Zuchtstuten sowie Aufzucht-, Arbeits- | C184: =Berechnung_UA04!B33 -> 0 | D184: =Berechnung_UA04!C33 -> Anz | E184: =Berechnung_UA04!D33 -> 0 | F184: =Berechnung_UA04!E33 -> 0 | G184: =IF(Hebesatz!A3>2017,"",Berechnung_UA04!F33) ->  | H184: =IF(Hebesatz!A3>2017,"",Berechnung_UA04!G33) ->  | I184: =IF(Hebesatz!A3>2017,"",Berechnung_UA04!H33) ->  | J184: =IF(Hebesatz!A3>2017,"",Berechnung_UA04!I33) -> 
A185: und Gnadenbrottiere | C185: =C184 -> 0
A186: Deckhengste ohne Sporteinsatz | C186: =Berechnung_UA04!B34 -> 0 | D186: =Berechnung_UA04!C34 -> Anz | E186: =Berechnung_UA04!D34 -> 0 | F186: =Berechnung_UA04!E34 -> 0
A187: Sport-,bzw. Turnier-, Renn-, Kutsch-, | C187: =C189 -> 0
A188: Schul- und Verleihpferde | C188: =C189 -> 0 | F188: =Berechnung_UA04!E35 -> 0 | G188: =Berechnung_UA04!F35 -> 7.83 | H188: =Berechnung_UA04!G35 -> 1.4948 | I188: =Berechnung_UA04!H35 -> 0.6019 | J188: =Berechnung_UA04!I35 -> 0
A189: Traber und Galopper | C189: =Berechnung_UA04!B35 -> 0 | D189: =Berechnung_UA04!C35 -> Anz | E189: =Berechnung_UA04!D35 -> 0 | F189: =Berechnung_UA04!E35 -> 0
A191: Gesamt-BER der vorstehenden Risikogruppen | F191: =Berechnung_UA04!E40 -> 0
A192: Summe Beitrag der vorstehenden Risikogruppen | J192: =Berechnung_UA04!I37 -> 0
A194: Grundbeitrag | F194: ="BER Grundbeitrag mindestens " & Hebesatz!L3 -> BER Grundbeitrag mindestens 87,5 | G194: Hebe-satz (EUR je BER) | H194: Deckungs- faktor | J194: EUR
F195: höchstens
F196: =Hebesatz!J3 -> 350
A197: Grundbeitrag | F197: =Berechnung_UA04!E39 -> 87.5 | G197: =Hebesatz!B3 -> 7.83 | H197: =Hebesatz!D3 -> 0.124 | J197: =Berechnung_UA04!I39 -> 84.96
J200: EUR
A201: Risikobeitrag | J201: =Eingabe!D16 -> 
A202: Grundbeitrag | J202: =Eingabe!E16 -> 
A203: Beitrag nach Maßstab SVLFG | J203: =Eingabe!F16 -> 
A205: Jagdunternehmen | C205: =SUM(C207:C208) -> 0
A206: Jagd | C206: =SUM(C207:C208) -> 0 | F206: =SUM(F207:F208) -> 0 | G206: =Hebesatz!B3 -> 7.83 | H206: =Berechnung_UA05!G9 -> 1.8911 | I206: =Berechnung_UA05!H9 -> 1 | J206: =Berechnung_UA05!I9 -> 0
A207: bejagbare Fläche | C207: =Berechnung_UA05!B9 -> 0 | D207: =Berechnung_UA05!C9 -> ha | E207: =Berechnung_UA05!D9 -> 0.05 | F207: =Berechnung_UA05!E9 -> 0
A208: Jagd landwirtschaftlicher Unternehmer | C208: =Berechnung_UA05!B10 -> 0 | D208: =Berechnung_UA05!C10 -> ha | E208: =Berechnung_UA05!D10 -> 0.04 | F208: =Berechnung_UA05!E10 -> 0
A209: Gesamt-BER der vorstehenden Risikogruppen | F209: =Berechnung_UA05!E16 -> 0
A210: Summe Beitrag der vorstehenden Risikogruppen | J210: =Berechnung_UA05!I13 -> 0
A212: Grundbeitrag | F212: ="BER Grundbeitrag mindestens " & Hebesatz!L3 -> BER Grundbeitrag mindestens 87,5 | G212: Hebe-satz (EUR je BER) | H212: Deckungs- faktor | J212: EUR
... 127 more rows
